date,department/service,beneficiary,amount,summary of purpose,category,transaction number,SAP vendor number
01.02.2022,ADULT SOCIAL CARE,ACMED SERVICES LTD,"1,856.95",SAFEGUARDING & DOLS,OTHER CONTRACTORS,5902507997,1000074600
01.02.2022,ADULT SOCIAL CARE,ACMED SERVICES LTD,"1,861.90",SAFEGUARDING & DOLS,OTHER CONTRACTORS,5902507998,1000074600
01.02.2022,ADULT SOCIAL CARE,ACMED SERVICES LTD,"2,067.55",SAFEGUARDING & DOLS,OTHER CONTRACTORS,5902507999,1000074600
02.02.2022,ADULT SOCIAL CARE,SYED & QUINN LTD,400,ADULTS MULTI-AGENCY SAFEGUARDING TRNG,TRAINING,5902508077,1000029554
02.02.2022,ADULT SOCIAL CARE,THE DRIVE CARE HOMES LTD,"1,540.00",DISABILITIES LAC,OTHER PAYMENTS FOR CLIENTS,2103380993,1000003889
02.02.2022,ADULT SOCIAL CARE,PRIORS COURT SERVICES LTD,"23,189.28",DISABILITIES LAC,RESIDENTIAL CARE,2103380995,1000085127
02.02.2022,ADULT SOCIAL CARE,PRIORS COURT SERVICES LTD,"33,881.25",DISABILITIES LAC,RESIDENTIAL CARE,2103380994,1000085127
02.02.2022,ADULT SOCIAL CARE,PRIORS COURT SERVICES LTD,"36,031.20",DISABILITIES LAC,RESIDENTIAL CARE,2103380996,1000085127
02.02.2022,ADULT SOCIAL CARE,SUPREME CARE SERVICES LTD,"2,556.76",DISCHARGE TO ACCESS,HOMECARE - C&V,2103380154,1000059416
02.02.2022,ADULT SOCIAL CARE,THAMES HOMECARE SERVICE LTD,379.08,DISCHARGE TO ACCESS,HOMECARE - C&V,2103380936,1000079295
02.02.2022,ADULT SOCIAL CARE,SUPREME CARE SERVICES LTD,431.52,LD LTS 18-64,HOMECARE - C&V,2103380115,1000059416
02.02.2022,ADULT SOCIAL CARE,THAMES HOMECARE SERVICE LTD,262.08,LD LTS 18-64,HOMECARE - SPOT,2103380860,1000079295
02.02.2022,ADULT SOCIAL CARE,SUPREME CARE SERVICES LTD,872.04,LD LTS 65+,HOMECARE - C&V,2103380395,1000059416
02.02.2022,ADULT SOCIAL CARE,SUPREME CARE SERVICES LTD,"1,002.40",LD LTS 65+,HOMECARE - C&V,2103380070,1000059416
02.02.2022,ADULT SOCIAL CARE,SUPREME CARE SERVICES LTD,417.88,MEM LTS 18-64,HOMECARE - C&V,2103380127,1000059416
02.02.2022,ADULT SOCIAL CARE,SUPREME CARE SERVICES LTD,422.9,MEM LTS 18-64,HOMECARE - C&V,2103380210,1000059416
02.02.2022,ADULT SOCIAL CARE,SUPREME CARE SERVICES LTD,323.96,MEM LTS 65+,HOMECARE - C&V,2103380293,1000059416
02.02.2022,ADULT SOCIAL CARE,SUPREME CARE SERVICES LTD,395.68,MEM LTS 65+,HOMECARE - C&V,2103380313,1000059416
02.02.2022,ADULT SOCIAL CARE,SUPREME CARE SERVICES LTD,417.88,MEM LTS 65+,HOMECARE - C&V,2103380128,1000059416
02.02.2022,ADULT SOCIAL CARE,SUPREME CARE SERVICES LTD,439.04,MEM LTS 65+,HOMECARE - C&V,2103380164,1000059416
02.02.2022,ADULT SOCIAL CARE,SUPREME CARE SERVICES LTD,473.39,MEM LTS 65+,HOMECARE - C&V,2103380412,1000059416
02.02.2022,ADULT SOCIAL CARE,SUPREME CARE SERVICES LTD,854.08,MEM LTS 65+,HOMECARE - C&V,2103380276,1000059416
02.02.2022,ADULT SOCIAL CARE,SUPREME CARE SERVICES LTD,"2,211.85",MEM LTS 65+,HOMECARE - C&V,2103380338,1000059416
02.02.2022,ADULT SOCIAL CARE,SUPREME CARE SERVICES LTD,"2,253.35",MEM LTS 65+,HOMECARE - C&V,2103380149,1000059416
02.02.2022,ADULT SOCIAL CARE,THAMES HOMECARE SERVICE LTD,804.96,MEM LTS 65+,HOMECARE - C&V,2103380932,1000079295
02.02.2022,ADULT SOCIAL CARE,THAMES HOMECARE SERVICE LTD,252.72,MEM LTS 65+,HOMECARE - SPOT,2103380924,1000079295
02.02.2022,ADULT SOCIAL CARE,THAMES HOMECARE SERVICE LTD,655.2,MEM LTS 65+,HOMECARE - SPOT,2103380820,1000079295
02.02.2022,ADULT SOCIAL CARE,SUPREME CARE SERVICES LTD,251.72,MH LTS 18-64,HOMECARE - C&V,2103380422,1000059416
02.02.2022,ADULT SOCIAL CARE,SUPREME CARE SERVICES LTD,314.7,MH LTS 18-64,HOMECARE - C&V,2103380353,1000059416
02.02.2022,ADULT SOCIAL CARE,SUPREME CARE SERVICES LTD,386.7,MH LTS 18-64,HOMECARE - C&V,2103380337,1000059416
02.02.2022,ADULT SOCIAL CARE,SUPREME CARE SERVICES LTD,436.02,MH LTS 18-64,HOMECARE - C&V,2103380122,1000059416
02.02.2022,ADULT SOCIAL CARE,SUPREME CARE SERVICES LTD,499,MH LTS 18-64,HOMECARE - C&V,2103380401,1000059416
02.02.2022,ADULT SOCIAL CARE,SUPREME CARE SERVICES LTD,733.16,MH LTS 18-64,HOMECARE - C&V,2103380057,1000059416
02.02.2022,ADULT SOCIAL CARE,SUPREME CARE SERVICES LTD,755.2,MH LTS 18-64,HOMECARE - C&V,2103380231,1000059416
02.02.2022,ADULT SOCIAL CARE,SUPREME CARE SERVICES LTD,943.99,MH LTS 18-64,HOMECARE - C&V,2103380052,1000059416
02.02.2022,ADULT SOCIAL CARE,SUPREME CARE SERVICES LTD,265.24,MH LTS 65+,HOMECARE - C&V,2103380056,1000059416
02.02.2022,ADULT SOCIAL CARE,SUPREME CARE SERVICES LTD,386.63,MH LTS 65+,HOMECARE - C&V,2103380223,1000059416
02.02.2022,ADULT SOCIAL CARE,SUPREME CARE SERVICES LTD,477.4,MH LTS 65+,HOMECARE - C&V,2103380374,1000059416
02.02.2022,ADULT SOCIAL CARE,SUPREME CARE SERVICES LTD,492.68,MH LTS 65+,HOMECARE - C&V,2103380453,1000059416
02.02.2022,ADULT SOCIAL CARE,SUPREME CARE SERVICES LTD,516.06,MH LTS 65+,HOMECARE - C&V,2103380243,1000059416
02.02.2022,ADULT SOCIAL CARE,SUPREME CARE SERVICES LTD,545.6,MH LTS 65+,HOMECARE - C&V,2103380059,1000059416
02.02.2022,ADULT SOCIAL CARE,SUPREME CARE SERVICES LTD,773.27,MH LTS 65+,HOMECARE - C&V,2103380206,1000059416
02.02.2022,ADULT SOCIAL CARE,THAMES HOMECARE SERVICE LTD,486.72,MH LTS 65+,HOMECARE - SPOT,2103380810,1000079295
02.02.2022,ADULT SOCIAL CARE,SUPREME CARE SERVICES LTD,251.72,PHY LTS 18-64,HOMECARE - C&V,2103380168,1000059416
02.02.2022,ADULT SOCIAL CARE,SUPREME CARE SERVICES LTD,260.72,PHY LTS 18-64,HOMECARE - C&V,2103380268,1000059416
02.02.2022,ADULT SOCIAL CARE,SUPREME CARE SERVICES LTD,260.8,PHY LTS 18-64,HOMECARE - C&V,2103380277,1000059416
02.02.2022,ADULT SOCIAL CARE,SUPREME CARE SERVICES LTD,274.24,PHY LTS 18-64,HOMECARE - C&V,2103380125,1000059416
02.02.2022,ADULT SOCIAL CARE,SUPREME CARE SERVICES LTD,287.68,PHY LTS 18-64,HOMECARE - C&V,2103380387,1000059416
02.02.2022,ADULT SOCIAL CARE,SUPREME CARE SERVICES LTD,323.65,PHY LTS 18-64,HOMECARE - C&V,2103380282,1000059416
02.02.2022,ADULT SOCIAL CARE,SUPREME CARE SERVICES LTD,323.76,PHY LTS 18-64,HOMECARE - C&V,2103380084,1000059416
02.02.2022,ADULT SOCIAL CARE,SUPREME CARE SERVICES LTD,328.2,PHY LTS 18-64,HOMECARE - C&V,2103380262,1000059416
02.02.2022,ADULT SOCIAL CARE,SUPREME CARE SERVICES LTD,383.62,PHY LTS 18-64,HOMECARE - C&V,2103380386,1000059416
02.02.2022,ADULT SOCIAL CARE,SUPREME CARE SERVICES LTD,391.16,PHY LTS 18-64,HOMECARE - C&V,2103380162,1000059416
02.02.2022,ADULT SOCIAL CARE,SUPREME CARE SERVICES LTD,400.72,PHY LTS 18-64,HOMECARE - C&V,2103380130,1000059416
02.02.2022,ADULT SOCIAL CARE,SUPREME CARE SERVICES LTD,400.9,PHY LTS 18-64,HOMECARE - C&V,2103380408,1000059416
02.02.2022,ADULT SOCIAL CARE,SUPREME CARE SERVICES LTD,420.32,PHY LTS 18-64,HOMECARE - C&V,2103380103,1000059416
02.02.2022,ADULT SOCIAL CARE,SUPREME CARE SERVICES LTD,425.97,PHY LTS 18-64,HOMECARE - C&V,2103380364,1000059416
02.02.2022,ADULT SOCIAL CARE,SUPREME CARE SERVICES LTD,426.43,PHY LTS 18-64,HOMECARE - C&V,2103380407,1000059416
02.02.2022,ADULT SOCIAL CARE,SUPREME CARE SERVICES LTD,430.66,PHY LTS 18-64,HOMECARE - C&V,2103380121,1000059416
02.02.2022,ADULT SOCIAL CARE,SUPREME CARE SERVICES LTD,490.22,PHY LTS 18-64,HOMECARE - C&V,2103380065,1000059416
02.02.2022,ADULT SOCIAL CARE,SUPREME CARE SERVICES LTD,503.44,PHY LTS 18-64,HOMECARE - C&V,2103380323,1000059416
02.02.2022,ADULT SOCIAL CARE,SUPREME CARE SERVICES LTD,516.97,PHY LTS 18-64,HOMECARE - C&V,2103380254,1000059416
02.02.2022,ADULT SOCIAL CARE,SUPREME CARE SERVICES LTD,532.8,PHY LTS 18-64,HOMECARE - C&V,2103380406,1000059416
02.02.2022,ADULT SOCIAL CARE,SUPREME CARE SERVICES LTD,561.9,PHY LTS 18-64,HOMECARE - C&V,2103380409,1000059416
02.02.2022,ADULT SOCIAL CARE,SUPREME CARE SERVICES LTD,593.36,PHY LTS 18-64,HOMECARE - C&V,2103380324,1000059416
02.02.2022,ADULT SOCIAL CARE,SUPREME CARE SERVICES LTD,609.77,PHY LTS 18-64,HOMECARE - C&V,2103380388,1000059416
02.02.2022,ADULT SOCIAL CARE,SUPREME CARE SERVICES LTD,630.57,PHY LTS 18-64,HOMECARE - C&V,2103380405,1000059416
02.02.2022,ADULT SOCIAL CARE,SUPREME CARE SERVICES LTD,638.37,PHY LTS 18-64,HOMECARE - C&V,2103380361,1000059416
02.02.2022,ADULT SOCIAL CARE,SUPREME CARE SERVICES LTD,640.17,PHY LTS 18-64,HOMECARE - C&V,2103380318,1000059416
02.02.2022,ADULT SOCIAL CARE,SUPREME CARE SERVICES LTD,656.68,PHY LTS 18-64,HOMECARE - C&V,2103380454,1000059416
02.02.2022,ADULT SOCIAL CARE,SUPREME CARE SERVICES LTD,659.27,PHY LTS 18-64,HOMECARE - C&V,2103380203,1000059416
02.02.2022,ADULT SOCIAL CARE,SUPREME CARE SERVICES LTD,676.51,PHY LTS 18-64,HOMECARE - C&V,2103380466,1000059416
02.02.2022,ADULT SOCIAL CARE,SUPREME CARE SERVICES LTD,705.89,PHY LTS 18-64,HOMECARE - C&V,2103380159,1000059416
02.02.2022,ADULT SOCIAL CARE,SUPREME CARE SERVICES LTD,710.35,PHY LTS 18-64,HOMECARE - C&V,2103380257,1000059416
02.02.2022,ADULT SOCIAL CARE,SUPREME CARE SERVICES LTD,718.03,PHY LTS 18-64,HOMECARE - C&V,2103380158,1000059416
02.02.2022,ADULT SOCIAL CARE,SUPREME CARE SERVICES LTD,746.17,PHY LTS 18-64,HOMECARE - C&V,2103380251,1000059416
02.02.2022,ADULT SOCIAL CARE,SUPREME CARE SERVICES LTD,755.16,PHY LTS 18-64,HOMECARE - C&V,2103380278,1000059416
02.02.2022,ADULT SOCIAL CARE,SUPREME CARE SERVICES LTD,773.18,PHY LTS 18-64,HOMECARE - C&V,2103380345,1000059416
02.02.2022,ADULT SOCIAL CARE,SUPREME CARE SERVICES LTD,794.17,PHY LTS 18-64,HOMECARE - C&V,2103380275,1000059416
02.02.2022,ADULT SOCIAL CARE,SUPREME CARE SERVICES LTD,827.98,PHY LTS 18-64,HOMECARE - C&V,2103380272,1000059416
02.02.2022,ADULT SOCIAL CARE,SUPREME CARE SERVICES LTD,833.11,PHY LTS 18-64,HOMECARE - C&V,2103380327,1000059416
02.02.2022,ADULT SOCIAL CARE,SUPREME CARE SERVICES LTD,882.82,PHY LTS 18-64,HOMECARE - C&V,2103380217,1000059416
02.02.2022,ADULT SOCIAL CARE,SUPREME CARE SERVICES LTD,910.69,PHY LTS 18-64,HOMECARE - C&V,2103380177,1000059416
02.02.2022,ADULT SOCIAL CARE,SUPREME CARE SERVICES LTD,912.63,PHY LTS 18-64,HOMECARE - C&V,2103380138,1000059416
02.02.2022,ADULT SOCIAL CARE,SUPREME CARE SERVICES LTD,921.65,PHY LTS 18-64,HOMECARE - C&V,2103380461,1000059416
02.02.2022,ADULT SOCIAL CARE,SUPREME CARE SERVICES LTD,929.28,PHY LTS 18-64,HOMECARE - C&V,2103380389,1000059416
02.02.2022,ADULT SOCIAL CARE,SUPREME CARE SERVICES LTD,966.6,PHY LTS 18-64,HOMECARE - C&V,2103380097,1000059416
02.02.2022,ADULT SOCIAL CARE,SUPREME CARE SERVICES LTD,971.1,PHY LTS 18-64,HOMECARE - C&V,2103380186,1000059416
02.02.2022,ADULT SOCIAL CARE,SUPREME CARE SERVICES LTD,984.58,PHY LTS 18-64,HOMECARE - C&V,2103380111,1000059416
02.02.2022,ADULT SOCIAL CARE,SUPREME CARE SERVICES LTD,989.04,PHY LTS 18-64,HOMECARE - C&V,2103380460,1000059416
02.02.2022,ADULT SOCIAL CARE,SUPREME CARE SERVICES LTD,993.72,PHY LTS 18-64,HOMECARE - C&V,2103380360,1000059416
02.02.2022,ADULT SOCIAL CARE,SUPREME CARE SERVICES LTD,998.01,PHY LTS 18-64,HOMECARE - C&V,2103380457,1000059416
02.02.2022,ADULT SOCIAL CARE,SUPREME CARE SERVICES LTD,"1,031.70",PHY LTS 18-64,HOMECARE - C&V,2103380397,1000059416
02.02.2022,ADULT SOCIAL CARE,SUPREME CARE SERVICES LTD,"1,051.88",PHY LTS 18-64,HOMECARE - C&V,2103380061,1000059416
02.02.2022,ADULT SOCIAL CARE,SUPREME CARE SERVICES LTD,"1,074.52",PHY LTS 18-64,HOMECARE - C&V,2103380107,1000059416
02.02.2022,ADULT SOCIAL CARE,SUPREME CARE SERVICES LTD,"1,078.82",PHY LTS 18-64,HOMECARE - C&V,2103380441,1000059416
02.02.2022,ADULT SOCIAL CARE,SUPREME CARE SERVICES LTD,"1,101.30",PHY LTS 18-64,HOMECARE - C&V,2103380141,1000059416
02.02.2022,ADULT SOCIAL CARE,SUPREME CARE SERVICES LTD,"1,176.88",PHY LTS 18-64,HOMECARE - C&V,2103380462,1000059416
02.02.2022,ADULT SOCIAL CARE,SUPREME CARE SERVICES LTD,"1,186.97",PHY LTS 18-64,HOMECARE - C&V,2103380341,1000059416
02.02.2022,ADULT SOCIAL CARE,SUPREME CARE SERVICES LTD,"1,222.80",PHY LTS 18-64,HOMECARE - C&V,2103380226,1000059416
02.02.2022,ADULT SOCIAL CARE,SUPREME CARE SERVICES LTD,"1,352.86",PHY LTS 18-64,HOMECARE - C&V,2103380403,1000059416
02.02.2022,ADULT SOCIAL CARE,SUPREME CARE SERVICES LTD,"1,364.40",PHY LTS 18-64,HOMECARE - C&V,2103380459,1000059416
02.02.2022,ADULT SOCIAL CARE,SUPREME CARE SERVICES LTD,"1,407.09",PHY LTS 18-64,HOMECARE - C&V,2103380330,1000059416
02.02.2022,ADULT SOCIAL CARE,SUPREME CARE SERVICES LTD,"1,432.17",PHY LTS 18-64,HOMECARE - C&V,2103380382,1000059416
02.02.2022,ADULT SOCIAL CARE,SUPREME CARE SERVICES LTD,"1,689.18",PHY LTS 18-64,HOMECARE - C&V,2103380285,1000059416
02.02.2022,ADULT SOCIAL CARE,SUPREME CARE SERVICES LTD,"1,730.60",PHY LTS 18-64,HOMECARE - C&V,2103380232,1000059416
02.02.2022,ADULT SOCIAL CARE,SUPREME CARE SERVICES LTD,"1,914.08",PHY LTS 18-64,HOMECARE - C&V,2103380112,1000059416
02.02.2022,ADULT SOCIAL CARE,SUPREME CARE SERVICES LTD,"2,360.22",PHY LTS 18-64,HOMECARE - C&V,2103380214,1000059416
02.02.2022,ADULT SOCIAL CARE,SUPREME CARE SERVICES LTD,"3,106.77",PHY LTS 18-64,HOMECARE - C&V,2103380427,1000059416
02.02.2022,ADULT SOCIAL CARE,SUPREME CARE SERVICES LTD,"3,619.04",PHY LTS 18-64,HOMECARE - C&V,2103380110,1000059416
02.02.2022,ADULT SOCIAL CARE,THAMES HOMECARE SERVICE LTD,266.76,PHY LTS 18-64,HOMECARE - SPOT,2103380933,1000079295
02.02.2022,ADULT SOCIAL CARE,THAMES HOMECARE SERVICE LTD,294.84,PHY LTS 18-64,HOMECARE - SPOT,2103380821,1000079295
02.02.2022,ADULT SOCIAL CARE,THAMES HOMECARE SERVICE LTD,327.6,PHY LTS 18-64,HOMECARE - SPOT,2103380959,1000079295
02.02.2022,ADULT SOCIAL CARE,THAMES HOMECARE SERVICE LTD,360.36,PHY LTS 18-64,HOMECARE - SPOT,2103380857,1000079295
02.02.2022,ADULT SOCIAL CARE,THAMES HOMECARE SERVICE LTD,374.4,PHY LTS 18-64,HOMECARE - SPOT,2103380870,1000079295
02.02.2022,ADULT SOCIAL CARE,THAMES HOMECARE SERVICE LTD,379.08,PHY LTS 18-64,HOMECARE - SPOT,2103380804,1000079295
02.02.2022,ADULT SOCIAL CARE,THAMES HOMECARE SERVICE LTD,589.68,PHY LTS 18-64,HOMECARE - SPOT,2103380818,1000079295
02.02.2022,ADULT SOCIAL CARE,THAMES HOMECARE SERVICE LTD,589.68,PHY LTS 18-64,HOMECARE - SPOT,2103380906,1000079295
02.02.2022,ADULT SOCIAL CARE,THAMES HOMECARE SERVICE LTD,589.68,PHY LTS 18-64,HOMECARE - SPOT,2103380910,1000079295
02.02.2022,ADULT SOCIAL CARE,THAMES HOMECARE SERVICE LTD,655.2,PHY LTS 18-64,HOMECARE - SPOT,2103380835,1000079295
02.02.2022,ADULT SOCIAL CARE,THAMES HOMECARE SERVICE LTD,720.72,PHY LTS 18-64,HOMECARE - SPOT,2103380884,1000079295
02.02.2022,ADULT SOCIAL CARE,THAMES HOMECARE SERVICE LTD,851.76,PHY LTS 18-64,HOMECARE - SPOT,2103380792,1000079295
02.02.2022,ADULT SOCIAL CARE,THAMES HOMECARE SERVICE LTD,870.48,PHY LTS 18-64,HOMECARE - SPOT,2103380904,1000079295
02.02.2022,ADULT SOCIAL CARE,THAMES HOMECARE SERVICE LTD,936,PHY LTS 18-64,HOMECARE - SPOT,2103380824,1000079295
02.02.2022,ADULT SOCIAL CARE,LONDON CARE LTD,"9,729.14",PHY LTS 65+,HOMECARE - C&V,2103381158,1000003398
02.02.2022,ADULT SOCIAL CARE,SUPREME CARE SERVICES LTD,251.73,PHY LTS 65+,HOMECARE - C&V,2103380255,1000059416
02.02.2022,ADULT SOCIAL CARE,SUPREME CARE SERVICES LTD,256.22,PHY LTS 65+,HOMECARE - C&V,2103380244,1000059416
02.02.2022,ADULT SOCIAL CARE,SUPREME CARE SERVICES LTD,256.22,PHY LTS 65+,HOMECARE - C&V,2103380259,1000059416
02.02.2022,ADULT SOCIAL CARE,SUPREME CARE SERVICES LTD,260.13,PHY LTS 65+,HOMECARE - C&V,2103380430,1000059416
02.02.2022,ADULT SOCIAL CARE,SUPREME CARE SERVICES LTD,260.72,PHY LTS 65+,HOMECARE - C&V,2103380305,1000059416
02.02.2022,ADULT SOCIAL CARE,SUPREME CARE SERVICES LTD,269.7,PHY LTS 65+,HOMECARE - C&V,2103380416,1000059416
02.02.2022,ADULT SOCIAL CARE,SUPREME CARE SERVICES LTD,278.69,PHY LTS 65+,HOMECARE - C&V,2103380292,1000059416
02.02.2022,ADULT SOCIAL CARE,SUPREME CARE SERVICES LTD,287.68,PHY LTS 65+,HOMECARE - C&V,2103380144,1000059416
02.02.2022,ADULT SOCIAL CARE,SUPREME CARE SERVICES LTD,294.24,PHY LTS 65+,HOMECARE - C&V,2103380090,1000059416
02.02.2022,ADULT SOCIAL CARE,SUPREME CARE SERVICES LTD,314.73,PHY LTS 65+,HOMECARE - C&V,2103380290,1000059416
02.02.2022,ADULT SOCIAL CARE,SUPREME CARE SERVICES LTD,320.64,PHY LTS 65+,HOMECARE - C&V,2103380114,1000059416
02.02.2022,ADULT SOCIAL CARE,SUPREME CARE SERVICES LTD,324.54,PHY LTS 65+,HOMECARE - C&V,2103380319,1000059416
02.02.2022,ADULT SOCIAL CARE,SUPREME CARE SERVICES LTD,332.74,PHY LTS 65+,HOMECARE - C&V,2103380328,1000059416
02.02.2022,ADULT SOCIAL CARE,SUPREME CARE SERVICES LTD,334.13,PHY LTS 65+,HOMECARE - C&V,2103380289,1000059416
02.02.2022,ADULT SOCIAL CARE,SUPREME CARE SERVICES LTD,353.62,PHY LTS 65+,HOMECARE - C&V,2103380265,1000059416
02.02.2022,ADULT SOCIAL CARE,SUPREME CARE SERVICES LTD,359.68,PHY LTS 65+,HOMECARE - C&V,2103380178,1000059416
02.02.2022,ADULT SOCIAL CARE,SUPREME CARE SERVICES LTD,368.61,PHY LTS 65+,HOMECARE - C&V,2103380205,1000059416
02.02.2022,ADULT SOCIAL CARE,SUPREME CARE SERVICES LTD,368.73,PHY LTS 65+,HOMECARE - C&V,2103380320,1000059416
02.02.2022,ADULT SOCIAL CARE,SUPREME CARE SERVICES LTD,373.16,PHY LTS 65+,HOMECARE - C&V,2103380350,1000059416
02.02.2022,ADULT SOCIAL CARE,SUPREME CARE SERVICES LTD,373.19,PHY LTS 65+,HOMECARE - C&V,2103380100,1000059416
02.02.2022,ADULT SOCIAL CARE,SUPREME CARE SERVICES LTD,374.92,PHY LTS 65+,HOMECARE - C&V,2103380230,1000059416
02.02.2022,ADULT SOCIAL CARE,SUPREME CARE SERVICES LTD,375.16,PHY LTS 65+,HOMECARE - C&V,2103380400,1000059416
02.02.2022,ADULT SOCIAL CARE,SUPREME CARE SERVICES LTD,375.21,PHY LTS 65+,HOMECARE - C&V,2103380054,1000059416
02.02.2022,ADULT SOCIAL CARE,SUPREME CARE SERVICES LTD,375.83,PHY LTS 65+,HOMECARE - C&V,2103380379,1000059416
02.02.2022,ADULT SOCIAL CARE,SUPREME CARE SERVICES LTD,377.72,PHY LTS 65+,HOMECARE - C&V,2103380256,1000059416
02.02.2022,ADULT SOCIAL CARE,SUPREME CARE SERVICES LTD,377.72,PHY LTS 65+,HOMECARE - C&V,2103380340,1000059416
02.02.2022,ADULT SOCIAL CARE,SUPREME CARE SERVICES LTD,379.98,PHY LTS 65+,HOMECARE - C&V,2103380081,1000059416
02.02.2022,ADULT SOCIAL CARE,SUPREME CARE SERVICES LTD,383.62,PHY LTS 65+,HOMECARE - C&V,2103380298,1000059416
02.02.2022,ADULT SOCIAL CARE,SUPREME CARE SERVICES LTD,386.28,PHY LTS 65+,HOMECARE - C&V,2103380197,1000059416
02.02.2022,ADULT SOCIAL CARE,SUPREME CARE SERVICES LTD,386.63,PHY LTS 65+,HOMECARE - C&V,2103380344,1000059416
02.02.2022,ADULT SOCIAL CARE,SUPREME CARE SERVICES LTD,395.63,PHY LTS 65+,HOMECARE - C&V,2103380329,1000059416
02.02.2022,ADULT SOCIAL CARE,SUPREME CARE SERVICES LTD,395.68,PHY LTS 65+,HOMECARE - C&V,2103380152,1000059416
02.02.2022,ADULT SOCIAL CARE,SUPREME CARE SERVICES LTD,403.39,PHY LTS 65+,HOMECARE - C&V,2103380429,1000059416
02.02.2022,ADULT SOCIAL CARE,SUPREME CARE SERVICES LTD,426.32,PHY LTS 65+,HOMECARE - C&V,2103380086,1000059416
02.02.2022,ADULT SOCIAL CARE,SUPREME CARE SERVICES LTD,431.52,PHY LTS 65+,HOMECARE - C&V,2103380375,1000059416
02.02.2022,ADULT SOCIAL CARE,SUPREME CARE SERVICES LTD,434.87,PHY LTS 65+,HOMECARE - C&V,2103380124,1000059416
02.02.2022,ADULT SOCIAL CARE,SUPREME CARE SERVICES LTD,439.91,PHY LTS 65+,HOMECARE - C&V,2103380235,1000059416
02.02.2022,ADULT SOCIAL CARE,SUPREME CARE SERVICES LTD,446.29,PHY LTS 65+,HOMECARE - C&V,2103380222,1000059416
02.02.2022,ADULT SOCIAL CARE,SUPREME CARE SERVICES LTD,451.01,PHY LTS 65+,HOMECARE - C&V,2103380410,1000059416
02.02.2022,ADULT SOCIAL CARE,SUPREME CARE SERVICES LTD,451.86,PHY LTS 65+,HOMECARE - C&V,2103380104,1000059416
02.02.2022,ADULT SOCIAL CARE,SUPREME CARE SERVICES LTD,454.13,PHY LTS 65+,HOMECARE - C&V,2103380249,1000059416
02.02.2022,ADULT SOCIAL CARE,SUPREME CARE SERVICES LTD,472.05,PHY LTS 65+,HOMECARE - C&V,2103380181,1000059416
02.02.2022,ADULT SOCIAL CARE,SUPREME CARE SERVICES LTD,480.13,PHY LTS 65+,HOMECARE - C&V,2103380377,1000059416
02.02.2022,ADULT SOCIAL CARE,SUPREME CARE SERVICES LTD,481.04,PHY LTS 65+,HOMECARE - C&V,2103380331,1000059416
02.02.2022,ADULT SOCIAL CARE,SUPREME CARE SERVICES LTD,481.73,PHY LTS 65+,HOMECARE - C&V,2103380064,1000059416
02.02.2022,ADULT SOCIAL CARE,SUPREME CARE SERVICES LTD,485.47,PHY LTS 65+,HOMECARE - C&V,2103380346,1000059416
02.02.2022,ADULT SOCIAL CARE,SUPREME CARE SERVICES LTD,490.06,PHY LTS 65+,HOMECARE - C&V,2103380371,1000059416
02.02.2022,ADULT SOCIAL CARE,SUPREME CARE SERVICES LTD,499.02,PHY LTS 65+,HOMECARE - C&V,2103380229,1000059416
02.02.2022,ADULT SOCIAL CARE,SUPREME CARE SERVICES LTD,503.44,PHY LTS 65+,HOMECARE - C&V,2103380339,1000059416
02.02.2022,ADULT SOCIAL CARE,SUPREME CARE SERVICES LTD,508.01,PHY LTS 65+,HOMECARE - C&V,2103380263,1000059416
02.02.2022,ADULT SOCIAL CARE,SUPREME CARE SERVICES LTD,508.55,PHY LTS 65+,HOMECARE - C&V,2103380192,1000059416
02.02.2022,ADULT SOCIAL CARE,SUPREME CARE SERVICES LTD,513.7,PHY LTS 65+,HOMECARE - C&V,2103380160,1000059416
02.02.2022,ADULT SOCIAL CARE,SUPREME CARE SERVICES LTD,519.36,PHY LTS 65+,HOMECARE - C&V,2103380209,1000059416
02.02.2022,ADULT SOCIAL CARE,SUPREME CARE SERVICES LTD,521.44,PHY LTS 65+,HOMECARE - C&V,2103380306,1000059416
02.02.2022,ADULT SOCIAL CARE,SUPREME CARE SERVICES LTD,521.45,PHY LTS 65+,HOMECARE - C&V,2103380204,1000059416
02.02.2022,ADULT SOCIAL CARE,SUPREME CARE SERVICES LTD,530.42,PHY LTS 65+,HOMECARE - C&V,2103380096,1000059416
02.02.2022,ADULT SOCIAL CARE,SUPREME CARE SERVICES LTD,539.44,PHY LTS 65+,HOMECARE - C&V,2103380316,1000059416
02.02.2022,ADULT SOCIAL CARE,SUPREME CARE SERVICES LTD,539.52,PHY LTS 65+,HOMECARE - C&V,2103380322,1000059416
02.02.2022,ADULT SOCIAL CARE,SUPREME CARE SERVICES LTD,540.69,PHY LTS 65+,HOMECARE - C&V,2103380258,1000059416
02.02.2022,ADULT SOCIAL CARE,SUPREME CARE SERVICES LTD,542.77,PHY LTS 65+,HOMECARE - C&V,2103380399,1000059416
02.02.2022,ADULT SOCIAL CARE,SUPREME CARE SERVICES LTD,554.68,PHY LTS 65+,HOMECARE - C&V,2103380248,1000059416
02.02.2022,ADULT SOCIAL CARE,SUPREME CARE SERVICES LTD,557.49,PHY LTS 65+,HOMECARE - C&V,2103380134,1000059416
02.02.2022,ADULT SOCIAL CARE,SUPREME CARE SERVICES LTD,559.48,PHY LTS 65+,HOMECARE - C&V,2103380363,1000059416
02.02.2022,ADULT SOCIAL CARE,SUPREME CARE SERVICES LTD,562.69,PHY LTS 65+,HOMECARE - C&V,2103380225,1000059416
02.02.2022,ADULT SOCIAL CARE,SUPREME CARE SERVICES LTD,579.56,PHY LTS 65+,HOMECARE - C&V,2103380309,1000059416
02.02.2022,ADULT SOCIAL CARE,SUPREME CARE SERVICES LTD,584.46,PHY LTS 65+,HOMECARE - C&V,2103380068,1000059416
02.02.2022,ADULT SOCIAL CARE,SUPREME CARE SERVICES LTD,588.86,PHY LTS 65+,HOMECARE - C&V,2103380311,1000059416
02.02.2022,ADULT SOCIAL CARE,SUPREME CARE SERVICES LTD,588.93,PHY LTS 65+,HOMECARE - C&V,2103380169,1000059416
02.02.2022,ADULT SOCIAL CARE,SUPREME CARE SERVICES LTD,592.69,PHY LTS 65+,HOMECARE - C&V,2103380404,1000059416
02.02.2022,ADULT SOCIAL CARE,SUPREME CARE SERVICES LTD,607.51,PHY LTS 65+,HOMECARE - C&V,2103380237,1000059416
02.02.2022,ADULT SOCIAL CARE,SUPREME CARE SERVICES LTD,611.4,PHY LTS 65+,HOMECARE - C&V,2103380150,1000059416
02.02.2022,ADULT SOCIAL CARE,SUPREME CARE SERVICES LTD,612.32,PHY LTS 65+,HOMECARE - C&V,2103380153,1000059416
02.02.2022,ADULT SOCIAL CARE,SUPREME CARE SERVICES LTD,613.8,PHY LTS 65+,HOMECARE - C&V,2103380442,1000059416
02.02.2022,ADULT SOCIAL CARE,SUPREME CARE SERVICES LTD,615.95,PHY LTS 65+,HOMECARE - C&V,2103380062,1000059416
02.02.2022,ADULT SOCIAL CARE,SUPREME CARE SERVICES LTD,618.24,PHY LTS 65+,HOMECARE - C&V,2103380452,1000059416
02.02.2022,ADULT SOCIAL CARE,SUPREME CARE SERVICES LTD,620.62,PHY LTS 65+,HOMECARE - C&V,2103380170,1000059416
02.02.2022,ADULT SOCIAL CARE,SUPREME CARE SERVICES LTD,625.14,PHY LTS 65+,HOMECARE - C&V,2103380283,1000059416
02.02.2022,ADULT SOCIAL CARE,SUPREME CARE SERVICES LTD,625.45,PHY LTS 65+,HOMECARE - C&V,2103380317,1000059416
02.02.2022,ADULT SOCIAL CARE,SUPREME CARE SERVICES LTD,625.7,PHY LTS 65+,HOMECARE - C&V,2103380148,1000059416
02.02.2022,ADULT SOCIAL CARE,SUPREME CARE SERVICES LTD,626.78,PHY LTS 65+,HOMECARE - C&V,2103380139,1000059416
02.02.2022,ADULT SOCIAL CARE,SUPREME CARE SERVICES LTD,629.32,PHY LTS 65+,HOMECARE - C&V,2103380417,1000059416
02.02.2022,ADULT SOCIAL CARE,SUPREME CARE SERVICES LTD,629.44,PHY LTS 65+,HOMECARE - C&V,2103380332,1000059416
02.02.2022,ADULT SOCIAL CARE,SUPREME CARE SERVICES LTD,632.38,PHY LTS 65+,HOMECARE - C&V,2103380220,1000059416
02.02.2022,ADULT SOCIAL CARE,SUPREME CARE SERVICES LTD,632.38,PHY LTS 65+,HOMECARE - C&V,2103380279,1000059416
02.02.2022,ADULT SOCIAL CARE,SUPREME CARE SERVICES LTD,635.34,PHY LTS 65+,HOMECARE - C&V,2103380092,1000059416
02.02.2022,ADULT SOCIAL CARE,SUPREME CARE SERVICES LTD,648.89,PHY LTS 65+,HOMECARE - C&V,2103380271,1000059416
02.02.2022,ADULT SOCIAL CARE,SUPREME CARE SERVICES LTD,648.9,PHY LTS 65+,HOMECARE - C&V,2103380314,1000059416
02.02.2022,ADULT SOCIAL CARE,SUPREME CARE SERVICES LTD,650.88,PHY LTS 65+,HOMECARE - C&V,2103380175,1000059416
02.02.2022,ADULT SOCIAL CARE,SUPREME CARE SERVICES LTD,651.93,PHY LTS 65+,HOMECARE - C&V,2103380055,1000059416
02.02.2022,ADULT SOCIAL CARE,SUPREME CARE SERVICES LTD,656.62,PHY LTS 65+,HOMECARE - C&V,2103380077,1000059416
02.02.2022,ADULT SOCIAL CARE,SUPREME CARE SERVICES LTD,657.08,PHY LTS 65+,HOMECARE - C&V,2103380079,1000059416
02.02.2022,ADULT SOCIAL CARE,SUPREME CARE SERVICES LTD,669.3,PHY LTS 65+,HOMECARE - C&V,2103380411,1000059416
02.02.2022,ADULT SOCIAL CARE,SUPREME CARE SERVICES LTD,669.85,PHY LTS 65+,HOMECARE - C&V,2103380083,1000059416
02.02.2022,ADULT SOCIAL CARE,SUPREME CARE SERVICES LTD,673.64,PHY LTS 65+,HOMECARE - C&V,2103380465,1000059416
02.02.2022,ADULT SOCIAL CARE,SUPREME CARE SERVICES LTD,674.42,PHY LTS 65+,HOMECARE - C&V,2103380073,1000059416
02.02.2022,ADULT SOCIAL CARE,SUPREME CARE SERVICES LTD,678.15,PHY LTS 65+,HOMECARE - C&V,2103380303,1000059416
02.02.2022,ADULT SOCIAL CARE,SUPREME CARE SERVICES LTD,686.45,PHY LTS 65+,HOMECARE - C&V,2103380066,1000059416
02.02.2022,ADULT SOCIAL CARE,SUPREME CARE SERVICES LTD,691.03,PHY LTS 65+,HOMECARE - C&V,2103380201,1000059416
02.02.2022,ADULT SOCIAL CARE,SUPREME CARE SERVICES LTD,693.19,PHY LTS 65+,HOMECARE - C&V,2103380238,1000059416
02.02.2022,ADULT SOCIAL CARE,SUPREME CARE SERVICES LTD,694.98,PHY LTS 65+,HOMECARE - C&V,2103380421,1000059416
02.02.2022,ADULT SOCIAL CARE,SUPREME CARE SERVICES LTD,696.87,PHY LTS 65+,HOMECARE - C&V,2103380161,1000059416
02.02.2022,ADULT SOCIAL CARE,SUPREME CARE SERVICES LTD,701.24,PHY LTS 65+,HOMECARE - C&V,2103380348,1000059416
02.02.2022,ADULT SOCIAL CARE,SUPREME CARE SERVICES LTD,706.73,PHY LTS 65+,HOMECARE - C&V,2103380183,1000059416
02.02.2022,ADULT SOCIAL CARE,SUPREME CARE SERVICES LTD,724.95,PHY LTS 65+,HOMECARE - C&V,2103380126,1000059416
02.02.2022,ADULT SOCIAL CARE,SUPREME CARE SERVICES LTD,732.74,PHY LTS 65+,HOMECARE - C&V,2103380074,1000059416
02.02.2022,ADULT SOCIAL CARE,SUPREME CARE SERVICES LTD,747.49,PHY LTS 65+,HOMECARE - C&V,2103380448,1000059416
02.02.2022,ADULT SOCIAL CARE,SUPREME CARE SERVICES LTD,750.4,PHY LTS 65+,HOMECARE - C&V,2103380368,1000059416
02.02.2022,ADULT SOCIAL CARE,SUPREME CARE SERVICES LTD,750.73,PHY LTS 65+,HOMECARE - C&V,2103380185,1000059416
02.02.2022,ADULT SOCIAL CARE,SUPREME CARE SERVICES LTD,755.16,PHY LTS 65+,HOMECARE - C&V,2103380264,1000059416
02.02.2022,ADULT SOCIAL CARE,SUPREME CARE SERVICES LTD,759.77,PHY LTS 65+,HOMECARE - C&V,2103380227,1000059416
02.02.2022,ADULT SOCIAL CARE,SUPREME CARE SERVICES LTD,759.81,PHY LTS 65+,HOMECARE - C&V,2103380432,1000059416
02.02.2022,ADULT SOCIAL CARE,SUPREME CARE SERVICES LTD,773.16,PHY LTS 65+,HOMECARE - C&V,2103380419,1000059416
02.02.2022,ADULT SOCIAL CARE,SUPREME CARE SERVICES LTD,788.54,PHY LTS 65+,HOMECARE - C&V,2103380383,1000059416
02.02.2022,ADULT SOCIAL CARE,SUPREME CARE SERVICES LTD,788.69,PHY LTS 65+,HOMECARE - C&V,2103380390,1000059416
02.02.2022,ADULT SOCIAL CARE,SUPREME CARE SERVICES LTD,803.42,PHY LTS 65+,HOMECARE - C&V,2103380174,1000059416
02.02.2022,ADULT SOCIAL CARE,SUPREME CARE SERVICES LTD,809.11,PHY LTS 65+,HOMECARE - C&V,2103380184,1000059416
02.02.2022,ADULT SOCIAL CARE,SUPREME CARE SERVICES LTD,821.69,PHY LTS 65+,HOMECARE - C&V,2103380145,1000059416
02.02.2022,ADULT SOCIAL CARE,SUPREME CARE SERVICES LTD,839.32,PHY LTS 65+,HOMECARE - C&V,2103380392,1000059416
02.02.2022,ADULT SOCIAL CARE,SUPREME CARE SERVICES LTD,840.05,PHY LTS 65+,HOMECARE - C&V,2103380136,1000059416
02.02.2022,ADULT SOCIAL CARE,SUPREME CARE SERVICES LTD,840.56,PHY LTS 65+,HOMECARE - C&V,2103380143,1000059416
02.02.2022,ADULT SOCIAL CARE,SUPREME CARE SERVICES LTD,840.57,PHY LTS 65+,HOMECARE - C&V,2103380075,1000059416
02.02.2022,ADULT SOCIAL CARE,SUPREME CARE SERVICES LTD,843.61,PHY LTS 65+,HOMECARE - C&V,2103380228,1000059416
02.02.2022,ADULT SOCIAL CARE,SUPREME CARE SERVICES LTD,843.67,PHY LTS 65+,HOMECARE - C&V,2103380281,1000059416
02.02.2022,ADULT SOCIAL CARE,SUPREME CARE SERVICES LTD,849.74,PHY LTS 65+,HOMECARE - C&V,2103380118,1000059416
02.02.2022,ADULT SOCIAL CARE,SUPREME CARE SERVICES LTD,857.14,PHY LTS 65+,HOMECARE - C&V,2103380280,1000059416
02.02.2022,ADULT SOCIAL CARE,SUPREME CARE SERVICES LTD,858.6,PHY LTS 65+,HOMECARE - C&V,2103380455,1000059416
02.02.2022,ADULT SOCIAL CARE,SUPREME CARE SERVICES LTD,867.59,PHY LTS 65+,HOMECARE - C&V,2103380342,1000059416
02.02.2022,ADULT SOCIAL CARE,SUPREME CARE SERVICES LTD,873.61,PHY LTS 65+,HOMECARE - C&V,2103380218,1000059416
02.02.2022,ADULT SOCIAL CARE,SUPREME CARE SERVICES LTD,874.14,PHY LTS 65+,HOMECARE - C&V,2103380415,1000059416
02.02.2022,ADULT SOCIAL CARE,SUPREME CARE SERVICES LTD,876.55,PHY LTS 65+,HOMECARE - C&V,2103380167,1000059416
02.02.2022,ADULT SOCIAL CARE,SUPREME CARE SERVICES LTD,876.66,PHY LTS 65+,HOMECARE - C&V,2103380165,1000059416
02.02.2022,ADULT SOCIAL CARE,SUPREME CARE SERVICES LTD,882.84,PHY LTS 65+,HOMECARE - C&V,2103380171,1000059416
02.02.2022,ADULT SOCIAL CARE,SUPREME CARE SERVICES LTD,890.15,PHY LTS 65+,HOMECARE - C&V,2103380299,1000059416
02.02.2022,ADULT SOCIAL CARE,SUPREME CARE SERVICES LTD,891.26,PHY LTS 65+,HOMECARE - C&V,2103380101,1000059416
02.02.2022,ADULT SOCIAL CARE,SUPREME CARE SERVICES LTD,891.61,PHY LTS 65+,HOMECARE - C&V,2103380200,1000059416
02.02.2022,ADULT SOCIAL CARE,SUPREME CARE SERVICES LTD,899.15,PHY LTS 65+,HOMECARE - C&V,2103380157,1000059416
02.02.2022,ADULT SOCIAL CARE,SUPREME CARE SERVICES LTD,899.25,PHY LTS 65+,HOMECARE - C&V,2103380063,1000059416
02.02.2022,ADULT SOCIAL CARE,SUPREME CARE SERVICES LTD,912.46,PHY LTS 65+,HOMECARE - C&V,2103380140,1000059416
02.02.2022,ADULT SOCIAL CARE,SUPREME CARE SERVICES LTD,920.58,PHY LTS 65+,HOMECARE - C&V,2103380151,1000059416
02.02.2022,ADULT SOCIAL CARE,SUPREME CARE SERVICES LTD,921.6,PHY LTS 65+,HOMECARE - C&V,2103380304,1000059416
02.02.2022,ADULT SOCIAL CARE,SUPREME CARE SERVICES LTD,926.08,PHY LTS 65+,HOMECARE - C&V,2103380156,1000059416
02.02.2022,ADULT SOCIAL CARE,SUPREME CARE SERVICES LTD,933.83,PHY LTS 65+,HOMECARE - C&V,2103380445,1000059416
02.02.2022,ADULT SOCIAL CARE,SUPREME CARE SERVICES LTD,935.63,PHY LTS 65+,HOMECARE - C&V,2103380253,1000059416
02.02.2022,ADULT SOCIAL CARE,SUPREME CARE SERVICES LTD,943.12,PHY LTS 65+,HOMECARE - C&V,2103380284,1000059416
02.02.2022,ADULT SOCIAL CARE,SUPREME CARE SERVICES LTD,949.98,PHY LTS 65+,HOMECARE - C&V,2103380269,1000059416
02.02.2022,ADULT SOCIAL CARE,SUPREME CARE SERVICES LTD,950.36,PHY LTS 65+,HOMECARE - C&V,2103380116,1000059416
02.02.2022,ADULT SOCIAL CARE,SUPREME CARE SERVICES LTD,956.27,PHY LTS 65+,HOMECARE - C&V,2103380398,1000059416
02.02.2022,ADULT SOCIAL CARE,SUPREME CARE SERVICES LTD,979.41,PHY LTS 65+,HOMECARE - C&V,2103380105,1000059416
02.02.2022,ADULT SOCIAL CARE,SUPREME CARE SERVICES LTD,984.53,PHY LTS 65+,HOMECARE - C&V,2103380261,1000059416
02.02.2022,ADULT SOCIAL CARE,SUPREME CARE SERVICES LTD,984.89,PHY LTS 65+,HOMECARE - C&V,2103380447,1000059416
02.02.2022,ADULT SOCIAL CARE,SUPREME CARE SERVICES LTD,985.91,PHY LTS 65+,HOMECARE - C&V,2103380211,1000059416
02.02.2022,ADULT SOCIAL CARE,SUPREME CARE SERVICES LTD,"1,001.95",PHY LTS 65+,HOMECARE - C&V,2103380444,1000059416
02.02.2022,ADULT SOCIAL CARE,SUPREME CARE SERVICES LTD,"1,003.44",PHY LTS 65+,HOMECARE - C&V,2103380173,1000059416
02.02.2022,ADULT SOCIAL CARE,SUPREME CARE SERVICES LTD,"1,005.38",PHY LTS 65+,HOMECARE - C&V,2103380308,1000059416
02.02.2022,ADULT SOCIAL CARE,SUPREME CARE SERVICES LTD,"1,006.12",PHY LTS 65+,HOMECARE - C&V,2103380367,1000059416
02.02.2022,ADULT SOCIAL CARE,SUPREME CARE SERVICES LTD,"1,011.40",PHY LTS 65+,HOMECARE - C&V,2103380294,1000059416
02.02.2022,ADULT SOCIAL CARE,SUPREME CARE SERVICES LTD,"1,011.64",PHY LTS 65+,HOMECARE - C&V,2103380250,1000059416
02.02.2022,ADULT SOCIAL CARE,SUPREME CARE SERVICES LTD,"1,018.76",PHY LTS 65+,HOMECARE - C&V,2103380384,1000059416
02.02.2022,ADULT SOCIAL CARE,SUPREME CARE SERVICES LTD,"1,029.46",PHY LTS 65+,HOMECARE - C&V,2103380082,1000059416
02.02.2022,ADULT SOCIAL CARE,SUPREME CARE SERVICES LTD,"1,033.88",PHY LTS 65+,HOMECARE - C&V,2103380180,1000059416
02.02.2022,ADULT SOCIAL CARE,SUPREME CARE SERVICES LTD,"1,035.69",PHY LTS 65+,HOMECARE - C&V,2103380176,1000059416
02.02.2022,ADULT SOCIAL CARE,SUPREME CARE SERVICES LTD,"1,042.88",PHY LTS 65+,HOMECARE - C&V,2103380365,1000059416
02.02.2022,ADULT SOCIAL CARE,SUPREME CARE SERVICES LTD,"1,047.48",PHY LTS 65+,HOMECARE - C&V,2103380219,1000059416
02.02.2022,ADULT SOCIAL CARE,SUPREME CARE SERVICES LTD,"1,052.17",PHY LTS 65+,HOMECARE - C&V,2103380423,1000059416
02.02.2022,ADULT SOCIAL CARE,SUPREME CARE SERVICES LTD,"1,063.59",PHY LTS 65+,HOMECARE - C&V,2103380252,1000059416
02.02.2022,ADULT SOCIAL CARE,SUPREME CARE SERVICES LTD,"1,065.32",PHY LTS 65+,HOMECARE - C&V,2103380188,1000059416
02.02.2022,ADULT SOCIAL CARE,SUPREME CARE SERVICES LTD,"1,072.51",PHY LTS 65+,HOMECARE - C&V,2103380266,1000059416
02.02.2022,ADULT SOCIAL CARE,SUPREME CARE SERVICES LTD,"1,074.60",PHY LTS 65+,HOMECARE - C&V,2103380098,1000059416
02.02.2022,ADULT SOCIAL CARE,SUPREME CARE SERVICES LTD,"1,078.94",PHY LTS 65+,HOMECARE - C&V,2103380385,1000059416
02.02.2022,ADULT SOCIAL CARE,SUPREME CARE SERVICES LTD,"1,083.46",PHY LTS 65+,HOMECARE - C&V,2103380131,1000059416
02.02.2022,ADULT SOCIAL CARE,SUPREME CARE SERVICES LTD,"1,102.37",PHY LTS 65+,HOMECARE - C&V,2103380424,1000059416
02.02.2022,ADULT SOCIAL CARE,SUPREME CARE SERVICES LTD,"1,102.58",PHY LTS 65+,HOMECARE - C&V,2103380242,1000059416
02.02.2022,ADULT SOCIAL CARE,SUPREME CARE SERVICES LTD,"1,105.82",PHY LTS 65+,HOMECARE - C&V,2103380391,1000059416
02.02.2022,ADULT SOCIAL CARE,SUPREME CARE SERVICES LTD,"1,112.73",PHY LTS 65+,HOMECARE - C&V,2103380434,1000059416
02.02.2022,ADULT SOCIAL CARE,SUPREME CARE SERVICES LTD,"1,132.77",PHY LTS 65+,HOMECARE - C&V,2103380120,1000059416
02.02.2022,ADULT SOCIAL CARE,SUPREME CARE SERVICES LTD,"1,146.26",PHY LTS 65+,HOMECARE - C&V,2103380273,1000059416
02.02.2022,ADULT SOCIAL CARE,SUPREME CARE SERVICES LTD,"1,153.76",PHY LTS 65+,HOMECARE - C&V,2103380347,1000059416
02.02.2022,ADULT SOCIAL CARE,SUPREME CARE SERVICES LTD,"1,173.20",PHY LTS 65+,HOMECARE - C&V,2103380349,1000059416
02.02.2022,ADULT SOCIAL CARE,SUPREME CARE SERVICES LTD,"1,174.77",PHY LTS 65+,HOMECARE - C&V,2103380297,1000059416
02.02.2022,ADULT SOCIAL CARE,SUPREME CARE SERVICES LTD,"1,185.96",PHY LTS 65+,HOMECARE - C&V,2103380402,1000059416
02.02.2022,ADULT SOCIAL CARE,SUPREME CARE SERVICES LTD,"1,186.84",PHY LTS 65+,HOMECARE - C&V,2103380085,1000059416
02.02.2022,ADULT SOCIAL CARE,SUPREME CARE SERVICES LTD,"1,189.37",PHY LTS 65+,HOMECARE - C&V,2103380199,1000059416
02.02.2022,ADULT SOCIAL CARE,SUPREME CARE SERVICES LTD,"1,191.23",PHY LTS 65+,HOMECARE - C&V,2103380440,1000059416
02.02.2022,ADULT SOCIAL CARE,SUPREME CARE SERVICES LTD,"1,195.82",PHY LTS 65+,HOMECARE - C&V,2103380087,1000059416
02.02.2022,ADULT SOCIAL CARE,SUPREME CARE SERVICES LTD,"1,195.86",PHY LTS 65+,HOMECARE - C&V,2103380187,1000059416
02.02.2022,ADULT SOCIAL CARE,SUPREME CARE SERVICES LTD,"1,202.49",PHY LTS 65+,HOMECARE - C&V,2103380372,1000059416
02.02.2022,ADULT SOCIAL CARE,SUPREME CARE SERVICES LTD,"1,202.57",PHY LTS 65+,HOMECARE - C&V,2103380450,1000059416
02.02.2022,ADULT SOCIAL CARE,SUPREME CARE SERVICES LTD,"1,215.02",PHY LTS 65+,HOMECARE - C&V,2103380456,1000059416
02.02.2022,ADULT SOCIAL CARE,SUPREME CARE SERVICES LTD,"1,231.68",PHY LTS 65+,HOMECARE - C&V,2103380366,1000059416
02.02.2022,ADULT SOCIAL CARE,SUPREME CARE SERVICES LTD,"1,240.78",PHY LTS 65+,HOMECARE - C&V,2103380234,1000059416
02.02.2022,ADULT SOCIAL CARE,SUPREME CARE SERVICES LTD,"1,249.16",PHY LTS 65+,HOMECARE - C&V,2103380443,1000059416
02.02.2022,ADULT SOCIAL CARE,SUPREME CARE SERVICES LTD,"1,258.68",PHY LTS 65+,HOMECARE - C&V,2103380133,1000059416
02.02.2022,ADULT SOCIAL CARE,SUPREME CARE SERVICES LTD,"1,268.53",PHY LTS 65+,HOMECARE - C&V,2103380191,1000059416
02.02.2022,ADULT SOCIAL CARE,SUPREME CARE SERVICES LTD,"1,276.60",PHY LTS 65+,HOMECARE - C&V,2103380190,1000059416
02.02.2022,ADULT SOCIAL CARE,SUPREME CARE SERVICES LTD,"1,296.21",PHY LTS 65+,HOMECARE - C&V,2103380069,1000059416
02.02.2022,ADULT SOCIAL CARE,SUPREME CARE SERVICES LTD,"1,321.70",PHY LTS 65+,HOMECARE - C&V,2103380420,1000059416
02.02.2022,ADULT SOCIAL CARE,SUPREME CARE SERVICES LTD,"1,345.50",PHY LTS 65+,HOMECARE - C&V,2103380433,1000059416
02.02.2022,ADULT SOCIAL CARE,SUPREME CARE SERVICES LTD,"1,353.04",PHY LTS 65+,HOMECARE - C&V,2103380088,1000059416
02.02.2022,ADULT SOCIAL CARE,SUPREME CARE SERVICES LTD,"1,360.13",PHY LTS 65+,HOMECARE - C&V,2103380093,1000059416
02.02.2022,ADULT SOCIAL CARE,SUPREME CARE SERVICES LTD,"1,447.51",PHY LTS 65+,HOMECARE - C&V,2103380431,1000059416
02.02.2022,ADULT SOCIAL CARE,SUPREME CARE SERVICES LTD,"1,519.98",PHY LTS 65+,HOMECARE - C&V,2103380414,1000059416
02.02.2022,ADULT SOCIAL CARE,SUPREME CARE SERVICES LTD,"1,539.27",PHY LTS 65+,HOMECARE - C&V,2103380067,1000059416
02.02.2022,ADULT SOCIAL CARE,SUPREME CARE SERVICES LTD,"1,546.71",PHY LTS 65+,HOMECARE - C&V,2103380123,1000059416
02.02.2022,ADULT SOCIAL CARE,SUPREME CARE SERVICES LTD,"1,573.62",PHY LTS 65+,HOMECARE - C&V,2103380099,1000059416
02.02.2022,ADULT SOCIAL CARE,SUPREME CARE SERVICES LTD,"1,585.92",PHY LTS 65+,HOMECARE - C&V,2103380076,1000059416
02.02.2022,ADULT SOCIAL CARE,SUPREME CARE SERVICES LTD,"1,649.82",PHY LTS 65+,HOMECARE - C&V,2103380239,1000059416
02.02.2022,ADULT SOCIAL CARE,SUPREME CARE SERVICES LTD,"1,685.92",PHY LTS 65+,HOMECARE - C&V,2103380426,1000059416
02.02.2022,ADULT SOCIAL CARE,SUPREME CARE SERVICES LTD,"1,711.10",PHY LTS 65+,HOMECARE - C&V,2103380189,1000059416
02.02.2022,ADULT SOCIAL CARE,SUPREME CARE SERVICES LTD,"1,769.82",PHY LTS 65+,HOMECARE - C&V,2103380343,1000059416
02.02.2022,ADULT SOCIAL CARE,SUPREME CARE SERVICES LTD,"1,807.64",PHY LTS 65+,HOMECARE - C&V,2103380113,1000059416
02.02.2022,ADULT SOCIAL CARE,SUPREME CARE SERVICES LTD,"1,923.04",PHY LTS 65+,HOMECARE - C&V,2103380091,1000059416
02.02.2022,ADULT SOCIAL CARE,SUPREME CARE SERVICES LTD,"2,023.16",PHY LTS 65+,HOMECARE - C&V,2103380215,1000059416
02.02.2022,ADULT SOCIAL CARE,SUPREME CARE SERVICES LTD,"2,150.43",PHY LTS 65+,HOMECARE - C&V,2103380359,1000059416
02.02.2022,ADULT SOCIAL CARE,SUPREME CARE SERVICES LTD,"2,171.12",PHY LTS 65+,HOMECARE - C&V,2103380182,1000059416
02.02.2022,ADULT SOCIAL CARE,SUPREME CARE SERVICES LTD,"2,268.10",PHY LTS 65+,HOMECARE - C&V,2103380362,1000059416
02.02.2022,ADULT SOCIAL CARE,SUPREME CARE SERVICES LTD,"2,302.11",PHY LTS 65+,HOMECARE - C&V,2103380413,1000059416
02.02.2022,ADULT SOCIAL CARE,SUPREME CARE SERVICES LTD,"2,355.04",PHY LTS 65+,HOMECARE - C&V,2103380435,1000059416
02.02.2022,ADULT SOCIAL CARE,SUPREME CARE SERVICES LTD,"2,366.44",PHY LTS 65+,HOMECARE - C&V,2103380089,1000059416
02.02.2022,ADULT SOCIAL CARE,SUPREME CARE SERVICES LTD,"2,369.88",PHY LTS 65+,HOMECARE - C&V,2103380378,1000059416
02.02.2022,ADULT SOCIAL CARE,SUPREME CARE SERVICES LTD,"2,413.42",PHY LTS 65+,HOMECARE - C&V,2103380135,1000059416
02.02.2022,ADULT SOCIAL CARE,SUPREME CARE SERVICES LTD,"2,443.18",PHY LTS 65+,HOMECARE - C&V,2103380109,1000059416
02.02.2022,ADULT SOCIAL CARE,SUPREME CARE SERVICES LTD,"2,450.15",PHY LTS 65+,HOMECARE - C&V,2103380163,1000059416
02.02.2022,ADULT SOCIAL CARE,SUPREME CARE SERVICES LTD,"2,464.14",PHY LTS 65+,HOMECARE - C&V,2103380221,1000059416
02.02.2022,ADULT SOCIAL CARE,SUPREME CARE SERVICES LTD,"2,467.49",PHY LTS 65+,HOMECARE - C&V,2103380451,1000059416
02.02.2022,ADULT SOCIAL CARE,SUPREME CARE SERVICES LTD,"2,486.14",PHY LTS 65+,HOMECARE - C&V,2103380418,1000059416
02.02.2022,ADULT SOCIAL CARE,SUPREME CARE SERVICES LTD,"2,580.27",PHY LTS 65+,HOMECARE - C&V,2103380155,1000059416
02.02.2022,ADULT SOCIAL CARE,SUPREME CARE SERVICES LTD,"2,762.82",PHY LTS 65+,HOMECARE - C&V,2103380108,1000059416
02.02.2022,ADULT SOCIAL CARE,SUPREME CARE SERVICES LTD,"2,813.94",PHY LTS 65+,HOMECARE - C&V,2103380095,1000059416
02.02.2022,ADULT SOCIAL CARE,SUPREME CARE SERVICES LTD,"2,931.73",PHY LTS 65+,HOMECARE - C&V,2103380179,1000059416
02.02.2022,ADULT SOCIAL CARE,SUPREME CARE SERVICES LTD,"2,967.05",PHY LTS 65+,HOMECARE - C&V,2103380449,1000059416
02.02.2022,ADULT SOCIAL CARE,SUPREME CARE SERVICES LTD,"3,009.84",PHY LTS 65+,HOMECARE - C&V,2103380376,1000059416
02.02.2022,ADULT SOCIAL CARE,SUPREME CARE SERVICES LTD,"3,156.05",PHY LTS 65+,HOMECARE - C&V,2103380393,1000059416
02.02.2022,ADULT SOCIAL CARE,SUPREME CARE SERVICES LTD,"4,055.24",PHY LTS 65+,HOMECARE - C&V,2103380236,1000059416
02.02.2022,ADULT SOCIAL CARE,THAMES HOMECARE SERVICE LTD,332.28,PHY LTS 65+,HOMECARE - C&V,2103380846,1000079295
02.02.2022,ADULT SOCIAL CARE,THAMES HOMECARE SERVICE LTD,332.28,PHY LTS 65+,HOMECARE - C&V,2103380882,1000079295
02.02.2022,ADULT SOCIAL CARE,THAMES HOMECARE SERVICE LTD,393.12,PHY LTS 65+,HOMECARE - C&V,2103380868,1000079295
02.02.2022,ADULT SOCIAL CARE,SAGECARE LTD,"9,049.76",PHY LTS 65+,HOMECARE - C&V,2103381144,1000080924
02.02.2022,ADULT SOCIAL CARE,SAGECARE LTD,"9,530.17",PHY LTS 65+,HOMECARE - C&V,2103381143,1000080924
02.02.2022,ADULT SOCIAL CARE,SWK DISABLEMENT ASSN,"1,302.32",PHY LTS 65+,HOMECARE - SPOT,2103380775,1000011698
02.02.2022,ADULT SOCIAL CARE,SWK DISABLEMENT ASSN,"1,302.32",PHY LTS 65+,HOMECARE - SPOT,2103380776,1000011698
02.02.2022,ADULT SOCIAL CARE,SWK DISABLEMENT ASSN,"1,302.32",PHY LTS 65+,HOMECARE - SPOT,2103380777,1000011698
02.02.2022,ADULT SOCIAL CARE,SWK DISABLEMENT ASSN,"1,302.32",PHY LTS 65+,HOMECARE - SPOT,2103380778,1000011698
02.02.2022,ADULT SOCIAL CARE,SWK DISABLEMENT ASSN,"1,302.32",PHY LTS 65+,HOMECARE - SPOT,2103380779,1000011698
02.02.2022,ADULT SOCIAL CARE,SWK DISABLEMENT ASSN,"1,302.32",PHY LTS 65+,HOMECARE - SPOT,2103380781,1000011698
02.02.2022,ADULT SOCIAL CARE,SWK DISABLEMENT ASSN,"1,315.61",PHY LTS 65+,HOMECARE - SPOT,2103380780,1000011698
02.02.2022,ADULT SOCIAL CARE,THAMES HOMECARE SERVICE LTD,262.08,PHY LTS 65+,HOMECARE - SPOT,2103380791,1000079295
02.02.2022,ADULT SOCIAL CARE,THAMES HOMECARE SERVICE LTD,262.08,PHY LTS 65+,HOMECARE - SPOT,2103380869,1000079295
02.02.2022,ADULT SOCIAL CARE,THAMES HOMECARE SERVICE LTD,271.44,PHY LTS 65+,HOMECARE - SPOT,2103380788,1000079295
02.02.2022,ADULT SOCIAL CARE,THAMES HOMECARE SERVICE LTD,271.44,PHY LTS 65+,HOMECARE - SPOT,2103380814,1000079295
02.02.2022,ADULT SOCIAL CARE,THAMES HOMECARE SERVICE LTD,276.12,PHY LTS 65+,HOMECARE - SPOT,2103380885,1000079295
02.02.2022,ADULT SOCIAL CARE,THAMES HOMECARE SERVICE LTD,280.8,PHY LTS 65+,HOMECARE - SPOT,2103380801,1000079295
02.02.2022,ADULT SOCIAL CARE,THAMES HOMECARE SERVICE LTD,280.8,PHY LTS 65+,HOMECARE - SPOT,2103380922,1000079295
02.02.2022,ADULT SOCIAL CARE,THAMES HOMECARE SERVICE LTD,294.84,PHY LTS 65+,HOMECARE - SPOT,2103380799,1000079295
02.02.2022,ADULT SOCIAL CARE,THAMES HOMECARE SERVICE LTD,294.84,PHY LTS 65+,HOMECARE - SPOT,2103380833,1000079295
02.02.2022,ADULT SOCIAL CARE,THAMES HOMECARE SERVICE LTD,294.84,PHY LTS 65+,HOMECARE - SPOT,2103380864,1000079295
02.02.2022,ADULT SOCIAL CARE,THAMES HOMECARE SERVICE LTD,294.84,PHY LTS 65+,HOMECARE - SPOT,2103380923,1000079295
02.02.2022,ADULT SOCIAL CARE,THAMES HOMECARE SERVICE LTD,294.84,PHY LTS 65+,HOMECARE - SPOT,2103380943,1000079295
02.02.2022,ADULT SOCIAL CARE,THAMES HOMECARE SERVICE LTD,294.84,PHY LTS 65+,HOMECARE - SPOT,2103380944,1000079295
02.02.2022,ADULT SOCIAL CARE,THAMES HOMECARE SERVICE LTD,313.56,PHY LTS 65+,HOMECARE - SPOT,2103380867,1000079295
02.02.2022,ADULT SOCIAL CARE,THAMES HOMECARE SERVICE LTD,332.28,PHY LTS 65+,HOMECARE - SPOT,2103380795,1000079295
02.02.2022,ADULT SOCIAL CARE,THAMES HOMECARE SERVICE LTD,332.28,PHY LTS 65+,HOMECARE - SPOT,2103380920,1000079295
02.02.2022,ADULT SOCIAL CARE,THAMES HOMECARE SERVICE LTD,336.96,PHY LTS 65+,HOMECARE - SPOT,2103380832,1000079295
02.02.2022,ADULT SOCIAL CARE,THAMES HOMECARE SERVICE LTD,360.36,PHY LTS 65+,HOMECARE - SPOT,2103380894,1000079295
02.02.2022,ADULT SOCIAL CARE,THAMES HOMECARE SERVICE LTD,360.36,PHY LTS 65+,HOMECARE - SPOT,2103380915,1000079295
02.02.2022,ADULT SOCIAL CARE,THAMES HOMECARE SERVICE LTD,393.12,PHY LTS 65+,HOMECARE - SPOT,2103380914,1000079295
02.02.2022,ADULT SOCIAL CARE,THAMES HOMECARE SERVICE LTD,402.48,PHY LTS 65+,HOMECARE - SPOT,2103380912,1000079295
02.02.2022,ADULT SOCIAL CARE,THAMES HOMECARE SERVICE LTD,416.52,PHY LTS 65+,HOMECARE - SPOT,2103380945,1000079295
02.02.2022,ADULT SOCIAL CARE,THAMES HOMECARE SERVICE LTD,458.64,PHY LTS 65+,HOMECARE - SPOT,2103380819,1000079295
02.02.2022,ADULT SOCIAL CARE,THAMES HOMECARE SERVICE LTD,458.64,PHY LTS 65+,HOMECARE - SPOT,2103380928,1000079295
02.02.2022,ADULT SOCIAL CARE,THAMES HOMECARE SERVICE LTD,491.4,PHY LTS 65+,HOMECARE - SPOT,2103380907,1000079295
02.02.2022,ADULT SOCIAL CARE,THAMES HOMECARE SERVICE LTD,491.4,PHY LTS 65+,HOMECARE - SPOT,2103380918,1000079295
02.02.2022,ADULT SOCIAL CARE,THAMES HOMECARE SERVICE LTD,524.16,PHY LTS 65+,HOMECARE - SPOT,2103380829,1000079295
02.02.2022,ADULT SOCIAL CARE,THAMES HOMECARE SERVICE LTD,524.16,PHY LTS 65+,HOMECARE - SPOT,2103380938,1000079295
02.02.2022,ADULT SOCIAL CARE,THAMES HOMECARE SERVICE LTD,547.56,PHY LTS 65+,HOMECARE - SPOT,2103380909,1000079295
02.02.2022,ADULT SOCIAL CARE,THAMES HOMECARE SERVICE LTD,589.68,PHY LTS 65+,HOMECARE - SPOT,2103380812,1000079295
02.02.2022,ADULT SOCIAL CARE,THAMES HOMECARE SERVICE LTD,589.68,PHY LTS 65+,HOMECARE - SPOT,2103380908,1000079295
02.02.2022,ADULT SOCIAL CARE,THAMES HOMECARE SERVICE LTD,589.68,PHY LTS 65+,HOMECARE - SPOT,2103380919,1000079295
02.02.2022,ADULT SOCIAL CARE,THAMES HOMECARE SERVICE LTD,617.76,PHY LTS 65+,HOMECARE - SPOT,2103380803,1000079295
02.02.2022,ADULT SOCIAL CARE,THAMES HOMECARE SERVICE LTD,617.76,PHY LTS 65+,HOMECARE - SPOT,2103380854,1000079295
02.02.2022,ADULT SOCIAL CARE,THAMES HOMECARE SERVICE LTD,617.76,PHY LTS 65+,HOMECARE - SPOT,2103380873,1000079295
02.02.2022,ADULT SOCIAL CARE,THAMES HOMECARE SERVICE LTD,627.12,PHY LTS 65+,HOMECARE - SPOT,2103380785,1000079295
02.02.2022,ADULT SOCIAL CARE,THAMES HOMECARE SERVICE LTD,627.12,PHY LTS 65+,HOMECARE - SPOT,2103380843,1000079295
02.02.2022,ADULT SOCIAL CARE,THAMES HOMECARE SERVICE LTD,627.12,PHY LTS 65+,HOMECARE - SPOT,2103380859,1000079295
02.02.2022,ADULT SOCIAL CARE,THAMES HOMECARE SERVICE LTD,655.2,PHY LTS 65+,HOMECARE - SPOT,2103380889,1000079295
02.02.2022,ADULT SOCIAL CARE,THAMES HOMECARE SERVICE LTD,655.2,PHY LTS 65+,HOMECARE - SPOT,2103380917,1000079295
02.02.2022,ADULT SOCIAL CARE,THAMES HOMECARE SERVICE LTD,655.2,PHY LTS 65+,HOMECARE - SPOT,2103380952,1000079295
02.02.2022,ADULT SOCIAL CARE,THAMES HOMECARE SERVICE LTD,659.88,PHY LTS 65+,HOMECARE - SPOT,2103380911,1000079295
02.02.2022,ADULT SOCIAL CARE,THAMES HOMECARE SERVICE LTD,664.56,PHY LTS 65+,HOMECARE - SPOT,2103380955,1000079295
02.02.2022,ADULT SOCIAL CARE,THAMES HOMECARE SERVICE LTD,683.28,PHY LTS 65+,HOMECARE - SPOT,2103380816,1000079295
02.02.2022,ADULT SOCIAL CARE,THAMES HOMECARE SERVICE LTD,692.64,PHY LTS 65+,HOMECARE - SPOT,2103380786,1000079295
02.02.2022,ADULT SOCIAL CARE,THAMES HOMECARE SERVICE LTD,692.64,PHY LTS 65+,HOMECARE - SPOT,2103380954,1000079295
02.02.2022,ADULT SOCIAL CARE,THAMES HOMECARE SERVICE LTD,702,PHY LTS 65+,HOMECARE - SPOT,2103380946,1000079295
02.02.2022,ADULT SOCIAL CARE,THAMES HOMECARE SERVICE LTD,706.68,PHY LTS 65+,HOMECARE - SPOT,2103380806,1000079295
02.02.2022,ADULT SOCIAL CARE,THAMES HOMECARE SERVICE LTD,720.72,PHY LTS 65+,HOMECARE - SPOT,2103380877,1000079295
02.02.2022,ADULT SOCIAL CARE,THAMES HOMECARE SERVICE LTD,720.72,PHY LTS 65+,HOMECARE - SPOT,2103380883,1000079295
02.02.2022,ADULT SOCIAL CARE,THAMES HOMECARE SERVICE LTD,758.16,PHY LTS 65+,HOMECARE - SPOT,2103380872,1000079295
02.02.2022,ADULT SOCIAL CARE,THAMES HOMECARE SERVICE LTD,786.24,PHY LTS 65+,HOMECARE - SPOT,2103380850,1000079295
02.02.2022,ADULT SOCIAL CARE,THAMES HOMECARE SERVICE LTD,786.24,PHY LTS 65+,HOMECARE - SPOT,2103380896,1000079295
02.02.2022,ADULT SOCIAL CARE,THAMES HOMECARE SERVICE LTD,786.24,PHY LTS 65+,HOMECARE - SPOT,2103380930,1000079295
02.02.2022,ADULT SOCIAL CARE,THAMES HOMECARE SERVICE LTD,804.96,PHY LTS 65+,HOMECARE - SPOT,2103380929,1000079295
02.02.2022,ADULT SOCIAL CARE,THAMES HOMECARE SERVICE LTD,804.96,PHY LTS 65+,HOMECARE - SPOT,2103380953,1000079295
02.02.2022,ADULT SOCIAL CARE,THAMES HOMECARE SERVICE LTD,851.76,PHY LTS 65+,HOMECARE - SPOT,2103380797,1000079295
02.02.2022,ADULT SOCIAL CARE,THAMES HOMECARE SERVICE LTD,851.76,PHY LTS 65+,HOMECARE - SPOT,2103380798,1000079295
02.02.2022,ADULT SOCIAL CARE,THAMES HOMECARE SERVICE LTD,851.76,PHY LTS 65+,HOMECARE - SPOT,2103380891,1000079295
02.02.2022,ADULT SOCIAL CARE,THAMES HOMECARE SERVICE LTD,936,PHY LTS 65+,HOMECARE - SPOT,2103380899,1000079295
02.02.2022,ADULT SOCIAL CARE,THAMES HOMECARE SERVICE LTD,"1,010.88",PHY LTS 65+,HOMECARE - SPOT,2103380890,1000079295
02.02.2022,ADULT SOCIAL CARE,THAMES HOMECARE SERVICE LTD,"1,076.40",PHY LTS 65+,HOMECARE - SPOT,2103380874,1000079295
02.02.2022,ADULT SOCIAL CARE,THAMES HOMECARE SERVICE LTD,524.16,PHY STS 18-64,HOMECARE - IC,2103380871,1000079295
02.02.2022,ADULT SOCIAL CARE,THAMES HOMECARE SERVICE LTD,589.68,PHY STS 18-64,HOMECARE - IC,2103380962,1000079295
02.02.2022,ADULT SOCIAL CARE,SUPREME CARE SERVICES LTD,256.9,PHY STS 65+,HOMECARE - IC,2103380224,1000059416
02.02.2022,ADULT SOCIAL CARE,SUPREME CARE SERVICES LTD,321.09,PHY STS 65+,HOMECARE - IC,2103380436,1000059416
02.02.2022,ADULT SOCIAL CARE,THAMES HOMECARE SERVICE LTD,327.6,PHY STS 65+,HOMECARE - IC,2103380893,1000079295
02.02.2022,ADULT SOCIAL CARE,THAMES HOMECARE SERVICE LTD,425.88,PHY STS 65+,HOMECARE - IC,2103380927,1000079295
02.02.2022,ADULT SOCIAL CARE,THAMES HOMECARE SERVICE LTD,496.08,PHY STS 65+,HOMECARE - IC,2103380881,1000079295
02.02.2022,ADULT SOCIAL CARE,THAMES HOMECARE SERVICE LTD,524.16,PHY STS 65+,HOMECARE - IC,2103380880,1000079295
02.02.2022,ADULT SOCIAL CARE,THAMES HOMECARE SERVICE LTD,655.2,PHY STS 65+,HOMECARE - IC,2103380925,1000079295
02.02.2022,ADULT SOCIAL CARE,RIVERSIDE,"62,259.25",S75 SUPHSG SCH LBS LEAD,EXTERNAL AGENCIES AND BODIES,5902508274,11134939
02.02.2022,ADULT SOCIAL CARE,SUPREME CARE SERVICES LTD,935.1,SEN LTS 65+,HOMECARE - C&V,2103380446,1000059416
02.02.2022,ADULT SOCIAL CARE,SUPREME CARE SERVICES LTD,"1,416.22",SEN LTS 65+,HOMECARE - C&V,2103380333,1000059416
02.02.2022,ADULT SOCIAL CARE,THAMES HOMECARE SERVICE LTD,313.56,SEN LTS 65+,HOMECARE - SPOT,2103380839,1000079295
02.02.2022,ADULT SOCIAL CARE,SUPREME CARE SERVICES LTD,417.62,SOCIAL ISOLATION,HOMECARE - C&V,2103380373,1000059416
02.02.2022,ADULT SOCIAL CARE,SUPREME CARE SERVICES LTD,467.5,SOCIAL ISOLATION,HOMECARE - C&V,2103380198,1000059416
02.02.2022,ADULT SOCIAL CARE,SUPREME CARE SERVICES LTD,561.91,SOCIAL ISOLATION,HOMECARE - C&V,2103380216,1000059416
02.02.2022,ADULT SOCIAL CARE,SUPREME CARE SERVICES LTD,"2,117.02",SOCIAL ISOLATION,HOMECARE - C&V,2103380439,1000059416
02.02.2022,ADULT SOCIAL CARE,SUPREME CARE SERVICES LTD,"2,511.38",SOCIAL ISOLATION,HOMECARE - C&V,2103380425,1000059416
02.02.2022,ADULT SOCIAL CARE,NATIONAL AUTISTIC SOCIETY CARE PACK,"7,864.22",SPECIALIST CARE,SECTION 17 PAYMENTS TO AGENCIES/CARERS,2103381057,1000020538
02.02.2022,ADULT SOCIAL CARE,CONTACT PROFESSIONALS,285,SPECIALIST CARE,SECTION 17 PAYMENTS TO AGENCIES/CARERS,2103381003,1000057263
02.02.2022,ADULT SOCIAL CARE,CONTACT PROFESSIONALS,285,SPECIALIST CARE,SECTION 17 PAYMENTS TO AGENCIES/CARERS,2103381062,1000057263
02.02.2022,ADULT SOCIAL CARE,CONTACT PROFESSIONALS,380,SPECIALIST CARE,SECTION 17 PAYMENTS TO AGENCIES/CARERS,2103381012,1000057263
02.02.2022,ADULT SOCIAL CARE,CONTACT PROFESSIONALS,456,SPECIALIST CARE,SECTION 17 PAYMENTS TO AGENCIES/CARERS,2103381013,1000057263
02.02.2022,ADULT SOCIAL CARE,CONTACT PROFESSIONALS,798,SPECIALIST CARE,SECTION 17 PAYMENTS TO AGENCIES/CARERS,2103381051,1000057263
02.02.2022,ADULT SOCIAL CARE,ABBEYS CARE SUPPORT AND TRAINING LTD,791.12,SPECIALIST CARE,SECTION 17 PAYMENTS TO AGENCIES/CARERS,2103381017,1000086177
02.02.2022,ADULT SOCIAL CARE,ABBEYS CARE SUPPORT AND TRAINING LTD,791.12,SPECIALIST CARE,SECTION 17 PAYMENTS TO AGENCIES/CARERS,2103381019,1000086177
02.02.2022,ADULT SOCIAL CARE,ABBEYS CARE SUPPORT AND TRAINING LTD,791.12,SPECIALIST CARE,SECTION 17 PAYMENTS TO AGENCIES/CARERS,2103381046,1000086177
02.02.2022,ADULT SOCIAL CARE,ABBEYS CARE SUPPORT AND TRAINING LTD,863.04,SPECIALIST CARE,SECTION 17 PAYMENTS TO AGENCIES/CARERS,2103381045,1000086177
02.02.2022,ADULT SOCIAL CARE,ABBEYS CARE SUPPORT AND TRAINING LTD,"1,330.52",SPECIALIST CARE,SECTION 17 PAYMENTS TO AGENCIES/CARERS,2103381018,1000086177
02.02.2022,ADULT SOCIAL CARE,SUPREME CARE SERVICES LTD,332.62,SUB LTS 18-64,HOMECARE - C&V,2103380132,1000059416
02.02.2022,ADULT SOCIAL CARE,SUPREME CARE SERVICES LTD,784.47,SUB LTS 18-64,HOMECARE - C&V,2103380080,1000059416
02.02.2022,ASSET MANAGEMENT,INTAKT LTD,"3,400.00",ENG CONTRACTS,PROFESSIONAL FEES,5902508154,1000087217
02.02.2022,ASSET MANAGEMENT,INTAKT LTD,"3,800.00",ENG CONTRACTS,PROFESSIONAL FEES,5902508154,1000087217
02.02.2022,ASSET MANAGEMENT,GC CONSTRUCT LTD,"23,433.58",MAJOR REPAIRS,BUILDING R&M,2103379856,3000002106
02.02.2022,ASSET MANAGEMENT HGF,BUILDING MONITORING SERVICES LTD,"1,456.98",160 TOOLEY ST.,BUILDING R&M,5902508246,1000063798
02.02.2022,ASSET MANAGEMENT HGF,ROYAL MAIL GROUP LTD,"1,242.55",160 TOOLEY ST.,POSTAGES,5902508236,1000061535
02.02.2022,ASSET MANAGEMENT HGF,ROYAL MAIL GROUP LTD,"1,858.98",160 TOOLEY ST.,POSTAGES,5902508291,1000061535
02.02.2022,ASSET MANAGEMENT HGF,ROYAL MAIL GROUP LTD,"2,072.87",160 TOOLEY ST.,POSTAGES,5902508222,1000061535
02.02.2022,CENTRAL FUNCTIONS,BRESLIN CONSTRUCTION LTD,890,COMMERCIAL PROPERTIES,BUILDING R&M,2103379854,3000001948
02.02.2022,CENTRAL FUNCTIONS,BRESLIN CONSTRUCTION LTD,"1,180.00",COMMERCIAL PROPERTIES,BUILDING R&M,2103379855,3000001948
02.02.2022,CENTRAL FUNCTIONS,BRESLIN CONSTRUCTION LTD,"2,980.00",COMMERCIAL PROPERTIES,BUILDING R&M,2103379824,3000001948
02.02.2022,CENTRAL FUNCTIONS,KENT COUNTY COUNCIL - LASER,937.38,COMMERCIAL PROPERTIES,GAS,5902508054,1000012926
02.02.2022,CHIEF EXECUTIVE,F M CONWAY LTD,"16,761.82",CAPITAL PS (REGEN),CONSTRUCTION,2103379858,4001384
02.02.2022,CHIEF EXECUTIVE,PELLINGS LLP,"1,088.00",CAPITAL PS (REGEN),CONSTRUCTION FEES - QUANTITY SURVEYOR,5902508173,1009262
02.02.2022,CHIEF EXECUTIVE'S OFFICE,NEWABLE LIMITED,"136,141.50",ADDITIONAL RESTRICTIONS GRANT,EXTERNAL AGENCIES AND BODIES,5902508238,1000087529
02.02.2022,CHILDREN AND ADULT,BLAKENEY LEIGH LTD,"8,500.00",CAPITAL PS (EDUCATION),CONSTRUCTION FEES,5902508159,1438839
02.02.2022,CHILDREN AND FAMILIES,REDACTED PERSONAL DATA,295,16 PLUS TEAM,OTHER PAYMENTS FOR CLIENTS,REDACTED,REDACTED
02.02.2022,CHILDREN AND FAMILIES,REDACTED PERSONAL DATA,"1,382.21",ADOPTION ALLOWANCES,PAYMENTS TO CARERS,REDACTED,REDACTED
02.02.2022,CHILDREN AND FAMILIES,THE ANNA FREUD CENTRE,"17,900.00",ADOPTION SUPP FUND,PROFESSIONAL FEES,5902508198,1000017805
02.02.2022,CHILDREN AND FAMILIES,RAGDOLL TRAINING AND THERAPEUTIC SERVICES LIMITED,"2,880.00",ADOPTION SUPP FUND,PROFESSIONAL FEES,5902508144,1000085096
02.02.2022,CHILDREN AND FAMILIES,DIAMOND THERAPIES LTD,"4,120.00",ADOPTION SUPP FUND,PROFESSIONAL FEES,5902508141,1000085725
02.02.2022,CHILDREN AND FAMILIES,INDEPENDENT BIA LTD,340,ADOPTION SUPP FUND,PROFESSIONAL FEES,5902508142,1000086264
02.02.2022,CHILDREN AND FAMILIES,INDEPENDENT BIA LTD,340,ADOPTION SUPP FUND,PROFESSIONAL FEES,5902508143,1000086264
02.02.2022,CHILDREN AND FAMILIES,REDACTED PERSONAL DATA,"1,320.00",ADOPTION SUPP FUND,PROFESSIONAL FEES,REDACTED,REDACTED
02.02.2022,CHILDREN AND FAMILIES,REDACTED PERSONAL DATA,367.5,ADOPTION SUPP FUND,PROFESSIONAL FEES,REDACTED,REDACTED
02.02.2022,CHILDREN AND FAMILIES,REDACTED PERSONAL DATA,320,ADOPTION SUPP FUND,PROFESSIONAL FEES,REDACTED,REDACTED
02.02.2022,CHILDREN AND FAMILIES,REDACTED PERSONAL DATA,320,ADOPTION SUPP FUND,PROFESSIONAL FEES,REDACTED,REDACTED
02.02.2022,CHILDREN AND FAMILIES,REDACTED PERSONAL DATA,320,ADOPTION SUPP FUND,PROFESSIONAL FEES,REDACTED,REDACTED
02.02.2022,CHILDREN AND FAMILIES,REDACTED PERSONAL DATA,480,ADOPTION SUPP FUND,PROFESSIONAL FEES,REDACTED,REDACTED
02.02.2022,CHILDREN AND FAMILIES,REDACTED PERSONAL DATA,480,ADOPTION SUPP FUND,PROFESSIONAL FEES,REDACTED,REDACTED
02.02.2022,CHILDREN AND FAMILIES,REDACTED PERSONAL DATA,480,ADOPTION SUPP FUND,PROFESSIONAL FEES,REDACTED,REDACTED
02.02.2022,CHILDREN AND FAMILIES,REDACTED PERSONAL DATA,480,ADOPTION SUPP FUND,PROFESSIONAL FEES,REDACTED,REDACTED
02.02.2022,CHILDREN AND FAMILIES,REDACTED PERSONAL DATA,680,ADOPTION SUPP FUND,PROFESSIONAL FEES,REDACTED,REDACTED
02.02.2022,CHILDREN AND FAMILIES,REDACTED PERSONAL DATA,840,ADOPTION SUPP FUND,PROFESSIONAL FEES,REDACTED,REDACTED
02.02.2022,CHILDREN AND FAMILIES,REDACTED PERSONAL DATA,"2,020.00",ADOPTION SUPP FUND,PROFESSIONAL FEES,REDACTED,REDACTED
02.02.2022,CHILDREN AND FAMILIES,REDACTED PERSONAL DATA,380,ADOPTION SUPP FUND,PROFESSIONAL FEES,REDACTED,REDACTED
02.02.2022,CHILDREN AND FAMILIES,REDACTED PERSONAL DATA,475,ADOPTION SUPP FUND,PROFESSIONAL FEES,REDACTED,REDACTED
02.02.2022,CHILDREN AND FAMILIES,REDACTED PERSONAL DATA,490,ADOPTION SUPP FUND,PROFESSIONAL FEES,REDACTED,REDACTED
02.02.2022,CHILDREN AND FAMILIES,REDACTED PERSONAL DATA,393,ADOPTION SUPP FUND,PROFESSIONAL FEES,REDACTED,REDACTED
02.02.2022,CHILDREN AND FAMILIES,REDACTED PERSONAL DATA,"3,120.00",ADOPTION SUPP FUND,PROFESSIONAL FEES,REDACTED,REDACTED
02.02.2022,CHILDREN AND FAMILIES,REDACTED PERSONAL DATA,656.5,ADOPTION SUPP FUND,PROFESSIONAL FEES,REDACTED,REDACTED
02.02.2022,CHILDREN AND FAMILIES,REDACTED PERSONAL DATA,375,ADOPTION SUPP FUND,PROFESSIONAL FEES,REDACTED,REDACTED
02.02.2022,CHILDREN AND FAMILIES,OWNLIFE RESIDENTIAL LTD,"26,128.57",CHILDREN�S RESID,RESIDENTIAL CARE,2103380997,1000085398
02.02.2022,CHILDREN AND FAMILIES,ZENITH CARS LTD,300,CONTACT SERVICE,CLIENT TRANSPORT,5902508253,1000070570
02.02.2022,CHILDREN AND FAMILIES,ZENITH CARS LTD,640,CONTACT SERVICE,CLIENT TRANSPORT,5902508250,1000070570
02.02.2022,CHILDREN AND FAMILIES,WELL-BEING PLATFORM LTD,"1,066.00",FAMILY GROUP CONF�S,PROFESSIONAL FEES,5902508240,1000084384
02.02.2022,CHILDREN AND FAMILIES,HERA SOCIAL CARE LTD,446.33,FAMILY GROUP CONF�S,PROFESSIONAL FEES,5902508248,1000084935
02.02.2022,CHILDREN AND FAMILIES,REDACTED PERSONAL DATA,433.11,FAMILY GROUP CONF�S,PROFESSIONAL FEES,REDACTED,REDACTED
02.02.2022,CHILDREN AND FAMILIES,REDACTED PERSONAL DATA,561.93,FAMILY GROUP CONF�S,PROFESSIONAL FEES,REDACTED,REDACTED
02.02.2022,CHILDREN AND FAMILIES,REDACTED PERSONAL DATA,556.83,FAMILY GROUP CONF�S,PROFESSIONAL FEES,REDACTED,REDACTED
02.02.2022,CHILDREN AND FAMILIES,REDACTED PERSONAL DATA,606.67,FAMILY GROUP CONF�S,PROFESSIONAL FEES,REDACTED,REDACTED
02.02.2022,CHILDREN AND FAMILIES,REDACTED PERSONAL DATA,300,FE SUPPORT,CLIENT TRANSPORT,REDACTED,REDACTED
02.02.2022,CHILDREN AND FAMILIES,REDACTED PERSONAL DATA,300,FE SUPPORT,CLIENT TRANSPORT,REDACTED,REDACTED
02.02.2022,CHILDREN AND FAMILIES,REDACTED PERSONAL DATA,500,FE SUPPORT,OTHER PAYMENTS FOR CLIENTS,REDACTED,REDACTED
02.02.2022,CHILDREN AND FAMILIES,REDACTED PERSONAL DATA,300,FOSTERING ALLOWANCES,ADDITIONAL PAYMENTS TO AGENCIES/CARERS,REDACTED,REDACTED
02.02.2022,CHILDREN AND FAMILIES,REDACTED PERSONAL DATA,300,FOSTERING ALLOWANCES,ADDITIONAL PAYMENTS TO AGENCIES/CARERS,REDACTED,REDACTED
02.02.2022,CHILDREN AND FAMILIES,REDACTED PERSONAL DATA,677.28,FOSTERING ALLOWANCES,PAYMENTS TO CARERS,REDACTED,REDACTED
02.02.2022,CHILDREN AND FAMILIES,REDACTED PERSONAL DATA,"1,077.58",FOSTERING ALLOWANCES,PAYMENTS TO CARERS,REDACTED,REDACTED
02.02.2022,CHILDREN AND FAMILIES,REDACTED PERSONAL DATA,800,FOSTERING ALLOWANCES,PAYMENTS TO CARERS,REDACTED,REDACTED
02.02.2022,CHILDREN AND FAMILIES,REDACTED PERSONAL DATA,"1,704.00",FOSTERING ALLOWANCES,PAYMENTS TO CARERS,REDACTED,REDACTED
02.02.2022,CHILDREN AND FAMILIES,REDACTED PERSONAL DATA,"1,108.29",FOSTERING ALLOWANCES,PAYMENTS TO CARERS,REDACTED,REDACTED
02.02.2022,CHILDREN AND FAMILIES,REDACTED PERSONAL DATA,"1,226.57",FOSTERING ALLOWANCES,PAYMENTS TO CARERS,REDACTED,REDACTED
02.02.2022,CHILDREN AND FAMILIES,FIVE RIVERS CHILD CARE LTD,"3,576.96",FRIENDS & FAMILY FOSTERING,EXTERNAL AGENCIES AND BODIES,2103380983,1000018792
02.02.2022,CHILDREN AND FAMILIES,FIVE RIVERS CHILD CARE LTD,"3,576.96",FRIENDS & FAMILY FOSTERING,EXTERNAL AGENCIES AND BODIES,2103380989,1000018792
02.02.2022,CHILDREN AND FAMILIES,FOSTERING LONDON LTD,"5,092.68",FRIENDS & FAMILY FOSTERING,EXTERNAL AGENCIES AND BODIES,2103380985,1000077541
02.02.2022,CHILDREN AND FAMILIES,FOSTERING LONDON LTD,"8,751.00",FRIENDS & FAMILY FOSTERING,EXTERNAL AGENCIES AND BODIES,2103380986,1000077541
02.02.2022,CHILDREN AND FAMILIES,REGIONAL FOSTERING SERVICES LTD,"2,493.07",FRIENDS & FAMILY FOSTERING,EXTERNAL AGENCIES AND BODIES,2103380987,1000080112
02.02.2022,CHILDREN AND FAMILIES,REGIONAL FOSTERING SERVICES LTD,"2,624.29",FRIENDS & FAMILY FOSTERING,EXTERNAL AGENCIES AND BODIES,2103380981,1000080112
02.02.2022,CHILDREN AND FAMILIES,REGIONAL FOSTERING SERVICES LTD,"4,186.11",FRIENDS & FAMILY FOSTERING,EXTERNAL AGENCIES AND BODIES,2103380984,1000080112
02.02.2022,CHILDREN AND FAMILIES,AIM HIGH FOSTERING SERVICES LTD,"5,314.02",FRIENDS & FAMILY FOSTERING,EXTERNAL AGENCIES AND BODIES,2103380990,1000082607
02.02.2022,CHILDREN AND FAMILIES,AIM HIGH FOSTERING SERVICES LTD,"5,314.02",FRIENDS & FAMILY FOSTERING,EXTERNAL AGENCIES AND BODIES,2103380992,1000082607
02.02.2022,CHILDREN AND FAMILIES,CARING HEARTS FOSTERING,"3,542.99",FRIENDS & FAMILY FOSTERING,EXTERNAL AGENCIES AND BODIES,2103380982,1000087065
02.02.2022,CHILDREN AND FAMILIES,CARING HEARTS FOSTERING,"3,542.99",FRIENDS & FAMILY FOSTERING,EXTERNAL AGENCIES AND BODIES,2103380991,1000087065
02.02.2022,CHILDREN AND FAMILIES,SILVER LINING FOSTERING LTD,274,FRIENDS & FAMILY FOSTERING,EXTERNAL AGENCIES AND BODIES,2103380988,1000087318
02.02.2022,CHILDREN AND FAMILIES,ZENITH CARS LTD,300,P & R CARE TEAM,CLIENT TRANSPORT,5902508227,1000070570
02.02.2022,CHILDREN AND FAMILIES,ZENITH CARS LTD,360,P & R CARE TEAM,CLIENT TRANSPORT,5902508228,1000070570
02.02.2022,CHILDREN AND FAMILIES,ZENITH CARS LTD,360,P & R CARE TEAM,CLIENT TRANSPORT,5902508231,1000070570
02.02.2022,CHILDREN AND FAMILIES,ZENITH CARS LTD,500,P & R CARE TEAM,CLIENT TRANSPORT,5902508235,1000070570
02.02.2022,CHILDREN AND FAMILIES,ZENITH CARS LTD,540,P & R CARE TEAM,CLIENT TRANSPORT,5902508242,1000070570
02.02.2022,CHILDREN AND FAMILIES,ZENITH CARS LTD,720,P & R CARE TEAM,CLIENT TRANSPORT,5902508239,1000070570
02.02.2022,CHILDREN AND FAMILIES,ZENITH CARS LTD,720,P & R CARE TEAM,CLIENT TRANSPORT,5902508254,1000070570
02.02.2022,CHILDREN AND FAMILIES,ZENITH CARS LTD,900,P & R CARE TEAM,CLIENT TRANSPORT,5902508233,1000070570
02.02.2022,CHILDREN AND FAMILIES,REDACTED PERSONAL DATA,500,P & R CARE TEAM,OTHER PAYMENTS FOR CLIENTS,REDACTED,REDACTED
02.02.2022,CHILDREN AND FAMILIES,ZENITH CARS LTD,420,P & R CARE TEAM,PUBLIC TRANSPORT,5902508208,1000070570
02.02.2022,CHILDREN AND FAMILIES,DALEY BREAD LTD,"4,267.06",SEMI-IND CARELEAVERS,EXTERNAL AGENCIES AND BODIES,2103380976,1000080141
02.02.2022,CHILDREN AND FAMILIES,BRIGHT YOUNG FUTURES LTD,"1,882.13",SEMI-IND CARELEAVERS,EXTERNAL AGENCIES AND BODIES,2103380971,1000083958
02.02.2022,CHILDREN AND FAMILIES,BRIGHT YOUNG FUTURES LTD,"1,882.13",SEMI-IND CARELEAVERS,EXTERNAL AGENCIES AND BODIES,2103380974,1000083958
02.02.2022,CHILDREN AND FAMILIES,BRIGHT YOUNG FUTURES LTD,"2,878.57",SEMI-IND CARELEAVERS,EXTERNAL AGENCIES AND BODIES,2103380975,1000083958
02.02.2022,CHILDREN AND FAMILIES,WYF VENTURES LTD,887,SEMI-IND CARELEAVERS,EXTERNAL AGENCIES AND BODIES,2103380970,1000087022
02.02.2022,CHILDREN AND FAMILIES,WYF VENTURES LTD,"2,103.35",SEMI-IND CARELEAVERS,EXTERNAL AGENCIES AND BODIES,2103380968,1000087022
02.02.2022,CHILDREN AND FAMILIES,WYF VENTURES LTD,"2,144.29",SEMI-IND CARELEAVERS,EXTERNAL AGENCIES AND BODIES,2103380964,1000087022
02.02.2022,CHILDREN AND FAMILIES,WYF VENTURES LTD,"2,170.00",SEMI-IND CARELEAVERS,EXTERNAL AGENCIES AND BODIES,2103380965,1000087022
02.02.2022,CHILDREN AND FAMILIES,WYF VENTURES LTD,"2,170.00",SEMI-IND CARELEAVERS,EXTERNAL AGENCIES AND BODIES,2103380966,1000087022
02.02.2022,CHILDREN AND FAMILIES,WYF VENTURES LTD,265.71,SEMI-IND CARELEAVERS,OTHER PAYMENTS FOR CLIENTS,2103380963,1000087022
02.02.2022,CHILDREN AND FAMILIES,REDACTED PERSONAL DATA,"1,100.00",SEMI-IND CARELEAVERS,OTHER PAYMENTS FOR CLIENTS,REDACTED,REDACTED
02.02.2022,CHILDREN AND FAMILIES,REDACTED PERSONAL DATA,300,SEMI-IND LAC 16-17,OTHER PAYMENTS FOR CLIENTS,REDACTED,REDACTED
02.02.2022,CHILDREN AND FAMILIES,DR GRANGE AND ASSOCIATES,"1,008.00",SFS MGMT & SUPPORT,LEGAL FEES & COURT COSTS,2103381102,1000078560
02.02.2022,CHILDREN AND FAMILIES,CANSFORD LABORATORIES LTD,379.75,SFS MGMT & SUPPORT,LEGAL FEES & COURT COSTS,2103381097,1000079994
02.02.2022,CHILDREN AND FAMILIES,DNA LEGAL LTD,457,SFS MGMT & SUPPORT,LEGAL FEES & COURT COSTS,2103381100,1000082533
02.02.2022,CHILDREN AND FAMILIES,EMILY VERITY,750,SFS MGMT & SUPPORT,LEGAL FEES & COURT COSTS,2103381105,1000047317
02.02.2022,CHILDREN AND FAMILIES,OLIVER MILLINGTON,500,SFS MGMT & SUPPORT,LEGAL FEES & COURT COSTS,2103381132,1000051055
02.02.2022,CHILDREN AND FAMILIES,OLIVER MILLINGTON,750,SFS MGMT & SUPPORT,LEGAL FEES & COURT COSTS,2103381131,1000051055
02.02.2022,CHILDREN AND FAMILIES,TABITHA BARRAN,950,SFS MGMT & SUPPORT,LEGAL FEES & COURT COSTS,2103381135,1000053940
02.02.2022,CHILDREN AND FAMILIES,TABITHA BARRAN,950,SFS MGMT & SUPPORT,LEGAL FEES & COURT COSTS,2103381136,1000053940
02.02.2022,CHILDREN AND FAMILIES,TABITHA BARRAN,950,SFS MGMT & SUPPORT,LEGAL FEES & COURT COSTS,2103381137,1000053940
02.02.2022,CHILDREN AND FAMILIES,KATE LAMONT,300,SFS MGMT & SUPPORT,LEGAL FEES & COURT COSTS,2103381115,1000064216
02.02.2022,CHILDREN AND FAMILIES,KATE LAMONT,400,SFS MGMT & SUPPORT,LEGAL FEES & COURT COSTS,2103381111,1000064216
02.02.2022,CHILDREN AND FAMILIES,KATE LAMONT,500,SFS MGMT & SUPPORT,LEGAL FEES & COURT COSTS,2103381123,1000064216
02.02.2022,CHILDREN AND FAMILIES,KATE LAMONT,500,SFS MGMT & SUPPORT,LEGAL FEES & COURT COSTS,2103381126,1000064216
02.02.2022,CHILDREN AND FAMILIES,KATE LAMONT,500,SFS MGMT & SUPPORT,LEGAL FEES & COURT COSTS,2103381127,1000064216
02.02.2022,CHILDREN AND FAMILIES,KATE LAMONT,550,SFS MGMT & SUPPORT,LEGAL FEES & COURT COSTS,2103381116,1000064216
02.02.2022,CHILDREN AND FAMILIES,KATE LAMONT,700,SFS MGMT & SUPPORT,LEGAL FEES & COURT COSTS,2103381113,1000064216
02.02.2022,CHILDREN AND FAMILIES,KATE LAMONT,750,SFS MGMT & SUPPORT,LEGAL FEES & COURT COSTS,2103381109,1000064216
02.02.2022,CHILDREN AND FAMILIES,KATE LAMONT,750,SFS MGMT & SUPPORT,LEGAL FEES & COURT COSTS,2103381119,1000064216
02.02.2022,CHILDREN AND FAMILIES,KATE LAMONT,750,SFS MGMT & SUPPORT,LEGAL FEES & COURT COSTS,2103381121,1000064216
02.02.2022,CHILDREN AND FAMILIES,KATE LAMONT,750,SFS MGMT & SUPPORT,LEGAL FEES & COURT COSTS,2103381125,1000064216
02.02.2022,CHILDREN AND FAMILIES,KATE LAMONT,950,SFS MGMT & SUPPORT,LEGAL FEES & COURT COSTS,2103381118,1000064216
02.02.2022,CHILDREN AND FAMILIES,KATE LAMONT,980,SFS MGMT & SUPPORT,LEGAL FEES & COURT COSTS,2103381120,1000064216
02.02.2022,CHILDREN AND FAMILIES,LAURA BUMPUS,950,SFS MGMT & SUPPORT,LEGAL FEES & COURT COSTS,2103381128,1000064937
02.02.2022,CHILDREN AND FAMILIES,LAURA BUMPUS,"2,850.00",SFS MGMT & SUPPORT,LEGAL FEES & COURT COSTS,2103381129,1000064937
02.02.2022,CHILDREN AND FAMILIES,DR BRADLEY MANN,726.4,SFS MGMT & SUPPORT,LEGAL FEES & COURT COSTS,2103381101,1000066750
02.02.2022,CHILDREN AND FAMILIES,AL HOGARTH,425,SFS MGMT & SUPPORT,LEGAL FEES & COURT COSTS,2103381093,1000068723
02.02.2022,CHILDREN AND FAMILIES,ELLA SHAW,500,SFS MGMT & SUPPORT,LEGAL FEES & COURT COSTS,2103381103,1000068958
02.02.2022,CHILDREN AND FAMILIES,WILLIAM DEAN,400,SFS MGMT & SUPPORT,LEGAL FEES & COURT COSTS,2103381141,1000070780
02.02.2022,CHILDREN AND FAMILIES,WILLIAM DEAN,400,SFS MGMT & SUPPORT,LEGAL FEES & COURT COSTS,2103381142,1000070780
02.02.2022,CHILDREN AND FAMILIES,WILLIAM DEAN,500,SFS MGMT & SUPPORT,LEGAL FEES & COURT COSTS,2103381140,1000070780
02.02.2022,CHILDREN AND FAMILIES,CHRISTOPHER MCWATTERS,550,SFS MGMT & SUPPORT,LEGAL FEES & COURT COSTS,2103381098,1000081228
02.02.2022,CHILDREN AND FAMILIES,REDACTED PERSONAL DATA,388.04,SPECIAL GUARDIANSHIP,PAYMENTS TO CARERS,REDACTED,REDACTED
02.02.2022,CHILDREN AND FAMILIES,REDACTED PERSONAL DATA,342.45,SPECIAL GUARDIANSHIP,PAYMENTS TO CARERS,REDACTED,REDACTED
02.02.2022,CHILDREN AND FAMILIES,REDACTED PERSONAL DATA,389.34,SPECIAL GUARDIANSHIP,PAYMENTS TO CARERS,REDACTED,REDACTED
02.02.2022,CHILDREN AND FAMILIES,REDACTED PERSONAL DATA,356.15,SPECIAL GUARDIANSHIP,PAYMENTS TO CARERS,REDACTED,REDACTED
02.02.2022,CHILDREN AND FAMILIES,REDACTED PERSONAL DATA,403.04,SPECIAL GUARDIANSHIP,PAYMENTS TO CARERS,REDACTED,REDACTED
02.02.2022,CHILDREN AND FAMILIES,REDACTED PERSONAL DATA,525,SPECIAL GUARDIANSHIP,PAYMENTS TO CARERS,REDACTED,REDACTED
02.02.2022,CHILDREN AND FAMILIES,REDACTED PERSONAL DATA,341.15,SPECIAL GUARDIANSHIP,PAYMENTS TO CARERS,REDACTED,REDACTED
02.02.2022,CHILDREN AND FAMILIES,REDACTED PERSONAL DATA,338,SPECIAL GUARDIANSHIP,PAYMENTS TO CARERS,REDACTED,REDACTED
02.02.2022,CHILDREN AND FAMILIES,REDACTED PERSONAL DATA,300,STAYPUT- FOST CARERS,PAYMENTS TO CARERS,REDACTED,REDACTED
02.02.2022,CHILDREN AND FAMILIES,ZENITH CARS LTD,920,TEAM C,CLIENT TRANSPORT,5902508292,1000070570
02.02.2022,CHILDREN AND FAMILIES,ZENITH CARS LTD,400,TEAM D,CLIENT TRANSPORT,5902508292,1000070570
02.02.2022,CHILDREN AND FAMILIES,ZENITH CARS LTD,880,TEAM D,CLIENT TRANSPORT,5902508237,1000070570
02.02.2022,CHILDREN AND FAMILIES,WYF VENTURES LTD,"2,037.01",UASC CARELEAVERS,EXTERNAL AGENCIES AND BODIES,2103380969,1000087022
02.02.2022,CHILDREN AND FAMILIES,REDACTED PERSONAL DATA,322.39,UASC CARELEAVERS,OTHER PAYMENTS FOR CLIENTS,REDACTED,REDACTED
02.02.2022,CHILDREN AND FAMILIES,DREAMFO HOUSING LTD,"3,321.34",UASC LAC 16-17,EXTERNAL AGENCIES AND BODIES,2103380979,1000087273
02.02.2022,CHILDREN AND FAMILIES,DREAMFO HOUSING LTD,310,UASC LAC 16-17,OTHER PAYMENTS FOR CLIENTS,2103380980,1000087273
02.02.2022,COMMUNITIES,THAMES HOMECARE SERVICE LTD,421.2,NO RECOURSE TO PUBLIC FUNDS,HOMECARE - C&V,2103380956,1000079295
02.02.2022,COMMUNITIES,BROOK,"36,437.50",YOUNG PEOPLES SERVICE,OTHER CONTRACTORS,5902508038,1000076901
02.02.2022,CUSTOMER EXPERIENCE,GLAZER DELMAR SOLICITORS,750,SALES & ACQUISITIONS,LEGAL FEES & COURT COSTS,2103381107,1763177
02.02.2022,CUSTOMER EXPERIENCE HGF,JASMEET SOAR,875,CORONER'S,PROFESSIONAL FEES,5902508284,1000087866
02.02.2022,CUSTOMER EXPERIENCE HGF,CORDELIA TURNER,930.02,REGISTRARS,OFFICE EXPENSES,5902508224,1000079784
02.02.2022,CUSTOMER EXPERIENCE HGF,CORDELIA TURNER,"1,108.53",REGISTRARS,OFFICE EXPENSES,5902508224,1000079784
02.02.2022,DSG,UNLOCKING LANGUAGE LTD,"11,241.96",LAC EDUCATION,EXTERNAL AGENCIES AND BODIES,5902508078,1000081107
02.02.2022,DSG,SOFT EGG LTD,296.06,SUMMERHOUSE,COMPUTER MAINTENANCE,5902508147,1000086592
02.02.2022,DSG,TEAM TEACH LTD,"1,200.00",SUMMERHOUSE,TRAINING,5902508157,11257026
02.02.2022,DSG,PROSPERO RECRUITMENT LTD,450,VIRTUAL SCHOOL PP,EXTERNAL AGENCIES AND BODIES,5902508068,1000082492
02.02.2022,DSG,PROSPERO RECRUITMENT LTD,"1,102.00",VIRTUAL SCHOOL PP,EXTERNAL AGENCIES AND BODIES,5902508073,1000082492
02.02.2022,DSG,PROSPERO RECRUITMENT LTD,"2,385.00",VIRTUAL SCHOOL PP,EXTERNAL AGENCIES AND BODIES,5902508070,1000082492
02.02.2022,DSG,HABERDASHERS ASKES FEDERATION TRUST,800,VIRTUAL SCHOOL PP,SCHOOLS CAPITATION,2103381087,11235753
02.02.2022,DSG,THE ACADEMY @ PECKHAM,"1,500.00",VIRTUAL SCHOOL PP,SCHOOLS CAPITATION,2103381092,1000041433
02.02.2022,DSG,HARRIS ACADEMY BERMONDSEY,"1,195.00",VIRTUAL SCHOOL PP,SCHOOLS CAPITATION,2103381088,1000052842
02.02.2022,DSG,GOOSE GREEN PRIMARY AND NURSERY SCHOOL,600,VIRTUAL SCHOOL PP,SCHOOLS CAPITATION,2103381090,1000070613
02.02.2022,DSG,HARRIS ACADEMY CRYSTAL PALACE,"2,400.00",VIRTUAL SCHOOL PP,SCHOOLS CAPITATION,2103381086,1000073877
02.02.2022,DSG,COMPASS SCHOOLS TRUST,750,VIRTUAL SCHOOL PP,SCHOOLS CAPITATION,2103381083,1000076195
02.02.2022,DSG,ST MARKS CHURCH OF ENGLAND ACADEMY,"1,500.00",VIRTUAL SCHOOL PP,SCHOOLS CAPITATION,2103381084,1000079518
02.02.2022,DSG,PARK WOOD SCHOOLS FEDERATION,620.5,VIRTUAL SCHOOL PP,SCHOOLS CAPITATION,2103381089,1000083964
02.02.2022,DSG,SHIRLEY HIGH SCHOOL,"1,500.00",VIRTUAL SCHOOL PP,SCHOOLS CAPITATION,2103381091,1000076159
02.02.2022,DSG,ST JOSEPHS CATHOLIC INFANTS SCHOOL,661.05,VIRTUAL SCHOOL PP,SCHOOLS CAPITATION,2103381085,5001000018
02.02.2022,EDUCATION,EVOLUTION INTERNET MARKETING LLP,318.8,L&A SALARIES,SOFTWARE,5902508278,1000062062
02.02.2022,ENVIRONMENT DIRECTORATE,RYGOR COMMERCIALS LIMITED,265.65,COMMERCIAL VEH CTRL A/C,HIRED VEHICLES,5902508269,1000063262
02.02.2022,ENVIRONMENT DIRECTORATE,LEX AUTOLEASE,"19,188.35",COMMERCIAL VEH CTRL A/C,HIRED VEHICLES,5902508230,1000069462
02.02.2022,ENVIRONMENT DIRECTORATE,LEX AUTOLEASE,"19,188.35",COMMERCIAL VEH CTRL A/C,HIRED VEHICLES,5902508232,1000069462
02.02.2022,ENVIRONMENT DIRECTORATE,E. H. ROBERTS - PENET GROUP LTD,759,COMMERCIAL VEH CTRL A/C,HIRED VEHICLES,5902508283,1000082787
02.02.2022,ENVIRONMENT DIRECTORATE,E. H. ROBERTS - PENET GROUP LTD,874,COMMERCIAL VEH CTRL A/C,HIRED VEHICLES,5902508286,1000082787
02.02.2022,ENVIRONMENT DIRECTORATE,E. H. ROBERTS - PENET GROUP LTD,874,COMMERCIAL VEH CTRL A/C,HIRED VEHICLES,5902508289,1000082787
02.02.2022,ENVIRONMENT DIRECTORATE,E. H. ROBERTS - PENET GROUP LTD,874,COMMERCIAL VEH CTRL A/C,HIRED VEHICLES,5902508290,1000082787
02.02.2022,ENVIRONMENT DIRECTORATE,E. H. ROBERTS - PENET GROUP LTD,"1,104.00",COMMERCIAL VEH CTRL A/C,HIRED VEHICLES,5902508281,1000082787
02.02.2022,ENVIRONMENT DIRECTORATE,GARY GRANT,375,LICENSING,LEGAL FEES & COURT COSTS,2103381106,1000056929
02.02.2022,F & C S EXCLUDING CORPORATE BUDGETS,CIPFA,565,CIPFA TRAINEES,TRAINING,5902508220,1000000196
02.02.2022,F & C S EXCLUDING CORPORATE BUDGETS,CIPFA,"1,060.00",CIPFA TRAINEES,TRAINING,5902508226,1000000196
02.02.2022,F & C S EXCLUDING CORPORATE BUDGETS,SHARPE PRITCHARD LLP,347,LEGAL CORP.CHARGES,SOLICITORS FRAMEWORK LEGAL SERVICES,5902508137,1790085
02.02.2022,F & C S EXCLUDING CORPORATE BUDGETS,REDACTED PERSONAL DATA,500,SESS,OTHER PAYMENTS FOR CLIENTS,REDACTED,REDACTED
02.02.2022,F & C S EXCLUDING CORPORATE BUDGETS,REDACTED PERSONAL DATA,500,SESS,OTHER PAYMENTS FOR CLIENTS,REDACTED,REDACTED
02.02.2022,F & C S EXCLUDING CORPORATE BUDGETS,REDACTED PERSONAL DATA,500,SESS,OTHER PAYMENTS FOR CLIENTS,REDACTED,REDACTED
02.02.2022,F & C S EXCLUDING CORPORATE BUDGETS,REDACTED PERSONAL DATA,500,SESS,OTHER PAYMENTS FOR CLIENTS,REDACTED,REDACTED
02.02.2022,F & C S EXCLUDING CORPORATE BUDGETS,REDACTED PERSONAL DATA,500,SESS,OTHER PAYMENTS FOR CLIENTS,REDACTED,REDACTED
02.02.2022,F & C S EXCLUDING CORPORATE BUDGETS,REDACTED PERSONAL DATA,500,SESS,OTHER PAYMENTS FOR CLIENTS,REDACTED,REDACTED
02.02.2022,F & C S EXCLUDING CORPORATE BUDGETS,REDACTED PERSONAL DATA,500,SESS,OTHER PAYMENTS FOR CLIENTS,REDACTED,REDACTED
02.02.2022,F & C S EXCLUDING CORPORATE BUDGETS,REDACTED PERSONAL DATA,500,SESS,OTHER PAYMENTS FOR CLIENTS,REDACTED,REDACTED
02.02.2022,F & C S EXCLUDING CORPORATE BUDGETS,REDACTED PERSONAL DATA,500,SESS,OTHER PAYMENTS FOR CLIENTS,REDACTED,REDACTED
02.02.2022,F & C S EXCLUDING CORPORATE BUDGETS,REDACTED PERSONAL DATA,500,SESS,OTHER PAYMENTS FOR CLIENTS,REDACTED,REDACTED
02.02.2022,HOUSING GENERAL FUND,PLAN LONDON LTD,"3,200.00",CAPITAL PS (SOC SERV),CONSTRUCTION MAIN CONTRACT,5902508112,1000056065
02.02.2022,HOUSING HRA,CLAPHAMS SOLICITORS,"43,000.00",CAPITAL PS (HRA),CAPITAL GRANTS,2103379545,1000087714
02.02.2022,HOUSING HRA,T BROWN GROUP  LTD,"12,921.01",CAPITAL PS (HRA),CONSTRUCTION,2103379859,3000000310
02.02.2022,HOUSING HRA,CALFORD SEADEN LLP,300,CAPITAL PS (HRA),CONSTRUCTION FEES  - EXTERNAL,5902508042,1061592
02.02.2022,HOUSING HRA,CALFORD SEADEN LLP,"1,536.46",CAPITAL PS (HRA),CONSTRUCTION FEES  - EXTERNAL,5902508042,1061592
02.02.2022,HOUSING HRA,CALFORD SEADEN LLP,"6,983.54",CAPITAL PS (HRA),CONSTRUCTION FEES  - EXTERNAL,5902508042,1061592
02.02.2022,HOUSING HRA,A & E ELKINS LTD,"70,000.00",CAPITAL PS (HRA),CONSTRUCTION MAIN CONTRACT -CERTIFICATED,2103379857,4012501
02.02.2022,HOUSING HRA,NIBLOCK (BUILDERS) LTD,985.5,CAPITAL PS (HRA),CONSTRUCTION MAIN CONTRACT -CERTIFICATED,2103381072,3000000235
02.02.2022,HOUSING HRA,NIBLOCK (BUILDERS) LTD,"5,475.00",CAPITAL PS (HRA),CONSTRUCTION MAIN CONTRACT -CERTIFICATED,2103381072,3000000235
02.02.2022,HOUSING HRA,NIBLOCK (BUILDERS) LTD,"7,236.76",CAPITAL PS (HRA),CONSTRUCTION MAIN CONTRACT -CERTIFICATED,2103381071,3000000235
02.02.2022,HOUSING HRA,NIBLOCK (BUILDERS) LTD,"7,236.76",CAPITAL PS (HRA),CONSTRUCTION MAIN CONTRACT -CERTIFICATED,2103381071,3000000235
02.02.2022,HOUSING HRA,PINNACLE BUILDING SERVICES,295,CAPITAL PS (HRA),UTILITIES INSTALLATION,5902508050,1000082308
02.02.2022,LEISURE DIRECTORATE,WESTMINSTER WASTE,747,CEMETERIES,OTHER CONTRACTORS,5902507935,1000080933
02.02.2022,LEISURE DIRECTORATE,TGL GROUP LTD,"1,050.00",TREES PRINCIPAL ROADS,OTHER CONTRACTORS,5902508048,1000081990
02.02.2022,NEW BUILD,BRIDGEWATER LTD,"6,952.50",DEVELOPMENT DELIVERY,PROFESSIONAL FEES,5902508288,1000065042
02.02.2022,PLANNING AND TRANSPORT,SOUTHWARK NEWSPAPER LTD,504,DEV MGT ADMIN & INCOME,MARKETING & PUBLICITY SERVICES,5902508249,1556957
02.02.2022,PLANNING AND TRANSPORT,METIS CONSULTANTS LIMITED,"6,000.00",TRANSPORT POLICY AND PROGRAMS,CONSULTANTS SERVICES,5902508076,1000086330
02.02.2022,PLANNING AND TRANSPORT,METIS CONSULTANTS LIMITED,917,TRANSPORT POLICY AND PROGRAMS,PROFESSIONAL FEES,5902508066,1000086330
02.02.2022,PUBLIC HEALTH,REDACTED PERSONAL DATA,500,COVID-19 CONTROL OUTBREAK MGMNT.FUND,OTHER PAYMENTS FOR CLIENTS,REDACTED,REDACTED
02.02.2022,PUBLIC HEALTH,REDACTED PERSONAL DATA,500,COVID-19 CONTROL OUTBREAK MGMNT.FUND,OTHER PAYMENTS FOR CLIENTS,REDACTED,REDACTED
02.02.2022,REGENERATION,WORKMAN LLP,831.69,7 HOLYROOD STREET,SERVICE CHARGES,2103379866,1000063692
02.02.2022,REGENERATION,WORKMAN LLP,"1,191.07",7 HOLYROOD STREET,SERVICE CHARGES,2103379864,1000063692
02.02.2022,REGENERATION,KENT COUNTY COUNCIL - LASER,-292.82,LBS SOJOURNER TRUTH COMMUNITY CENTRE,GAS,5902508071,1000012926
02.02.2022,REGENERATION,KENT COUNTY COUNCIL - LASER,395.49,LBS SOJOURNER TRUTH COMMUNITY CENTRE,GAS,5902508064,1000012926
02.02.2022,REGENERATION,DAVID ELVIN QC,600,MASTER PLAN-H/WAY & TRANS INTERCHANGE,LEGAL FEES & COURT COSTS,2103381099,1000068801
02.02.2022,RESIDENT SERVICES,CASTLE WATER LTD,289.34,NORTHCOTT HOUSE,WATER,5902508265,1000078867
02.02.2022,RESIDENT SERVICES,NICHOLAS HAM,750,TA ESTATE VOIDS,LEGAL FEES & COURT COSTS,2103381130,1000068994
02.02.2022,RESIDENT SERVICES HGF,AMT PROPERTY LTD,"2,904.75",AFEO,EXTERNAL AGENCIES AND BODIES,5902508111,1000084257
02.02.2022,RESIDENT SERVICES HGF,MUJIFAT LTD,"4,018.49",AFEO,EXTERNAL AGENCIES AND BODIES,5902508146,1000085130
02.02.2022,RESIDENT SERVICES HGF,CHRIS ANTHONY ESTATES,"3,120.78",AFEO,EXTERNAL AGENCIES AND BODIES,5902508108,1000086346
02.02.2022,RESIDENT SERVICES HGF,HELP2SUPPORT LIMITED,"3,438.00",HOMELESS PROJECTS,GRANTS,5902508136,1000084604
02.02.2022,SBS OPERATIONS,AKW MEDI-CARE LTD,289.07,ROTHERHITHE VOIDS,MATERIALS,5902508219,1000047103
02.02.2022,SBS OPERATIONS,AKW MEDI-CARE LTD,327.93,SBS AIDS AND ADAPTATIONS,MATERIALS,5902508215,1000047103
02.02.2022,SOUTHWARK BUILDING SERVICES,"BROWNING, JONES & MORRIS LTD",899.5,STORES/LOGISTICS,CREDITORS -GR/IR CLEARING ACCOUNT,5902508150,1027429
02.02.2022,SOUTHWARK BUILDING SERVICES,"BROWNING, JONES & MORRIS LTD","2,598.00",STORES/LOGISTICS,CREDITORS -GR/IR CLEARING ACCOUNT,5902508150,1027429
02.02.2022,SOUTHWARK BUILDING SERVICES,A T & T (GB LTD ),"1,500.00",STORES/LOGISTICS,CREDITORS -GR/IR CLEARING ACCOUNT,5902508276,1000078342
03.02.2022,ADULT SOCIAL CARE,REDACTED PERSONAL DATA,600,APPOINTEESHIPS,OTHER PAYMENTS FOR CLIENTS,REDACTED,REDACTED
03.02.2022,ADULT SOCIAL CARE,REDACTED PERSONAL DATA,395.2,APPOINTEESHIPS,OTHER PAYMENTS FOR CLIENTS,REDACTED,REDACTED
03.02.2022,ADULT SOCIAL CARE,HEALTH ADVOCACY UK LTD,650,CHC ADVOCACY- OP/PD,EXTERNAL AGENCIES AND BODIES,5902508586,1000082156
03.02.2022,ASSET MANAGEMENT,FRANKLYN SHAW ASSOCIATES LTD,442.32,DISREPAIR,PAYMENTS FOR LEGAL SERVICES,5902507983,1000068289
03.02.2022,ASSET MANAGEMENT,E & E BUILDING SERVICES LTD,"4,698.16",DISREPAIR,PAYMENTS FOR LEGAL SERVICES,2103381341,3000001176
03.02.2022,ASSET MANAGEMENT,E & E BUILDING SERVICES LTD,"15,000.00",DISREPAIR,PAYMENTS FOR LEGAL SERVICES,2103381341,3000001176
03.02.2022,ASSET MANAGEMENT,ARMINA LTD,568.43,DISREPAIR,PAYMENTS FOR LEGAL SERVICES,2103379134,3000002121
03.02.2022,ASSET MANAGEMENT,ARMINA LTD,615.62,DISREPAIR,PAYMENTS FOR LEGAL SERVICES,2103379474,3000002121
03.02.2022,ASSET MANAGEMENT HGF,ROYAL MAIL GROUP LTD,"1,055.38",160 TOOLEY ST.,POSTAGES,5902508418,1000061535
03.02.2022,ASSET MANAGEMENT HGF,ROYAL MAIL GROUP LTD,"1,143.97",160 TOOLEY ST.,POSTAGES,5902508359,1000061535
03.02.2022,ASSET MANAGEMENT HGF,ROYAL MAIL GROUP LTD,"1,164.29",160 TOOLEY ST.,POSTAGES,5902508393,1000061535
03.02.2022,ASSET MANAGEMENT HGF,ROYAL MAIL GROUP LTD,"1,228.72",160 TOOLEY ST.,POSTAGES,5902508424,1000061535
03.02.2022,ASSET MANAGEMENT HGF,ROYAL MAIL GROUP LTD,"1,282.22",160 TOOLEY ST.,POSTAGES,5902508421,1000061535
03.02.2022,ASSET MANAGEMENT HGF,ROYAL MAIL GROUP LTD,"1,361.64",160 TOOLEY ST.,POSTAGES,5902508433,1000061535
03.02.2022,ASSET MANAGEMENT HGF,ROYAL MAIL GROUP LTD,"1,585.33",160 TOOLEY ST.,POSTAGES,5902508389,1000061535
03.02.2022,ASSET MANAGEMENT HGF,ROYAL MAIL GROUP LTD,"1,615.77",160 TOOLEY ST.,POSTAGES,5902508378,1000061535
03.02.2022,ASSET MANAGEMENT HGF,ROYAL MAIL GROUP LTD,"1,618.40",160 TOOLEY ST.,POSTAGES,5902508425,1000061535
03.02.2022,ASSET MANAGEMENT HGF,ROYAL MAIL GROUP LTD,"1,659.16",160 TOOLEY ST.,POSTAGES,5902508373,1000061535
03.02.2022,ASSET MANAGEMENT HGF,QUADIENT FINANCE UK LIMITED,"1,856.08",160 TOOLEY ST.,POSTAGES,5902508337,1000087139
03.02.2022,ASSET MANAGEMENT HGF,MITIE FM LIMITED,"5,318.23",FM SERVICES BY INTERSERVE,BUILDING R&M,5902507538,1000070792
03.02.2022,ASSET MANAGEMENT HGF,MITIE FM LIMITED,"61,874.11",FM SERVICES BY INTERSERVE,BUILDING R&M,5902507538,1000070792
03.02.2022,CENTRAL FUNCTIONS,SPOKEMEAD MAINTENANCE LTD,"17,473.64",AYLESBURY,BUILDING R&M,2103381472,4002791
03.02.2022,CENTRAL FUNCTIONS,SPOKEMEAD MAINTENANCE LTD,"18,852.54",AYLESBURY,BUILDING R&M,2103381473,4002791
03.02.2022,CHIEF EXECUTIVE,RED R DESIGN,395,CAPITAL PS (REGEN),CONSTR'N SUB CONTRACT - NON CERTIFICATED,5902508580,1000035984
03.02.2022,CHIEF EXECUTIVE,F M CONWAY LTD,"7,936.06",CAPITAL PS (REGEN),CONSTRUCTION,2103381177,4001384
03.02.2022,CHIEF EXECUTIVE,SYSTRA LTD,"38,295.00",CAPITAL PS (REGEN),CONSTRUCTION,5902508493,11305109
03.02.2022,CHIEF EXECUTIVE,TILHILL FORESTRY LTD,"14,507.51",CAPITAL PS (REGEN),CONSTRUCTION,2103379016,3000001208
03.02.2022,CHIEF EXECUTIVE,TRACSIS TRAFFIC DATA LTD,"1,550.00",CAPITAL PS (REGEN),CONSTRUCTION FEES  - EXTERNAL,5902507849,1000079382
03.02.2022,CHIEF EXECUTIVE,TRACSIS TRAFFIC DATA LTD,"2,250.00",CAPITAL PS (REGEN),CONSTRUCTION FEES  - EXTERNAL,5902507851,1000079382
03.02.2022,CHILDREN AND ADULT,GROUND ENGINEERING LTD,"14,912.00",CAPITAL PS (EDUCATION),CONSTRUCTION,5902508180,1000013521
03.02.2022,CHILDREN AND FAMILIES,ACAINN LTD,"3,250.00",ADOPT LONDON SOUTH,EXTERNAL AGENCIES AND BODIES,5902508447,1000083763
03.02.2022,CHILDREN AND FAMILIES,REDACTED PERSONAL DATA,"5,605.81",ADOPTION ALLOWANCES,PAYMENTS TO CARERS,REDACTED,REDACTED
03.02.2022,CHILDREN AND FAMILIES,TAVISTOCK & PORTMAN NHS FOUNDATION TRUST ,"1,986.00",ADOPTION SUPP FUND,PROFESSIONAL FEES,5902508446,1991321
03.02.2022,CHILDREN AND FAMILIES,SOUTH LONDON & MAUDSLEY HOSPITAL,"1,670.00",ADOPTION SUPP FUND,PROFESSIONAL FEES,5902508558,1000013096
03.02.2022,CHILDREN AND FAMILIES,CORAM FAMILY,922.2,ADOPTION SUPP FUND,PROFESSIONAL FEES,5902508451,1000023579
03.02.2022,CHILDREN AND FAMILIES,CORAM FAMILY,"1,230.00",ADOPTION SUPP FUND,PROFESSIONAL FEES,5902508450,1000023579
03.02.2022,CHILDREN AND FAMILIES,FAMILY FUTURES CIC,625,ADOPTION SUPP FUND,PROFESSIONAL FEES,5902508462,1000027893
03.02.2022,CHILDREN AND FAMILIES,PARENTS AND CHILDREN TOGETHER,300,ADOPTION SUPP FUND,PROFESSIONAL FEES,5902508469,1000068128
03.02.2022,CHILDREN AND FAMILIES,PARENTS AND CHILDREN TOGETHER,750,ADOPTION SUPP FUND,PROFESSIONAL FEES,5902508463,1000068128
03.02.2022,CHILDREN AND FAMILIES,PARENTS AND CHILDREN TOGETHER,"1,000.00",ADOPTION SUPP FUND,PROFESSIONAL FEES,5902508465,1000068128
03.02.2022,CHILDREN AND FAMILIES,PARENTS AND CHILDREN TOGETHER,"1,350.00",ADOPTION SUPP FUND,PROFESSIONAL FEES,5902508467,1000068128
03.02.2022,CHILDREN AND FAMILIES,CENTRE FOR EMOTIONAL DEVELOPMENT LTD,300,ADOPTION SUPP FUND,PROFESSIONAL FEES,5902508473,1000070499
03.02.2022,CHILDREN AND FAMILIES,PLAY THERAPY SERVICES LTD,315,ADOPTION SUPP FUND,PROFESSIONAL FEES,5902508574,1000085546
03.02.2022,CHILDREN AND FAMILIES,PLAY THERAPY SERVICES LTD,550,ADOPTION SUPP FUND,PROFESSIONAL FEES,5902508576,1000085546
03.02.2022,CHILDREN AND FAMILIES,PLAY THERAPY SERVICES LTD,550,ADOPTION SUPP FUND,PROFESSIONAL FEES,5902508578,1000085546
03.02.2022,CHILDREN AND FAMILIES,REDACTED PERSONAL DATA,455,ADOPTION SUPP FUND,PROFESSIONAL FEES,REDACTED,REDACTED
03.02.2022,CHILDREN AND FAMILIES,REDACTED PERSONAL DATA,300,ADOPTION SUPP FUND,PROFESSIONAL FEES,REDACTED,REDACTED
03.02.2022,CHILDREN AND FAMILIES,REDACTED PERSONAL DATA,540,ADOPTION SUPP FUND,PROFESSIONAL FEES,REDACTED,REDACTED
03.02.2022,CHILDREN AND FAMILIES,REDACTED PERSONAL DATA,280,ADOPTION SUPP FUND,PROFESSIONAL FEES,REDACTED,REDACTED
03.02.2022,CHILDREN AND FAMILIES,REDACTED PERSONAL DATA,280,ADOPTION SUPP FUND,PROFESSIONAL FEES,REDACTED,REDACTED
03.02.2022,CHILDREN AND FAMILIES,REDACTED PERSONAL DATA,700,ADOPTION SUPP FUND,PROFESSIONAL FEES,REDACTED,REDACTED
03.02.2022,CHILDREN AND FAMILIES,REDACTED PERSONAL DATA,"1,120.00",ADOPTION SUPP FUND,PROFESSIONAL FEES,REDACTED,REDACTED
03.02.2022,CHILDREN AND FAMILIES,REDACTED PERSONAL DATA,500,ADOPTION SUPP FUND,PROFESSIONAL FEES,REDACTED,REDACTED
03.02.2022,CHILDREN AND FAMILIES,REDACTED PERSONAL DATA,257.5,ADOPTION SUPP FUND,PROFESSIONAL FEES,REDACTED,REDACTED
03.02.2022,CHILDREN AND FAMILIES,REDACTED PERSONAL DATA,257.5,ADOPTION SUPP FUND,PROFESSIONAL FEES,REDACTED,REDACTED
03.02.2022,CHILDREN AND FAMILIES,REDACTED PERSONAL DATA,322.5,ADOPTION SUPP FUND,PROFESSIONAL FEES,REDACTED,REDACTED
03.02.2022,CHILDREN AND FAMILIES,REDACTED PERSONAL DATA,340,ADOPTION SUPP FUND,PROFESSIONAL FEES,REDACTED,REDACTED
03.02.2022,CHILDREN AND FAMILIES,REDACTED PERSONAL DATA,425,ADOPTION SUPP FUND,PROFESSIONAL FEES,REDACTED,REDACTED
03.02.2022,CHILDREN AND FAMILIES,DIAGRAMA FOUNDATION CHILDREN SERVICES,"35,552.00",ALS INTER AGENCY,EXTERNAL AGENCIES AND BODIES,5902508448,1000078697
03.02.2022,CHILDREN AND FAMILIES,NEGOTIATORS FAMILY CENTRE LIMITED,255,CONTACT SERVICE,OTHER PAYMENTS FOR CLIENTS,5902507225,1000075672
03.02.2022,CHILDREN AND FAMILIES,NEGOTIATORS FAMILY CENTRE LIMITED,305,CONTACT SERVICE,OTHER PAYMENTS FOR CLIENTS,5902507226,1000075672
03.02.2022,CHILDREN AND FAMILIES,NEGOTIATORS FAMILY CENTRE LIMITED,305,CONTACT SERVICE,OTHER PAYMENTS FOR CLIENTS,5902507229,1000075672
03.02.2022,CHILDREN AND FAMILIES,NEGOTIATORS FAMILY CENTRE LIMITED,405,CONTACT SERVICE,OTHER PAYMENTS FOR CLIENTS,5902507227,1000075672
03.02.2022,CHILDREN AND FAMILIES,NEGOTIATORS FAMILY CENTRE LIMITED,505,CONTACT SERVICE,OTHER PAYMENTS FOR CLIENTS,5902507224,1000075672
03.02.2022,CHILDREN AND FAMILIES,JAMMA UMOJA (RESIDENTIAL SERVICES),"2,475.00",FAMILY ASSESSMENTS,RESIDENTIAL CARE,2103381343,1000080325
03.02.2022,CHILDREN AND FAMILIES,JAMMA UMOJA (RESIDENTIAL SERVICES),"3,465.00",FAMILY ASSESSMENTS,RESIDENTIAL CARE,2103381342,1000080325
03.02.2022,CHILDREN AND FAMILIES,JAMMA UMOJA (RESIDENTIAL SERVICES),"3,465.00",FAMILY ASSESSMENTS,RESIDENTIAL CARE,2103381344,1000080325
03.02.2022,CHILDREN AND FAMILIES,JAMMA UMOJA (RESIDENTIAL SERVICES),"3,465.00",FAMILY ASSESSMENTS,RESIDENTIAL CARE,2103381345,1000080325
03.02.2022,CHILDREN AND FAMILIES,JAMMA UMOJA (RESIDENTIAL SERVICES),"3,465.00",FAMILY ASSESSMENTS,RESIDENTIAL CARE,2103381346,1000080325
03.02.2022,CHILDREN AND FAMILIES,JAMMA UMOJA (RESIDENTIAL SERVICES),"3,465.00",FAMILY ASSESSMENTS,RESIDENTIAL CARE,2103381347,1000080325
03.02.2022,CHILDREN AND FAMILIES,JAMMA UMOJA (RESIDENTIAL SERVICES),"3,465.00",FAMILY ASSESSMENTS,RESIDENTIAL CARE,2103381348,1000080325
03.02.2022,CHILDREN AND FAMILIES,JAMMA UMOJA (RESIDENTIAL SERVICES),"3,465.00",FAMILY ASSESSMENTS,RESIDENTIAL CARE,2103381349,1000080325
03.02.2022,CHILDREN AND FAMILIES,THE BEXLEY DAY NURSERY LIMITED,335.55,P & R CARE TEAM,EXTERNAL AGENCIES AND BODIES,5902508581,1000033000
03.02.2022,CHILDREN AND FAMILIES,MOSES BASKET LTD,"1,080.00",P & R CARE TEAM,EXTERNAL AGENCIES AND BODIES,5902507903,1000087880
03.02.2022,CHILDREN AND FAMILIES,PROMETHEUS SAFE AND SECURE LTD,"2,577.00",P & R CARE TEAM,HIRED VEHICLES,5902508441,1000087897
03.02.2022,CHILDREN AND FAMILIES,ELAINE HOLLIDAY,"1,050.00",P & R CARE TEAM,OTHER PAYMENTS FOR CLIENTS,5902508413,1000078039
03.02.2022,CHILDREN AND FAMILIES,REDACTED PERSONAL DATA,300,P & R CARE TEAM,OTHER PAYMENTS FOR CLIENTS,REDACTED,REDACTED
03.02.2022,CHILDREN AND FAMILIES,REDACTED PERSONAL DATA,320,P & R CARE TEAM,OTHER PAYMENTS FOR CLIENTS,REDACTED,REDACTED
03.02.2022,CHILDREN AND FAMILIES,PURPLE PEBBLES(CHILD CARE) SERVICES,"-1,100.00",SEMI-IND CARELEAVERS,COSTS RECOVERED,2103381396,1000070705
03.02.2022,CHILDREN AND FAMILIES,PURPLE PEBBLES(CHILD CARE) SERVICES,-894.99,SEMI-IND CARELEAVERS,COSTS RECOVERED,2103381395,1000070705
03.02.2022,CHILDREN AND FAMILIES,PURPLE PEBBLES(CHILD CARE) SERVICES,-866.67,SEMI-IND CARELEAVERS,COSTS RECOVERED,2103381401,1000070705
03.02.2022,CHILDREN AND FAMILIES,PURPLE PEBBLES(CHILD CARE) SERVICES,"1,705.00",SEMI-IND CARELEAVERS,EXTERNAL AGENCIES AND BODIES,2103381361,1000070705
03.02.2022,CHILDREN AND FAMILIES,PURPLE PEBBLES(CHILD CARE) SERVICES,"1,882.14",SEMI-IND CARELEAVERS,EXTERNAL AGENCIES AND BODIES,2103381375,1000070705
03.02.2022,CHILDREN AND FAMILIES,PURPLE PEBBLES(CHILD CARE) SERVICES,"1,882.14",SEMI-IND CARELEAVERS,EXTERNAL AGENCIES AND BODIES,2103381382,1000070705
03.02.2022,CHILDREN AND FAMILIES,PURPLE PEBBLES(CHILD CARE) SERVICES,"2,103.57",SEMI-IND CARELEAVERS,EXTERNAL AGENCIES AND BODIES,2103381366,1000070705
03.02.2022,CHILDREN AND FAMILIES,PURPLE PEBBLES(CHILD CARE) SERVICES,"2,480.00",SEMI-IND CARELEAVERS,EXTERNAL AGENCIES AND BODIES,2103381364,1000070705
03.02.2022,CHILDREN AND FAMILIES,PURPLE PEBBLES(CHILD CARE) SERVICES,"5,535.75",SEMI-IND LAC 16-17,EXTERNAL AGENCIES AND BODIES,2103381383,1000070705
03.02.2022,CHILDREN AND FAMILIES,1ST PLACE CHILDREN & PARENTS CENTRE,549.12,TEAM C,OTHER PAYMENTS FOR CLIENTS,2103381394,1000049952
03.02.2022,CHILDREN AND FAMILIES,PURPLE PEBBLES(CHILD CARE) SERVICES,-875,UASC CARELEAVERS,COSTS RECOVERED,2103381397,1000070705
03.02.2022,CHILDREN AND FAMILIES,PURPLE PEBBLES(CHILD CARE) SERVICES,-875,UASC CARELEAVERS,COSTS RECOVERED,2103381398,1000070705
03.02.2022,CHILDREN AND FAMILIES,PURPLE PEBBLES(CHILD CARE) SERVICES,-875,UASC CARELEAVERS,COSTS RECOVERED,2103381399,1000070705
03.02.2022,CHILDREN AND FAMILIES,PURPLE PEBBLES(CHILD CARE) SERVICES,-875,UASC CARELEAVERS,COSTS RECOVERED,2103381400,1000070705
03.02.2022,CHILDREN AND FAMILIES,PURPLE PEBBLES(CHILD CARE) SERVICES,280,UASC CARELEAVERS,EXTERNAL AGENCIES AND BODIES,2103381358,1000070705
03.02.2022,CHILDREN AND FAMILIES,PURPLE PEBBLES(CHILD CARE) SERVICES,"1,017.85",UASC CARELEAVERS,EXTERNAL AGENCIES AND BODIES,2103381353,1000070705
03.02.2022,CHILDREN AND FAMILIES,PURPLE PEBBLES(CHILD CARE) SERVICES,"1,594.29",UASC CARELEAVERS,EXTERNAL AGENCIES AND BODIES,2103381371,1000070705
03.02.2022,CHILDREN AND FAMILIES,PURPLE PEBBLES(CHILD CARE) SERVICES,"1,660.71",UASC CARELEAVERS,EXTERNAL AGENCIES AND BODIES,2103381362,1000070705
03.02.2022,CHILDREN AND FAMILIES,PURPLE PEBBLES(CHILD CARE) SERVICES,"1,660.71",UASC CARELEAVERS,EXTERNAL AGENCIES AND BODIES,2103381363,1000070705
03.02.2022,CHILDREN AND FAMILIES,PURPLE PEBBLES(CHILD CARE) SERVICES,"1,660.71",UASC CARELEAVERS,EXTERNAL AGENCIES AND BODIES,2103381373,1000070705
03.02.2022,CHILDREN AND FAMILIES,PURPLE PEBBLES(CHILD CARE) SERVICES,"1,660.71",UASC CARELEAVERS,EXTERNAL AGENCIES AND BODIES,2103381376,1000070705
03.02.2022,CHILDREN AND FAMILIES,PURPLE PEBBLES(CHILD CARE) SERVICES,"1,749.29",UASC CARELEAVERS,EXTERNAL AGENCIES AND BODIES,2103381368,1000070705
03.02.2022,CHILDREN AND FAMILIES,PURPLE PEBBLES(CHILD CARE) SERVICES,"1,771.43",UASC CARELEAVERS,EXTERNAL AGENCIES AND BODIES,2103381354,1000070705
03.02.2022,CHILDREN AND FAMILIES,PURPLE PEBBLES(CHILD CARE) SERVICES,"1,815.71",UASC CARELEAVERS,EXTERNAL AGENCIES AND BODIES,2103381377,1000070705
03.02.2022,CHILDREN AND FAMILIES,PURPLE PEBBLES(CHILD CARE) SERVICES,"1,882.14",UASC CARELEAVERS,EXTERNAL AGENCIES AND BODIES,2103381378,1000070705
03.02.2022,CHILDREN AND FAMILIES,PURPLE PEBBLES(CHILD CARE) SERVICES,"1,904.29",UASC CARELEAVERS,EXTERNAL AGENCIES AND BODIES,2103381355,1000070705
03.02.2022,CHILDREN AND FAMILIES,PURPLE PEBBLES(CHILD CARE) SERVICES,"1,948.57",UASC CARELEAVERS,EXTERNAL AGENCIES AND BODIES,2103381357,1000070705
03.02.2022,CHILDREN AND FAMILIES,PURPLE PEBBLES(CHILD CARE) SERVICES,"1,948.57",UASC CARELEAVERS,EXTERNAL AGENCIES AND BODIES,2103381359,1000070705
03.02.2022,CHILDREN AND FAMILIES,PURPLE PEBBLES(CHILD CARE) SERVICES,"1,948.57",UASC CARELEAVERS,EXTERNAL AGENCIES AND BODIES,2103381372,1000070705
03.02.2022,CHILDREN AND FAMILIES,PURPLE PEBBLES(CHILD CARE) SERVICES,"1,948.57",UASC CARELEAVERS,EXTERNAL AGENCIES AND BODIES,2103381379,1000070705
03.02.2022,CHILDREN AND FAMILIES,PURPLE PEBBLES(CHILD CARE) SERVICES,"1,981.79",UASC CARELEAVERS,EXTERNAL AGENCIES AND BODIES,2103381370,1000070705
03.02.2022,CHILDREN AND FAMILIES,PURPLE PEBBLES(CHILD CARE) SERVICES,"1,992.86",UASC CARELEAVERS,EXTERNAL AGENCIES AND BODIES,2103381351,1000070705
03.02.2022,CHILDREN AND FAMILIES,PURPLE PEBBLES(CHILD CARE) SERVICES,"2,059.29",UASC CARELEAVERS,EXTERNAL AGENCIES AND BODIES,2103381352,1000070705
03.02.2022,CHILDREN AND FAMILIES,PURPLE PEBBLES(CHILD CARE) SERVICES,"2,092.50",UASC CARELEAVERS,EXTERNAL AGENCIES AND BODIES,2103381369,1000070705
03.02.2022,CHILDREN AND FAMILIES,PURPLE PEBBLES(CHILD CARE) SERVICES,"2,103.57",UASC CARELEAVERS,EXTERNAL AGENCIES AND BODIES,2103381367,1000070705
03.02.2022,CHILDREN AND FAMILIES,PURPLE PEBBLES(CHILD CARE) SERVICES,280,UASC CARELEAVERS,OTHER PAYMENTS FOR CLIENTS,2103381360,1000070705
03.02.2022,CHILDREN AND FAMILIES,PURPLE PEBBLES(CHILD CARE) SERVICES,300,UASC CARELEAVERS,OTHER PAYMENTS FOR CLIENTS,2103381381,1000070705
03.02.2022,CHILDREN AND FAMILIES,PURPLE PEBBLES(CHILD CARE) SERVICES,350,UASC CARELEAVERS,OTHER PAYMENTS FOR CLIENTS,2103381356,1000070705
03.02.2022,CHILDREN AND FAMILIES,PURPLE PEBBLES(CHILD CARE) SERVICES,350,UASC CARELEAVERS,OTHER PAYMENTS FOR CLIENTS,2103381365,1000070705
03.02.2022,CHILDREN AND FAMILIES,PURPLE PEBBLES(CHILD CARE) SERVICES,350,UASC CARELEAVERS,OTHER PAYMENTS FOR CLIENTS,2103381374,1000070705
03.02.2022,CHILDREN AND FAMILIES,PURPLE PEBBLES(CHILD CARE) SERVICES,"1,882.14",UASC LAC 16-17,EXTERNAL AGENCIES AND BODIES,2103381385,1000070705
03.02.2022,CHILDREN AND FAMILIES,PURPLE PEBBLES(CHILD CARE) SERVICES,"2,214.28",UASC LAC 16-17,EXTERNAL AGENCIES AND BODIES,2103381392,1000070705
03.02.2022,CHILDREN AND FAMILIES,PURPLE PEBBLES(CHILD CARE) SERVICES,"3,542.86",UASC LAC 16-17,EXTERNAL AGENCIES AND BODIES,2103381387,1000070705
03.02.2022,CHILDREN AND FAMILIES,PURPLE PEBBLES(CHILD CARE) SERVICES,"3,542.86",UASC LAC 16-17,EXTERNAL AGENCIES AND BODIES,2103381388,1000070705
03.02.2022,CHILDREN AND FAMILIES,PURPLE PEBBLES(CHILD CARE) SERVICES,"3,542.86",UASC LAC 16-17,EXTERNAL AGENCIES AND BODIES,2103381389,1000070705
03.02.2022,CHILDREN AND FAMILIES,PURPLE PEBBLES(CHILD CARE) SERVICES,"3,542.86",UASC LAC 16-17,EXTERNAL AGENCIES AND BODIES,2103381390,1000070705
03.02.2022,CHILDREN AND FAMILIES,PURPLE PEBBLES(CHILD CARE) SERVICES,"3,542.86",UASC LAC 16-17,EXTERNAL AGENCIES AND BODIES,2103381393,1000070705
03.02.2022,CHILDREN AND FAMILIES,PURPLE PEBBLES(CHILD CARE) SERVICES,280,UASC LAC 16-17,OTHER PAYMENTS FOR CLIENTS,2103381384,1000070705
03.02.2022,CHILDREN AND FAMILIES,PURPLE PEBBLES(CHILD CARE) SERVICES,350,UASC LAC 16-17,OTHER PAYMENTS FOR CLIENTS,2103381386,1000070705
03.02.2022,CHILDREN AND FAMILIES,PURPLE PEBBLES(CHILD CARE) SERVICES,350,UASC LAC 16-17,OTHER PAYMENTS FOR CLIENTS,2103381391,1000070705
03.02.2022,COMMISSIONING & CENTRAL,LIBRA CONSTRUCTION SERVICES LTD,"2,150.00","QUALITY, PERFORMANCE AND TRANSFORMATION",BUILDING R&M,2103381336,3000000875
03.02.2022,COMMUNITIES,REFUGE,"31,090.25",VIOLENCE AGAINST WOMEN & GIRLS,OTHER CONTRACTORS,5902508589,1000034825
03.02.2022,CORPORATE & DEMOCRATIC CORE,SMITH MEDIA PARTNERSHIP LTD,"1,000.00",CORPORATE & DEPARTMENTAL EXP.,MARKETING & PUBLICITY SERVICES,5902508415,1000087713
03.02.2022,CUSTOMER EXPERIENCE HGF,LONDON COUNCILS,"188,885.00",FREEDOM PASS,CONCESSIONARY FARES,5902508435,11237079
03.02.2022,CUSTOMER EXPERIENCE HGF,TRANSPORT TRADING LTD,"2,539,917.00",FREEDOM PASS,CONCESSIONARY FARES,5902508436,1000019757
03.02.2022,EDUCATION,BERNADETTE PRINCEP,400,GOVERNOR SUPPORT,CONSULTANTS SERVICES,5902508572,1000087894
03.02.2022,EDUCATION,THE BLACK NURSERY MANAGER LTD,750,GOVERNOR SUPPORT,CONSULTANTS SERVICES,5902508316,1000087818
03.02.2022,EDUCATION,DRUMHEAD LTD,768,LEA MUSIC SERVICE(310) - 5018566,CONSULTANTS SERVICES,5902507874,1000051656
03.02.2022,EDUCATION,DRUMHEAD LTD,"1,760.00",LEA MUSIC SERVICE(310) - 5018566,CONSULTANTS SERVICES,5902507784,1000051656
03.02.2022,EDUCATION,DRUMHEAD LTD,"9,800.00",LEA MUSIC SERVICE(310) - 5018566,CONSULTANTS SERVICES,5902507785,1000051656
03.02.2022,EDUCATION,LONDON SOUTH BANK UNIVERSITY,"9,250.00",SCHOLARSHIP SCHEME,EXTERNAL AGENCIES AND BODIES,5902508588,1000051012
03.02.2022,ENVIRONMENT AND LEISURE,THE CHARTER SCHOOL EDUCATIONAL TRUST,"1,272.83",CAPITAL PS (LEISURE),CAPITAL GRANTS,5902507518,1000064975
03.02.2022,ENVIRONMENT AND LEISURE,F M CONWAY LTD,"39,152.55",CAPITAL PS (LEISURE),CONSTR'N SUB CONTRACT - NON CERTIFICATED,2103379469,4001384
03.02.2022,ENVIRONMENT AND LEISURE,F M CONWAY LTD,"5,564.41",CAPITAL PS (LEISURE),CONSTRUCTION,2103381179,4001384
03.02.2022,ENVIRONMENT AND LEISURE,F M CONWAY LTD,"9,540.78",CAPITAL PS (LEISURE),CONSTRUCTION,2103381180,4001384
03.02.2022,ENVIRONMENT AND LEISURE,F M CONWAY LTD,"14,680.42",CAPITAL PS (LEISURE),CONSTRUCTION,2103381181,4001384
03.02.2022,ENVIRONMENT AND LEISURE,F M CONWAY LTD,"25,832.19",CAPITAL PS (LEISURE),CONSTRUCTION,2103379558,4001384
03.02.2022,ENVIRONMENT AND LEISURE,DIVECO MARINE LTD,"45,572.59",CAPITAL PS (LEISURE),CONSTRUCTION FEES  - EXTERNAL,2103378394,3000002162
03.02.2022,ENVIRONMENT AND LEISURE,MACC INTERNATIONAL LIMITED,280,CAPITAL PS (LEISURE),CONSTRUCTION FEES - ENGINEER,5902508497,1000087738
03.02.2022,ENVIRONMENT DIRECTORATE,TRANSPORT FOR LONDON,"9,677.50",COMMERCIAL VEH CTRL A/C,CONGESTION CHARGE,5902508324,1000023986
03.02.2022,ENVIRONMENT DIRECTORATE,E. H. ROBERTS - PENET GROUP LTD,726,COMMERCIAL VEH CTRL A/C,HIRED VEHICLES,5902508403,1000082787
03.02.2022,ENVIRONMENT DIRECTORATE,E. H. ROBERTS - PENET GROUP LTD,726,COMMERCIAL VEH CTRL A/C,HIRED VEHICLES,5902508405,1000082787
03.02.2022,ENVIRONMENT DIRECTORATE,E. H. ROBERTS - PENET GROUP LTD,759,COMMERCIAL VEH CTRL A/C,HIRED VEHICLES,5902508368,1000082787
03.02.2022,ENVIRONMENT DIRECTORATE,E. H. ROBERTS - PENET GROUP LTD,759,COMMERCIAL VEH CTRL A/C,HIRED VEHICLES,5902508377,1000082787
03.02.2022,ENVIRONMENT DIRECTORATE,E. H. ROBERTS - PENET GROUP LTD,759,COMMERCIAL VEH CTRL A/C,HIRED VEHICLES,5902508379,1000082787
03.02.2022,ENVIRONMENT DIRECTORATE,E. H. ROBERTS - PENET GROUP LTD,759,COMMERCIAL VEH CTRL A/C,HIRED VEHICLES,5902508380,1000082787
03.02.2022,ENVIRONMENT DIRECTORATE,E. H. ROBERTS - PENET GROUP LTD,759,COMMERCIAL VEH CTRL A/C,HIRED VEHICLES,5902508383,1000082787
03.02.2022,ENVIRONMENT DIRECTORATE,E. H. ROBERTS - PENET GROUP LTD,836,COMMERCIAL VEH CTRL A/C,HIRED VEHICLES,5902508395,1000082787
03.02.2022,ENVIRONMENT DIRECTORATE,E. H. ROBERTS - PENET GROUP LTD,874,COMMERCIAL VEH CTRL A/C,HIRED VEHICLES,5902508364,1000082787
03.02.2022,ENVIRONMENT DIRECTORATE,E. H. ROBERTS - PENET GROUP LTD,"1,035.00",COMMERCIAL VEH CTRL A/C,HIRED VEHICLES,5902508369,1000082787
03.02.2022,ENVIRONMENT DIRECTORATE,E. H. ROBERTS - PENET GROUP LTD,"1,650.00",COMMERCIAL VEH CTRL A/C,HIRED VEHICLES,5902508397,1000082787
03.02.2022,ENVIRONMENT DIRECTORATE,E. H. ROBERTS - PENET GROUP LTD,"1,650.00",COMMERCIAL VEH CTRL A/C,HIRED VEHICLES,5902508399,1000082787
03.02.2022,ENVIRONMENT DIRECTORATE,E. H. ROBERTS - PENET GROUP LTD,"1,725.00",COMMERCIAL VEH CTRL A/C,HIRED VEHICLES,5902508371,1000082787
03.02.2022,ENVIRONMENT DIRECTORATE,E. H. ROBERTS - PENET GROUP LTD,"1,725.00",COMMERCIAL VEH CTRL A/C,HIRED VEHICLES,5902508375,1000082787
03.02.2022,ENVIRONMENT DIRECTORATE,E. H. ROBERTS - PENET GROUP LTD,"1,725.00",COMMERCIAL VEH CTRL A/C,HIRED VEHICLES,5902508376,1000082787
03.02.2022,ENVIRONMENT DIRECTORATE,WALWORTH GARDEN LTD,275,COMMUNITY PROJECTS,TRAINING,5902508355,1000042204
03.02.2022,ENVIRONMENT DIRECTORATE,FAROL LTD,363.8,ICC SPECIAL TEAMS,EQUIPMENT PURCHASE & REPAIR,5902508460,1000078940
03.02.2022,ENVIRONMENT DIRECTORATE,FAROL LTD,457.55,ICC SPECIAL TEAMS,EQUIPMENT PURCHASE & REPAIR,5902508452,1000078940
03.02.2022,F & C S EXCLUDING CORPORATE BUDGETS,NEC SOFTWARE SOLUTIONS UK LTD,"3,217.50",ADMINISTRATIVE SUPPORT,SOFTWARE,5902507905,1000087043
03.02.2022,F & C S EXCLUDING CORPORATE BUDGETS,REDACTED PERSONAL DATA,500,SESS,OTHER PAYMENTS FOR CLIENTS,REDACTED,REDACTED
03.02.2022,F & C S EXCLUDING CORPORATE BUDGETS,REDACTED PERSONAL DATA,500,SESS,OTHER PAYMENTS FOR CLIENTS,REDACTED,REDACTED
03.02.2022,F & C S EXCLUDING CORPORATE BUDGETS,REDACTED PERSONAL DATA,500,SESS,OTHER PAYMENTS FOR CLIENTS,REDACTED,REDACTED
03.02.2022,F & C S EXCLUDING CORPORATE BUDGETS,REDACTED PERSONAL DATA,500,SESS,OTHER PAYMENTS FOR CLIENTS,REDACTED,REDACTED
03.02.2022,F & C S EXCLUDING CORPORATE BUDGETS,REDACTED PERSONAL DATA,500,SESS,OTHER PAYMENTS FOR CLIENTS,REDACTED,REDACTED
03.02.2022,FINANCE & GOVERNANCE,LAND REGISTRY,306,REGENERATION,LEGAL & COURT FEES,6102014443,DIRECT DEBIT PAYMENT
03.02.2022,HOUSING,OCO LIMITED,"138,474.17",PAYMENTS CONTROL ACCOUNT - OCO,I-WORLD CONTRACTORS HOLDING ACCOUNT,5902508305,1006066
03.02.2022,HOUSING,SMITH & BYFORD LTD,"113,765.58",SMITH AND BYFORD,I-WORLD CONTRACTORS HOLDING ACCOUNT,5902508307,11212119
03.02.2022,HOUSING HRA,CALFORD SEADEN LLP,"3,664.18",CAPITAL PS (HRA),CONSTRUCTION FEES  - EXTERNAL,5902508562,1061592
03.02.2022,HOUSING HRA,MARTIN ARNOLD LTD,"4,165.00",CAPITAL PS (HRA),CONSTRUCTION FEES - EMPLOYERS AGENT,5902508486,1000076993
03.02.2022,HOUSING HRA,SHARPE PRITCHARD LLP,"3,096.00",CAPITAL PS (HRA),CONSTRUCTION FEES - LEGAL,5902508489,1790085
03.02.2022,HOUSING HRA,SHARPE PRITCHARD LLP,"7,424.00",CAPITAL PS (HRA),CONSTRUCTION FEES - LEGAL,5902508489,1790085
03.02.2022,HOUSING HRA,ENGIE REGENERATION LTD,"158,053.58",CAPITAL PS (HRA),CONSTRUCTION MAIN CONTRACT -CERTIFICATED,2103379471,3000002035
03.02.2022,HOUSING HRA,CALFORD SEADEN (HEALTH & SAFETY) LTD,"1,400.00",CAPITAL PS (REGEN),CONSTRUCTION FEES  - EXTERNAL,5902507513,1097125
03.02.2022,LEISURE DIRECTORATE,LONDON WILDLIFE TRUST,"7,620.00",ENVIRONMENT & LEISURE GRANTS,OTHER CONTRACTORS,5902507599,1832374
03.02.2022,LEISURE DIRECTORATE,FILM LONDON,337,LOCAL HISTORY LIBRARY,FREELANCE SPECIALISTS,5902508591,1000085975
03.02.2022,NEW BUILD,SHARPE PRITCHARD LLP,290,DEVELOPMENT DELIVERY,PROFESSIONAL FEES,5902508471,1790085
03.02.2022,NEW BUILD,SHARPE PRITCHARD LLP,309,DEVELOPMENT DELIVERY,PROFESSIONAL FEES,5902508466,1790085
03.02.2022,NEW BUILD,SHARPE PRITCHARD LLP,352,DEVELOPMENT DELIVERY,PROFESSIONAL FEES,5902508479,1790085
03.02.2022,NEW BUILD,SHARPE PRITCHARD LLP,384,DEVELOPMENT DELIVERY,PROFESSIONAL FEES,5902508461,1790085
03.02.2022,NEW BUILD,SHARPE PRITCHARD LLP,405,DEVELOPMENT DELIVERY,PROFESSIONAL FEES,5902508474,1790085
03.02.2022,NEW BUILD,SHARPE PRITCHARD LLP,633,DEVELOPMENT DELIVERY,PROFESSIONAL FEES,5902508455,1790085
03.02.2022,NEW BUILD,SHARPE PRITCHARD LLP,934,DEVELOPMENT DELIVERY,PROFESSIONAL FEES,5902508476,1790085
03.02.2022,PUBLIC HEALTH,CITY HOPE CHURCH,"2,056.00",PLACE & HEALTH IMPROVEMENT,EXTERNAL AGENCIES AND BODIES,5902508582,1000035253
03.02.2022,REGENERATION,PINSENT MASONS LLP,"1,475.00",CANADA WATER,PAYMENTS FOR LEGAL SERVICES,5902508546,1000046862
03.02.2022,REGENERATION,PINSENT MASONS LLP,"2,111.00",CANADA WATER,PAYMENTS FOR LEGAL SERVICES,5902508566,1000046862
03.02.2022,REGENERATION,PINSENT MASONS LLP,"2,862.00",CANADA WATER,PAYMENTS FOR LEGAL SERVICES,5902508560,1000046862
03.02.2022,REGENERATION,BRESLIN CONSTRUCTION LTD,"4,550.00",CPHA  MANAGED PROPERTIES,BUILDING R&M,2103381405,3000001948
03.02.2022,RESIDENT SERVICES HGF,VISHAL PATEL,"2,446.98",HOMELESS PROJECTS,GRANTS,5902508402,1000087851
03.02.2022,RESIDENT SERVICES HGF,REDACTED PERSONAL DATA,"2,381.92",HOUSING OPTIONS,EXTERNAL AGENCIES AND BODIES,REDACTED,REDACTED
03.02.2022,RESIDENT SERVICES HGF,TIAGO BRANDAO,650,RAPID REHOUSING,GRANTS,5902508480,1000084163
03.02.2022,RESIDENT SERVICES HGF,TIAGO BRANDAO,850,RAPID REHOUSING,GRANTS,5902508468,1000084163
03.02.2022,SBS OPERATIONS,HOWDENS JOINERY CO,337.08,BOROUGH & BANKSIDE VOIDS,MATERIALS,5902508432,1000027491
03.02.2022,SBS OPERATIONS,TRAVIS PERKINS TRADING COMPANY LTD,441,SBS LEAKS FROM ABOVE,MATERIALS,5902508529,1514319
03.02.2022,SBS OPERATIONS,TRAVIS PERKINS TRADING COMPANY LTD,323.33,WALWORTH DD,MATERIALS,5902508501,1514319
03.02.2022,SOUTHWARK BUILDING SERVICES,N & C BUILDING MATERIALS,314.65,STORES/LOGISTICS,CREDITORS -GR/IR CLEARING ACCOUNT,5902508346,1005586
03.02.2022,SOUTHWARK BUILDING SERVICES,TRAVIS PERKINS TRADING COMPANY LTD,-684.72,STORES/LOGISTICS,CREDITORS -GR/IR CLEARING ACCOUNT,5902508536,1514319
03.02.2022,SOUTHWARK BUILDING SERVICES,TRAVIS PERKINS TRADING COMPANY LTD,-484,STORES/LOGISTICS,CREDITORS -GR/IR CLEARING ACCOUNT,5902508507,1514319
03.02.2022,SOUTHWARK BUILDING SERVICES,TRAVIS PERKINS TRADING COMPANY LTD,258.72,STORES/LOGISTICS,CREDITORS -GR/IR CLEARING ACCOUNT,5902508515,1514319
03.02.2022,SOUTHWARK BUILDING SERVICES,TRAVIS PERKINS TRADING COMPANY LTD,276,STORES/LOGISTICS,CREDITORS -GR/IR CLEARING ACCOUNT,5902508529,1514319
03.02.2022,SOUTHWARK BUILDING SERVICES,TRAVIS PERKINS TRADING COMPANY LTD,325.5,STORES/LOGISTICS,CREDITORS -GR/IR CLEARING ACCOUNT,5902508522,1514319
03.02.2022,SOUTHWARK BUILDING SERVICES,TRAVIS PERKINS TRADING COMPANY LTD,329.56,STORES/LOGISTICS,CREDITORS -GR/IR CLEARING ACCOUNT,5902508529,1514319
03.02.2022,SOUTHWARK BUILDING SERVICES,TRAVIS PERKINS TRADING COMPANY LTD,356.4,STORES/LOGISTICS,CREDITORS -GR/IR CLEARING ACCOUNT,5902508533,1514319
03.02.2022,SOUTHWARK BUILDING SERVICES,TRAVIS PERKINS TRADING COMPANY LTD,372.8,STORES/LOGISTICS,CREDITORS -GR/IR CLEARING ACCOUNT,5902508529,1514319
03.02.2022,SOUTHWARK BUILDING SERVICES,TRAVIS PERKINS TRADING COMPANY LTD,375.6,STORES/LOGISTICS,CREDITORS -GR/IR CLEARING ACCOUNT,5902508529,1514319
03.02.2022,SOUTHWARK BUILDING SERVICES,TRAVIS PERKINS TRADING COMPANY LTD,393.6,STORES/LOGISTICS,CREDITORS -GR/IR CLEARING ACCOUNT,5902508529,1514319
03.02.2022,SOUTHWARK BUILDING SERVICES,TRAVIS PERKINS TRADING COMPANY LTD,403.2,STORES/LOGISTICS,CREDITORS -GR/IR CLEARING ACCOUNT,5902508529,1514319
03.02.2022,SOUTHWARK BUILDING SERVICES,TRAVIS PERKINS TRADING COMPANY LTD,405,STORES/LOGISTICS,CREDITORS -GR/IR CLEARING ACCOUNT,5902508515,1514319
03.02.2022,SOUTHWARK BUILDING SERVICES,TRAVIS PERKINS TRADING COMPANY LTD,419.4,STORES/LOGISTICS,CREDITORS -GR/IR CLEARING ACCOUNT,5902508529,1514319
03.02.2022,SOUTHWARK BUILDING SERVICES,TRAVIS PERKINS TRADING COMPANY LTD,451.6,STORES/LOGISTICS,CREDITORS -GR/IR CLEARING ACCOUNT,5902508529,1514319
03.02.2022,SOUTHWARK BUILDING SERVICES,TRAVIS PERKINS TRADING COMPANY LTD,494.4,STORES/LOGISTICS,CREDITORS -GR/IR CLEARING ACCOUNT,5902508515,1514319
03.02.2022,SOUTHWARK BUILDING SERVICES,TRAVIS PERKINS TRADING COMPANY LTD,500,STORES/LOGISTICS,CREDITORS -GR/IR CLEARING ACCOUNT,5902508515,1514319
03.02.2022,SOUTHWARK BUILDING SERVICES,TRAVIS PERKINS TRADING COMPANY LTD,500,STORES/LOGISTICS,CREDITORS -GR/IR CLEARING ACCOUNT,5902508529,1514319
03.02.2022,SOUTHWARK BUILDING SERVICES,TRAVIS PERKINS TRADING COMPANY LTD,515.2,STORES/LOGISTICS,CREDITORS -GR/IR CLEARING ACCOUNT,5902508522,1514319
03.02.2022,SOUTHWARK BUILDING SERVICES,TRAVIS PERKINS TRADING COMPANY LTD,525.48,STORES/LOGISTICS,CREDITORS -GR/IR CLEARING ACCOUNT,5902508515,1514319
03.02.2022,SOUTHWARK BUILDING SERVICES,TRAVIS PERKINS TRADING COMPANY LTD,554.4,STORES/LOGISTICS,CREDITORS -GR/IR CLEARING ACCOUNT,5902508515,1514319
03.02.2022,SOUTHWARK BUILDING SERVICES,TRAVIS PERKINS TRADING COMPANY LTD,554.4,STORES/LOGISTICS,CREDITORS -GR/IR CLEARING ACCOUNT,5902508529,1514319
03.02.2022,SOUTHWARK BUILDING SERVICES,TRAVIS PERKINS TRADING COMPANY LTD,586.4,STORES/LOGISTICS,CREDITORS -GR/IR CLEARING ACCOUNT,5902508529,1514319
03.02.2022,SOUTHWARK BUILDING SERVICES,TRAVIS PERKINS TRADING COMPANY LTD,601.2,STORES/LOGISTICS,CREDITORS -GR/IR CLEARING ACCOUNT,5902508515,1514319
03.02.2022,SOUTHWARK BUILDING SERVICES,TRAVIS PERKINS TRADING COMPANY LTD,610,STORES/LOGISTICS,CREDITORS -GR/IR CLEARING ACCOUNT,5902508529,1514319
03.02.2022,SOUTHWARK BUILDING SERVICES,TRAVIS PERKINS TRADING COMPANY LTD,624.6,STORES/LOGISTICS,CREDITORS -GR/IR CLEARING ACCOUNT,5902508529,1514319
03.02.2022,SOUTHWARK BUILDING SERVICES,TRAVIS PERKINS TRADING COMPANY LTD,658,STORES/LOGISTICS,CREDITORS -GR/IR CLEARING ACCOUNT,5902508529,1514319
03.02.2022,SOUTHWARK BUILDING SERVICES,TRAVIS PERKINS TRADING COMPANY LTD,665.82,STORES/LOGISTICS,CREDITORS -GR/IR CLEARING ACCOUNT,5902508529,1514319
03.02.2022,SOUTHWARK BUILDING SERVICES,TRAVIS PERKINS TRADING COMPANY LTD,675.5,STORES/LOGISTICS,CREDITORS -GR/IR CLEARING ACCOUNT,5902508531,1514319
03.02.2022,SOUTHWARK BUILDING SERVICES,TRAVIS PERKINS TRADING COMPANY LTD,684.72,STORES/LOGISTICS,CREDITORS -GR/IR CLEARING ACCOUNT,5902508529,1514319
03.02.2022,SOUTHWARK BUILDING SERVICES,TRAVIS PERKINS TRADING COMPANY LTD,796.89,STORES/LOGISTICS,CREDITORS -GR/IR CLEARING ACCOUNT,5902508515,1514319
03.02.2022,SOUTHWARK BUILDING SERVICES,TRAVIS PERKINS TRADING COMPANY LTD,800.6,STORES/LOGISTICS,CREDITORS -GR/IR CLEARING ACCOUNT,5902508529,1514319
03.02.2022,SOUTHWARK BUILDING SERVICES,TRAVIS PERKINS TRADING COMPANY LTD,858.6,STORES/LOGISTICS,CREDITORS -GR/IR CLEARING ACCOUNT,5902508533,1514319
03.02.2022,SOUTHWARK BUILDING SERVICES,TRAVIS PERKINS TRADING COMPANY LTD,881.93,STORES/LOGISTICS,CREDITORS -GR/IR CLEARING ACCOUNT,5902508515,1514319
03.02.2022,SOUTHWARK BUILDING SERVICES,TRAVIS PERKINS TRADING COMPANY LTD,971,STORES/LOGISTICS,CREDITORS -GR/IR CLEARING ACCOUNT,5902508515,1514319
03.02.2022,SOUTHWARK BUILDING SERVICES,TRAVIS PERKINS TRADING COMPANY LTD,"1,091.00",STORES/LOGISTICS,CREDITORS -GR/IR CLEARING ACCOUNT,5902508522,1514319
03.02.2022,SOUTHWARK BUILDING SERVICES,TRAVIS PERKINS TRADING COMPANY LTD,"1,177.20",STORES/LOGISTICS,CREDITORS -GR/IR CLEARING ACCOUNT,5902508529,1514319
03.02.2022,SOUTHWARK BUILDING SERVICES,TRAVIS PERKINS TRADING COMPANY LTD,"1,198.00",STORES/LOGISTICS,CREDITORS -GR/IR CLEARING ACCOUNT,5902508529,1514319
03.02.2022,SOUTHWARK BUILDING SERVICES,TRAVIS PERKINS TRADING COMPANY LTD,"1,220.00",STORES/LOGISTICS,CREDITORS -GR/IR CLEARING ACCOUNT,5902508522,1514319
03.02.2022,SOUTHWARK BUILDING SERVICES,TRAVIS PERKINS TRADING COMPANY LTD,"1,350.80",STORES/LOGISTICS,CREDITORS -GR/IR CLEARING ACCOUNT,5902508531,1514319
03.02.2022,SOUTHWARK BUILDING SERVICES,TRAVIS PERKINS TRADING COMPANY LTD,"1,451.80",STORES/LOGISTICS,CREDITORS -GR/IR CLEARING ACCOUNT,5902508526,1514319
03.02.2022,SOUTHWARK BUILDING SERVICES,TRAVIS PERKINS TRADING COMPANY LTD,"1,515.36",STORES/LOGISTICS,CREDITORS -GR/IR CLEARING ACCOUNT,5902508515,1514319
03.02.2022,SOUTHWARK BUILDING SERVICES,MARTIN VITERA LTD,259.52,STORES/LOGISTICS,CREDITORS -GR/IR CLEARING ACCOUNT,5902508354,1560597
03.02.2022,SOUTHWARK BUILDING SERVICES,MARTIN VITERA LTD,468.6,STORES/LOGISTICS,CREDITORS -GR/IR CLEARING ACCOUNT,5902508352,1560597
03.02.2022,SOUTHWARK BUILDING SERVICES,MARTIN VITERA LTD,"1,249.60",STORES/LOGISTICS,CREDITORS -GR/IR CLEARING ACCOUNT,5902508354,1560597
03.02.2022,SOUTHWARK BUILDING SERVICES,KEMICO LIMITED,"1,440.00",STORES/LOGISTICS,CREDITORS -GR/IR CLEARING ACCOUNT,5902508301,1000030226
03.02.2022,SOUTHWARK BUILDING SERVICES,KEMICO LIMITED,"5,292.00",STORES/LOGISTICS,CREDITORS -GR/IR CLEARING ACCOUNT,5902508301,1000030226
03.02.2022,STRATEGIC SERVICES,DANIA SOFTWARE,"4,089.00",DIGITAL DELIVERY,SOFTWARE,6102014456,INTERNATIONAL PAYMENT
04.02.2022,ADULT SOCIAL CARE,REDACTED PERSONAL DATA,262.6,APPOINTEESHIPS,OTHER PAYMENTS FOR CLIENTS,REDACTED,REDACTED
04.02.2022,ADULT SOCIAL CARE,REDACTED PERSONAL DATA,279.85,APPOINTEESHIPS,OTHER PAYMENTS FOR CLIENTS,REDACTED,REDACTED
04.02.2022,ADULT SOCIAL CARE,PRIORS COURT SERVICES LTD,"17,391.97",DISABILITIES LAC,RESIDENTIAL CARE,2103382045,1000085127
04.02.2022,ADULT SOCIAL CARE,PRIORS COURT SERVICES LTD,"44,932.55",DISABILITIES LAC,RESIDENTIAL CARE,2103382047,1000085127
04.02.2022,ADULT SOCIAL CARE,THAMES HOMECARE SERVICE LTD,379.08,DISCHARGE TO ACCESS,HOMECARE - C&V,2103382208,1000079295
04.02.2022,ADULT SOCIAL CARE,LONDON CARE LTD,"43,287.35",EXTRA CARE CONTRACT,HOMECARE - C&V,5902508598,1000003398
04.02.2022,ADULT SOCIAL CARE,SURREY DOCKS FARM PROVIDENT SOCIETY,480,LD LTS 18-64,DAYCARE,2103382304,1000000958
04.02.2022,ADULT SOCIAL CARE,SURREY DOCKS FARM PROVIDENT SOCIETY,500,LD LTS 18-64,DAYCARE,2103382299,1000000958
04.02.2022,ADULT SOCIAL CARE,SURREY DOCKS FARM PROVIDENT SOCIETY,720,LD LTS 18-64,DAYCARE,2103382303,1000000958
04.02.2022,ADULT SOCIAL CARE,MEDACS HOMECARE,296.64,LD LTS 18-64,HOMECARE - C&V,2103382289,11287415
04.02.2022,ADULT SOCIAL CARE,LONDON CARE LTD,926.5,LD LTS 18-64,HOMECARE - C&V,2103381755,1000003398
04.02.2022,ADULT SOCIAL CARE,METRO HOMECARE LTD,396,LD LTS 18-64,HOMECARE - SPOT,2103381946,1000070695
04.02.2022,ADULT SOCIAL CARE,THAMES HOMECARE SERVICE LTD,262.08,LD LTS 18-64,HOMECARE - SPOT,2103382128,1000079295
04.02.2022,ADULT SOCIAL CARE,CARE O LINE,"3,520.00",LD LTS 18-64,SUPPORTED LIVING,2103382298,11241743
04.02.2022,ADULT SOCIAL CARE,MEDACS HOMECARE,556.2,LD LTS 18-64,SUPPORTED LIVING,2103382260,11287415
04.02.2022,ADULT SOCIAL CARE,MEDACS HOMECARE,834.3,LD LTS 18-64,SUPPORTED LIVING,2103382248,11287415
04.02.2022,ADULT SOCIAL CARE,SURREY DOCKS FARM PROVIDENT SOCIETY,360,LD LTS 65+,DAYCARE,2103382301,1000000958
04.02.2022,ADULT SOCIAL CARE,LONDON CARE LTD,289.51,MEM LTS 18-64,HOMECARE - C&V,2103381667,1000003398
04.02.2022,ADULT SOCIAL CARE,LONDON CARE LTD,511.71,MEM LTS 18-64,HOMECARE - C&V,2103381700,1000003398
04.02.2022,ADULT SOCIAL CARE,LONDON CARE LTD,770.2,MEM LTS 18-64,HOMECARE - C&V,2103381862,1000003398
04.02.2022,ADULT SOCIAL CARE,MEDACS HOMECARE,483.02,MEM LTS 65+,HOMECARE - C&V,2103382264,11287415
04.02.2022,ADULT SOCIAL CARE,MEDACS HOMECARE,539.11,MEM LTS 65+,HOMECARE - C&V,2103382283,11287415
04.02.2022,ADULT SOCIAL CARE,LONDON CARE LTD,345.61,MEM LTS 65+,HOMECARE - C&V,2103381778,1000003398
04.02.2022,ADULT SOCIAL CARE,LONDON CARE LTD,442.56,MEM LTS 65+,HOMECARE - C&V,2103381743,1000003398
04.02.2022,ADULT SOCIAL CARE,LONDON CARE LTD,543.98,MEM LTS 65+,HOMECARE - C&V,2103381547,1000003398
04.02.2022,ADULT SOCIAL CARE,LONDON CARE LTD,548.25,MEM LTS 65+,HOMECARE - C&V,2103381904,1000003398
04.02.2022,ADULT SOCIAL CARE,LONDON CARE LTD,639.87,MEM LTS 65+,HOMECARE - C&V,2103381634,1000003398
04.02.2022,ADULT SOCIAL CARE,LONDON CARE LTD,815.97,MEM LTS 65+,HOMECARE - C&V,2103381739,1000003398
04.02.2022,ADULT SOCIAL CARE,LONDON CARE LTD,957.8,MEM LTS 65+,HOMECARE - C&V,2103381816,1000003398
04.02.2022,ADULT SOCIAL CARE,LONDON CARE LTD,"1,028.03",MEM LTS 65+,HOMECARE - C&V,2103381546,1000003398
04.02.2022,ADULT SOCIAL CARE,LONDON CARE LTD,"1,060.30",MEM LTS 65+,HOMECARE - C&V,2103381704,1000003398
04.02.2022,ADULT SOCIAL CARE,LONDON CARE LTD,"1,470.59",MEM LTS 65+,HOMECARE - C&V,2103381490,1000003398
04.02.2022,ADULT SOCIAL CARE,LONDON CARE LTD,"2,111.38",MEM LTS 65+,HOMECARE - C&V,2103381795,1000003398
04.02.2022,ADULT SOCIAL CARE,LONDON CARE LTD,"2,374.15",MEM LTS 65+,HOMECARE - C&V,2103381673,1000003398
04.02.2022,ADULT SOCIAL CARE,LONDON CARE LTD,"2,741.25",MEM LTS 65+,HOMECARE - C&V,2103381891,1000003398
04.02.2022,ADULT SOCIAL CARE,THAMES HOMECARE SERVICE LTD,804.96,MEM LTS 65+,HOMECARE - C&V,2103382068,1000079295
04.02.2022,ADULT SOCIAL CARE,THAMES HOMECARE SERVICE LTD,655.2,MEM LTS 65+,HOMECARE - SPOT,2103382070,1000079295
04.02.2022,ADULT SOCIAL CARE,MEDACS HOMECARE,258.76,MH LTS 18-64,HOMECARE - C&V,2103382228,11287415
04.02.2022,ADULT SOCIAL CARE,MEDACS HOMECARE,276,MH LTS 18-64,HOMECARE - C&V,2103382255,11287415
04.02.2022,ADULT SOCIAL CARE,LONDON CARE LTD,258.16,MH LTS 18-64,HOMECARE - C&V,2103381626,1000003398
04.02.2022,ADULT SOCIAL CARE,LONDON CARE LTD,299.65,MH LTS 18-64,HOMECARE - C&V,2103381731,1000003398
04.02.2022,ADULT SOCIAL CARE,LONDON CARE LTD,322.7,MH LTS 18-64,HOMECARE - C&V,2103381539,1000003398
04.02.2022,ADULT SOCIAL CARE,LONDON CARE LTD,414.9,MH LTS 18-64,HOMECARE - C&V,2103381496,1000003398
04.02.2022,ADULT SOCIAL CARE,LONDON CARE LTD,488.66,MH LTS 18-64,HOMECARE - C&V,2103381793,1000003398
04.02.2022,ADULT SOCIAL CARE,LONDON CARE LTD,514.25,MH LTS 18-64,HOMECARE - C&V,2103381828,1000003398
04.02.2022,ADULT SOCIAL CARE,LONDON CARE LTD,918,MH LTS 18-64,HOMECARE - C&V,2103381782,1000003398
04.02.2022,ADULT SOCIAL CARE,LONDON CARE LTD,"2,014.57",MH LTS 18-64,HOMECARE - C&V,2103381605,1000003398
04.02.2022,ADULT SOCIAL CARE,WESTMINSTER HOMECARE LTD,591.16,MH LTS 18-64,HOMECARE - SPOT,2103381965,1000075287
04.02.2022,ADULT SOCIAL CARE,REDACTED PERSONAL DATA,750,MH LTS 18-64,PAYMENTS TO CLIENTS (DIRECT PAYMENTS),REDACTED,REDACTED
04.02.2022,ADULT SOCIAL CARE,LONDON CARE LTD,267.38,MH LTS 65+,HOMECARE - C&V,2103381534,1000003398
04.02.2022,ADULT SOCIAL CARE,LONDON CARE LTD,299.65,MH LTS 65+,HOMECARE - C&V,2103381601,1000003398
04.02.2022,ADULT SOCIAL CARE,LONDON CARE LTD,548.59,MH LTS 65+,HOMECARE - C&V,2103381721,1000003398
04.02.2022,ADULT SOCIAL CARE,LONDON CARE LTD,567.03,MH LTS 65+,HOMECARE - C&V,2103381569,1000003398
04.02.2022,ADULT SOCIAL CARE,LONDON CARE LTD,599.3,MH LTS 65+,HOMECARE - C&V,2103381853,1000003398
04.02.2022,ADULT SOCIAL CARE,LONDON CARE LTD,981.75,MH LTS 65+,HOMECARE - C&V,2103381861,1000003398
04.02.2022,ADULT SOCIAL CARE,LONDON CARE LTD,981.93,MH LTS 65+,HOMECARE - C&V,2103381847,1000003398
04.02.2022,ADULT SOCIAL CARE,LONDON CARE LTD,"1,032.64",MH LTS 65+,HOMECARE - C&V,2103381707,1000003398
04.02.2022,ADULT SOCIAL CARE,LONDON CARE LTD,"1,087.96",MH LTS 65+,HOMECARE - C&V,2103381551,1000003398
04.02.2022,ADULT SOCIAL CARE,LONDON CARE LTD,"1,106.40",MH LTS 65+,HOMECARE - C&V,2103381764,1000003398
04.02.2022,ADULT SOCIAL CARE,THAMES HOMECARE SERVICE LTD,486.72,MH LTS 65+,HOMECARE - SPOT,2103382109,1000079295
04.02.2022,ADULT SOCIAL CARE,MEDACS HOMECARE,329.84,PHY LTS 18-64,HOMECARE - C&V,2103382272,11287415
04.02.2022,ADULT SOCIAL CARE,MEDACS HOMECARE,330.39,PHY LTS 18-64,HOMECARE - C&V,2103382285,11287415
04.02.2022,ADULT SOCIAL CARE,MEDACS HOMECARE,719.45,PHY LTS 18-64,HOMECARE - C&V,2103382297,11287415
04.02.2022,ADULT SOCIAL CARE,MEDACS HOMECARE,797.24,PHY LTS 18-64,HOMECARE - C&V,2103382273,11287415
04.02.2022,ADULT SOCIAL CARE,MEDACS HOMECARE,"1,219.02",PHY LTS 18-64,HOMECARE - C&V,2103382263,11287415
04.02.2022,ADULT SOCIAL CARE,MEDACS HOMECARE,"1,260.73",PHY LTS 18-64,HOMECARE - C&V,2103382276,11287415
04.02.2022,ADULT SOCIAL CARE,MEDACS HOMECARE,"1,533.08",PHY LTS 18-64,HOMECARE - C&V,2103382267,11287415
04.02.2022,ADULT SOCIAL CARE,MEDACS HOMECARE,"2,707.28",PHY LTS 18-64,HOMECARE - C&V,2103382287,11287415
04.02.2022,ADULT SOCIAL CARE,LONDON CARE LTD,251.09,PHY LTS 18-64,HOMECARE - C&V,2103381627,1000003398
04.02.2022,ADULT SOCIAL CARE,LONDON CARE LTD,258.16,PHY LTS 18-64,HOMECARE - C&V,2103381596,1000003398
04.02.2022,ADULT SOCIAL CARE,LONDON CARE LTD,280.5,PHY LTS 18-64,HOMECARE - C&V,2103381783,1000003398
04.02.2022,ADULT SOCIAL CARE,LONDON CARE LTD,284.75,PHY LTS 18-64,HOMECARE - C&V,2103381804,1000003398
04.02.2022,ADULT SOCIAL CARE,LONDON CARE LTD,287.27,PHY LTS 18-64,HOMECARE - C&V,2103381894,1000003398
04.02.2022,ADULT SOCIAL CARE,LONDON CARE LTD,331.5,PHY LTS 18-64,HOMECARE - C&V,2103381785,1000003398
04.02.2022,ADULT SOCIAL CARE,LONDON CARE LTD,331.92,PHY LTS 18-64,HOMECARE - C&V,2103381609,1000003398
04.02.2022,ADULT SOCIAL CARE,LONDON CARE LTD,331.92,PHY LTS 18-64,HOMECARE - C&V,2103381688,1000003398
04.02.2022,ADULT SOCIAL CARE,LONDON CARE LTD,341.14,PHY LTS 18-64,HOMECARE - C&V,2103381570,1000003398
04.02.2022,ADULT SOCIAL CARE,LONDON CARE LTD,357,PHY LTS 18-64,HOMECARE - C&V,2103381817,1000003398
04.02.2022,ADULT SOCIAL CARE,LONDON CARE LTD,387.24,PHY LTS 18-64,HOMECARE - C&V,2103381614,1000003398
04.02.2022,ADULT SOCIAL CARE,LONDON CARE LTD,391,PHY LTS 18-64,HOMECARE - C&V,2103381812,1000003398
04.02.2022,ADULT SOCIAL CARE,LONDON CARE LTD,391.85,PHY LTS 18-64,HOMECARE - C&V,2103381566,1000003398
04.02.2022,ADULT SOCIAL CARE,LONDON CARE LTD,396.46,PHY LTS 18-64,HOMECARE - C&V,2103381822,1000003398
04.02.2022,ADULT SOCIAL CARE,LONDON CARE LTD,403.9,PHY LTS 18-64,HOMECARE - C&V,2103381879,1000003398
04.02.2022,ADULT SOCIAL CARE,LONDON CARE LTD,405.68,PHY LTS 18-64,HOMECARE - C&V,2103381532,1000003398
04.02.2022,ADULT SOCIAL CARE,LONDON CARE LTD,414.9,PHY LTS 18-64,HOMECARE - C&V,2103381784,1000003398
04.02.2022,ADULT SOCIAL CARE,LONDON CARE LTD,453.62,PHY LTS 18-64,HOMECARE - C&V,2103381682,1000003398
04.02.2022,ADULT SOCIAL CARE,LONDON CARE LTD,479.44,PHY LTS 18-64,HOMECARE - C&V,2103381852,1000003398
04.02.2022,ADULT SOCIAL CARE,LONDON CARE LTD,488.66,PHY LTS 18-64,HOMECARE - C&V,2103381608,1000003398
04.02.2022,ADULT SOCIAL CARE,LONDON CARE LTD,507.1,PHY LTS 18-64,HOMECARE - C&V,2103381649,1000003398
04.02.2022,ADULT SOCIAL CARE,LONDON CARE LTD,516.32,PHY LTS 18-64,HOMECARE - C&V,2103381752,1000003398
04.02.2022,ADULT SOCIAL CARE,LONDON CARE LTD,518.5,PHY LTS 18-64,HOMECARE - C&V,2103381520,1000003398
04.02.2022,ADULT SOCIAL CARE,LONDON CARE LTD,528.9,PHY LTS 18-64,HOMECARE - C&V,2103381801,1000003398
04.02.2022,ADULT SOCIAL CARE,LONDON CARE LTD,543.98,PHY LTS 18-64,HOMECARE - C&V,2103381595,1000003398
04.02.2022,ADULT SOCIAL CARE,LONDON CARE LTD,557.81,PHY LTS 18-64,HOMECARE - C&V,2103381577,1000003398
04.02.2022,ADULT SOCIAL CARE,LONDON CARE LTD,585.47,PHY LTS 18-64,HOMECARE - C&V,2103381632,1000003398
04.02.2022,ADULT SOCIAL CARE,LONDON CARE LTD,587.85,PHY LTS 18-64,HOMECARE - C&V,2103381505,1000003398
04.02.2022,ADULT SOCIAL CARE,LONDON CARE LTD,594.69,PHY LTS 18-64,HOMECARE - C&V,2103381524,1000003398
04.02.2022,ADULT SOCIAL CARE,LONDON CARE LTD,594.69,PHY LTS 18-64,HOMECARE - C&V,2103381895,1000003398
04.02.2022,ADULT SOCIAL CARE,LONDON CARE LTD,599.3,PHY LTS 18-64,HOMECARE - C&V,2103381500,1000003398
04.02.2022,ADULT SOCIAL CARE,LONDON CARE LTD,603.91,PHY LTS 18-64,HOMECARE - C&V,2103381550,1000003398
04.02.2022,ADULT SOCIAL CARE,LONDON CARE LTD,622.35,PHY LTS 18-64,HOMECARE - C&V,2103381514,1000003398
04.02.2022,ADULT SOCIAL CARE,LONDON CARE LTD,640.79,PHY LTS 18-64,HOMECARE - C&V,2103381768,1000003398
04.02.2022,ADULT SOCIAL CARE,LONDON CARE LTD,645.4,PHY LTS 18-64,HOMECARE - C&V,2103381604,1000003398
04.02.2022,ADULT SOCIAL CARE,LONDON CARE LTD,649.56,PHY LTS 18-64,HOMECARE - C&V,2103381903,1000003398
04.02.2022,ADULT SOCIAL CARE,LONDON CARE LTD,657.87,PHY LTS 18-64,HOMECARE - C&V,2103381763,1000003398
04.02.2022,ADULT SOCIAL CARE,LONDON CARE LTD,663.84,PHY LTS 18-64,HOMECARE - C&V,2103381683,1000003398
04.02.2022,ADULT SOCIAL CARE,LONDON CARE LTD,667.25,PHY LTS 18-64,HOMECARE - C&V,2103381512,1000003398
04.02.2022,ADULT SOCIAL CARE,LONDON CARE LTD,668.45,PHY LTS 18-64,HOMECARE - C&V,2103381825,1000003398
04.02.2022,ADULT SOCIAL CARE,LONDON CARE LTD,684.12,PHY LTS 18-64,HOMECARE - C&V,2103381584,1000003398
04.02.2022,ADULT SOCIAL CARE,LONDON CARE LTD,696.11,PHY LTS 18-64,HOMECARE - C&V,2103381582,1000003398
04.02.2022,ADULT SOCIAL CARE,LONDON CARE LTD,735.02,PHY LTS 18-64,HOMECARE - C&V,2103381774,1000003398
04.02.2022,ADULT SOCIAL CARE,LONDON CARE LTD,786.25,PHY LTS 18-64,HOMECARE - C&V,2103381820,1000003398
04.02.2022,ADULT SOCIAL CARE,LONDON CARE LTD,799,PHY LTS 18-64,HOMECARE - C&V,2103381876,1000003398
04.02.2022,ADULT SOCIAL CARE,LONDON CARE LTD,807.5,PHY LTS 18-64,HOMECARE - C&V,2103381867,1000003398
04.02.2022,ADULT SOCIAL CARE,LONDON CARE LTD,889.73,PHY LTS 18-64,HOMECARE - C&V,2103381833,1000003398
04.02.2022,ADULT SOCIAL CARE,LONDON CARE LTD,908.17,PHY LTS 18-64,HOMECARE - C&V,2103381659,1000003398
04.02.2022,ADULT SOCIAL CARE,LONDON CARE LTD,919.92,PHY LTS 18-64,HOMECARE - C&V,2103381824,1000003398
04.02.2022,ADULT SOCIAL CARE,LONDON CARE LTD,935.83,PHY LTS 18-64,HOMECARE - C&V,2103381665,1000003398
04.02.2022,ADULT SOCIAL CARE,LONDON CARE LTD,968.1,PHY LTS 18-64,HOMECARE - C&V,2103381678,1000003398
04.02.2022,ADULT SOCIAL CARE,LONDON CARE LTD,973.25,PHY LTS 18-64,HOMECARE - C&V,2103381773,1000003398
04.02.2022,ADULT SOCIAL CARE,LONDON CARE LTD,974.55,PHY LTS 18-64,HOMECARE - C&V,2103381675,1000003398
04.02.2022,ADULT SOCIAL CARE,LONDON CARE LTD,"1,000.37",PHY LTS 18-64,HOMECARE - C&V,2103381736,1000003398
04.02.2022,ADULT SOCIAL CARE,LONDON CARE LTD,"1,004.98",PHY LTS 18-64,HOMECARE - C&V,2103381799,1000003398
04.02.2022,ADULT SOCIAL CARE,LONDON CARE LTD,"1,041.86",PHY LTS 18-64,HOMECARE - C&V,2103381618,1000003398
04.02.2022,ADULT SOCIAL CARE,LONDON CARE LTD,"1,046.47",PHY LTS 18-64,HOMECARE - C&V,2103381668,1000003398
04.02.2022,ADULT SOCIAL CARE,LONDON CARE LTD,"1,055.69",PHY LTS 18-64,HOMECARE - C&V,2103381589,1000003398
04.02.2022,ADULT SOCIAL CARE,LONDON CARE LTD,"1,083.75",PHY LTS 18-64,HOMECARE - C&V,2103381836,1000003398
04.02.2022,ADULT SOCIAL CARE,LONDON CARE LTD,"1,175.55",PHY LTS 18-64,HOMECARE - C&V,2103381572,1000003398
04.02.2022,ADULT SOCIAL CARE,LONDON CARE LTD,"1,212.43",PHY LTS 18-64,HOMECARE - C&V,2103381776,1000003398
04.02.2022,ADULT SOCIAL CARE,LONDON CARE LTD,"1,230.87",PHY LTS 18-64,HOMECARE - C&V,2103381620,1000003398
04.02.2022,ADULT SOCIAL CARE,LONDON CARE LTD,"1,261.64",PHY LTS 18-64,HOMECARE - C&V,2103381780,1000003398
04.02.2022,ADULT SOCIAL CARE,LONDON CARE LTD,"1,327.68",PHY LTS 18-64,HOMECARE - C&V,2103381561,1000003398
04.02.2022,ADULT SOCIAL CARE,LONDON CARE LTD,"1,336.90",PHY LTS 18-64,HOMECARE - C&V,2103381624,1000003398
04.02.2022,ADULT SOCIAL CARE,LONDON CARE LTD,"1,539.74",PHY LTS 18-64,HOMECARE - C&V,2103381498,1000003398
04.02.2022,ADULT SOCIAL CARE,LONDON CARE LTD,"1,802.00",PHY LTS 18-64,HOMECARE - C&V,2103381545,1000003398
04.02.2022,ADULT SOCIAL CARE,LONDON CARE LTD,"1,912.50",PHY LTS 18-64,HOMECARE - C&V,2103381492,1000003398
04.02.2022,ADULT SOCIAL CARE,LONDON CARE LTD,"2,014.57",PHY LTS 18-64,HOMECARE - C&V,2103381529,1000003398
04.02.2022,ADULT SOCIAL CARE,LONDON CARE LTD,"2,171.31",PHY LTS 18-64,HOMECARE - C&V,2103381806,1000003398
04.02.2022,ADULT SOCIAL CARE,LONDON CARE LTD,"3,412.75",PHY LTS 18-64,HOMECARE - C&V,2103381901,1000003398
04.02.2022,ADULT SOCIAL CARE,LONDON CARE LTD,680,PHY LTS 18-64,HOMECARE - SPOT,2103381754,1000003398
04.02.2022,ADULT SOCIAL CARE,METRO HOMECARE LTD,305.25,PHY LTS 18-64,HOMECARE - SPOT,2103381915,1000070695
04.02.2022,ADULT SOCIAL CARE,METRO HOMECARE LTD,495,PHY LTS 18-64,HOMECARE - SPOT,2103381934,1000070695
04.02.2022,ADULT SOCIAL CARE,METRO HOMECARE LTD,585.75,PHY LTS 18-64,HOMECARE - SPOT,2103381958,1000070695
04.02.2022,ADULT SOCIAL CARE,WESTMINSTER HOMECARE LTD,"1,115.59",PHY LTS 18-64,HOMECARE - SPOT,2103381961,1000075287
04.02.2022,ADULT SOCIAL CARE,WESTMINSTER HOMECARE LTD,"1,334.91",PHY LTS 18-64,HOMECARE - SPOT,2103381960,1000075287
04.02.2022,ADULT SOCIAL CARE,WESTMINSTER HOMECARE LTD,"2,116.77",PHY LTS 18-64,HOMECARE - SPOT,2103381962,1000075287
04.02.2022,ADULT SOCIAL CARE,THAMES HOMECARE SERVICE LTD,266.76,PHY LTS 18-64,HOMECARE - SPOT,2103382072,1000079295
04.02.2022,ADULT SOCIAL CARE,THAMES HOMECARE SERVICE LTD,294.84,PHY LTS 18-64,HOMECARE - SPOT,2103382071,1000079295
04.02.2022,ADULT SOCIAL CARE,THAMES HOMECARE SERVICE LTD,327.6,PHY LTS 18-64,HOMECARE - SPOT,2103382175,1000079295
04.02.2022,ADULT SOCIAL CARE,THAMES HOMECARE SERVICE LTD,360.36,PHY LTS 18-64,HOMECARE - SPOT,2103382190,1000079295
04.02.2022,ADULT SOCIAL CARE,THAMES HOMECARE SERVICE LTD,374.4,PHY LTS 18-64,HOMECARE - SPOT,2103382098,1000079295
04.02.2022,ADULT SOCIAL CARE,THAMES HOMECARE SERVICE LTD,379.08,PHY LTS 18-64,HOMECARE - SPOT,2103382091,1000079295
04.02.2022,ADULT SOCIAL CARE,THAMES HOMECARE SERVICE LTD,589.68,PHY LTS 18-64,HOMECARE - SPOT,2103382065,1000079295
04.02.2022,ADULT SOCIAL CARE,THAMES HOMECARE SERVICE LTD,589.68,PHY LTS 18-64,HOMECARE - SPOT,2103382164,1000079295
04.02.2022,ADULT SOCIAL CARE,THAMES HOMECARE SERVICE LTD,589.68,PHY LTS 18-64,HOMECARE - SPOT,2103382173,1000079295
04.02.2022,ADULT SOCIAL CARE,THAMES HOMECARE SERVICE LTD,655.2,PHY LTS 18-64,HOMECARE - SPOT,2103382063,1000079295
04.02.2022,ADULT SOCIAL CARE,THAMES HOMECARE SERVICE LTD,720.72,PHY LTS 18-64,HOMECARE - SPOT,2103382096,1000079295
04.02.2022,ADULT SOCIAL CARE,THAMES HOMECARE SERVICE LTD,851.76,PHY LTS 18-64,HOMECARE - SPOT,2103382067,1000079295
04.02.2022,ADULT SOCIAL CARE,THAMES HOMECARE SERVICE LTD,870.48,PHY LTS 18-64,HOMECARE - SPOT,2103382221,1000079295
04.02.2022,ADULT SOCIAL CARE,THAMES HOMECARE SERVICE LTD,936,PHY LTS 18-64,HOMECARE - SPOT,2103382058,1000079295
04.02.2022,ADULT SOCIAL CARE,MEDACS HOMECARE,435.69,PHY LTS 65+,HOMECARE - C&V,2103382296,11287415
04.02.2022,ADULT SOCIAL CARE,MEDACS HOMECARE,471.86,PHY LTS 65+,HOMECARE - C&V,2103382266,11287415
04.02.2022,ADULT SOCIAL CARE,MEDACS HOMECARE,514.49,PHY LTS 65+,HOMECARE - C&V,2103382295,11287415
04.02.2022,ADULT SOCIAL CARE,MEDACS HOMECARE,519.12,PHY LTS 65+,HOMECARE - C&V,2103382265,11287415
04.02.2022,ADULT SOCIAL CARE,MEDACS HOMECARE,674.1,PHY LTS 65+,HOMECARE - C&V,2103382291,11287415
04.02.2022,ADULT SOCIAL CARE,MEDACS HOMECARE,676.89,PHY LTS 65+,HOMECARE - C&V,2103382281,11287415
04.02.2022,ADULT SOCIAL CARE,MEDACS HOMECARE,760.16,PHY LTS 65+,HOMECARE - C&V,2103382275,11287415
04.02.2022,ADULT SOCIAL CARE,MEDACS HOMECARE,792.8,PHY LTS 65+,HOMECARE - C&V,2103382262,11287415
04.02.2022,ADULT SOCIAL CARE,MEDACS HOMECARE,861.37,PHY LTS 65+,HOMECARE - C&V,2103382261,11287415
04.02.2022,ADULT SOCIAL CARE,MEDACS HOMECARE,875.36,PHY LTS 65+,HOMECARE - C&V,2103382294,11287415
04.02.2022,ADULT SOCIAL CARE,MEDACS HOMECARE,913.11,PHY LTS 65+,HOMECARE - C&V,2103382278,11287415
04.02.2022,ADULT SOCIAL CARE,MEDACS HOMECARE,"1,039.76",PHY LTS 65+,HOMECARE - C&V,2103382271,11287415
04.02.2022,ADULT SOCIAL CARE,MEDACS HOMECARE,"1,287.99",PHY LTS 65+,HOMECARE - C&V,2103382282,11287415
04.02.2022,ADULT SOCIAL CARE,MEDACS HOMECARE,"1,613.27",PHY LTS 65+,HOMECARE - C&V,2103382270,11287415
04.02.2022,ADULT SOCIAL CARE,MEDACS HOMECARE,"2,341.81",PHY LTS 65+,HOMECARE - C&V,2103382293,11287415
04.02.2022,ADULT SOCIAL CARE,MEDACS HOMECARE,"2,757.69",PHY LTS 65+,HOMECARE - C&V,2103382258,11287415
04.02.2022,ADULT SOCIAL CARE,MEDACS HOMECARE,"2,785.32",PHY LTS 65+,HOMECARE - C&V,2103382249,11287415
04.02.2022,ADULT SOCIAL CARE,MEDACS HOMECARE,"3,058.25",PHY LTS 65+,HOMECARE - C&V,2103382277,11287415
04.02.2022,ADULT SOCIAL CARE,MEDACS HOMECARE,"3,131.80",PHY LTS 65+,HOMECARE - C&V,2103382286,11287415
04.02.2022,ADULT SOCIAL CARE,MEDACS HOMECARE,"3,682.97",PHY LTS 65+,HOMECARE - C&V,2103382290,11287415
04.02.2022,ADULT SOCIAL CARE,MEDACS HOMECARE,"3,817.75",PHY LTS 65+,HOMECARE - C&V,2103382280,11287415
04.02.2022,ADULT SOCIAL CARE,LONDON CARE LTD,253.55,PHY LTS 65+,HOMECARE - C&V,2103381588,1000003398
04.02.2022,ADULT SOCIAL CARE,LONDON CARE LTD,253.55,PHY LTS 65+,HOMECARE - C&V,2103381692,1000003398
04.02.2022,ADULT SOCIAL CARE,LONDON CARE LTD,258.16,PHY LTS 65+,HOMECARE - C&V,2103381597,1000003398
04.02.2022,ADULT SOCIAL CARE,LONDON CARE LTD,262.29,PHY LTS 65+,HOMECARE - C&V,2103381770,1000003398
04.02.2022,ADULT SOCIAL CARE,LONDON CARE LTD,272,PHY LTS 65+,HOMECARE - C&V,2103381543,1000003398
04.02.2022,ADULT SOCIAL CARE,LONDON CARE LTD,276.25,PHY LTS 65+,HOMECARE - C&V,2103381858,1000003398
04.02.2022,ADULT SOCIAL CARE,LONDON CARE LTD,290.43,PHY LTS 65+,HOMECARE - C&V,2103381712,1000003398
04.02.2022,ADULT SOCIAL CARE,LONDON CARE LTD,290.43,PHY LTS 65+,HOMECARE - C&V,2103381728,1000003398
04.02.2022,ADULT SOCIAL CARE,LONDON CARE LTD,299.65,PHY LTS 65+,HOMECARE - C&V,2103381835,1000003398
04.02.2022,ADULT SOCIAL CARE,LONDON CARE LTD,304.26,PHY LTS 65+,HOMECARE - C&V,2103381593,1000003398
04.02.2022,ADULT SOCIAL CARE,LONDON CARE LTD,310.25,PHY LTS 65+,HOMECARE - C&V,2103381501,1000003398
04.02.2022,ADULT SOCIAL CARE,LONDON CARE LTD,318.09,PHY LTS 65+,HOMECARE - C&V,2103381855,1000003398
04.02.2022,ADULT SOCIAL CARE,LONDON CARE LTD,322.7,PHY LTS 65+,HOMECARE - C&V,2103381567,1000003398
04.02.2022,ADULT SOCIAL CARE,LONDON CARE LTD,327.31,PHY LTS 65+,HOMECARE - C&V,2103381737,1000003398
04.02.2022,ADULT SOCIAL CARE,LONDON CARE LTD,328.96,PHY LTS 65+,HOMECARE - C&V,2103381518,1000003398
04.02.2022,ADULT SOCIAL CARE,LONDON CARE LTD,331.92,PHY LTS 65+,HOMECARE - C&V,2103381613,1000003398
04.02.2022,ADULT SOCIAL CARE,LONDON CARE LTD,331.92,PHY LTS 65+,HOMECARE - C&V,2103381705,1000003398
04.02.2022,ADULT SOCIAL CARE,LONDON CARE LTD,331.92,PHY LTS 65+,HOMECARE - C&V,2103381725,1000003398
04.02.2022,ADULT SOCIAL CARE,LONDON CARE LTD,344.25,PHY LTS 65+,HOMECARE - C&V,2103381537,1000003398
04.02.2022,ADULT SOCIAL CARE,LONDON CARE LTD,345.75,PHY LTS 65+,HOMECARE - C&V,2103381560,1000003398
04.02.2022,ADULT SOCIAL CARE,LONDON CARE LTD,345.75,PHY LTS 65+,HOMECARE - C&V,2103381641,1000003398
04.02.2022,ADULT SOCIAL CARE,LONDON CARE LTD,359.58,PHY LTS 65+,HOMECARE - C&V,2103381628,1000003398
04.02.2022,ADULT SOCIAL CARE,LONDON CARE LTD,361.25,PHY LTS 65+,HOMECARE - C&V,2103381535,1000003398
04.02.2022,ADULT SOCIAL CARE,LONDON CARE LTD,364.19,PHY LTS 65+,HOMECARE - C&V,2103381523,1000003398
04.02.2022,ADULT SOCIAL CARE,LONDON CARE LTD,368.8,PHY LTS 65+,HOMECARE - C&V,2103381553,1000003398
04.02.2022,ADULT SOCIAL CARE,LONDON CARE LTD,368.8,PHY LTS 65+,HOMECARE - C&V,2103381741,1000003398
04.02.2022,ADULT SOCIAL CARE,LONDON CARE LTD,378.02,PHY LTS 65+,HOMECARE - C&V,2103381574,1000003398
04.02.2022,ADULT SOCIAL CARE,LONDON CARE LTD,382.63,PHY LTS 65+,HOMECARE - C&V,2103381658,1000003398
04.02.2022,ADULT SOCIAL CARE,LONDON CARE LTD,382.63,PHY LTS 65+,HOMECARE - C&V,2103381753,1000003398
04.02.2022,ADULT SOCIAL CARE,LONDON CARE LTD,387.24,PHY LTS 65+,HOMECARE - C&V,2103381769,1000003398
04.02.2022,ADULT SOCIAL CARE,LONDON CARE LTD,391.85,PHY LTS 65+,HOMECARE - C&V,2103381564,1000003398
04.02.2022,ADULT SOCIAL CARE,LONDON CARE LTD,391.85,PHY LTS 65+,HOMECARE - C&V,2103381587,1000003398
04.02.2022,ADULT SOCIAL CARE,LONDON CARE LTD,398,PHY LTS 65+,HOMECARE - C&V,2103381648,1000003398
04.02.2022,ADULT SOCIAL CARE,LONDON CARE LTD,401.07,PHY LTS 65+,HOMECARE - C&V,2103381684,1000003398
04.02.2022,ADULT SOCIAL CARE,LONDON CARE LTD,401.07,PHY LTS 65+,HOMECARE - C&V,2103381871,1000003398
04.02.2022,ADULT SOCIAL CARE,LONDON CARE LTD,405.68,PHY LTS 65+,HOMECARE - C&V,2103381656,1000003398
04.02.2022,ADULT SOCIAL CARE,LONDON CARE LTD,410.29,PHY LTS 65+,HOMECARE - C&V,2103381579,1000003398
04.02.2022,ADULT SOCIAL CARE,LONDON CARE LTD,410.29,PHY LTS 65+,HOMECARE - C&V,2103381647,1000003398
04.02.2022,ADULT SOCIAL CARE,LONDON CARE LTD,410.29,PHY LTS 65+,HOMECARE - C&V,2103381722,1000003398
04.02.2022,ADULT SOCIAL CARE,LONDON CARE LTD,424.12,PHY LTS 65+,HOMECARE - C&V,2103381660,1000003398
04.02.2022,ADULT SOCIAL CARE,LONDON CARE LTD,428.73,PHY LTS 65+,HOMECARE - C&V,2103381730,1000003398
04.02.2022,ADULT SOCIAL CARE,LONDON CARE LTD,433.34,PHY LTS 65+,HOMECARE - C&V,2103381687,1000003398
04.02.2022,ADULT SOCIAL CARE,LONDON CARE LTD,451.78,PHY LTS 65+,HOMECARE - C&V,2103381744,1000003398
04.02.2022,ADULT SOCIAL CARE,LONDON CARE LTD,456.39,PHY LTS 65+,HOMECARE - C&V,2103381709,1000003398
04.02.2022,ADULT SOCIAL CARE,LONDON CARE LTD,465.61,PHY LTS 65+,HOMECARE - C&V,2103381591,1000003398
04.02.2022,ADULT SOCIAL CARE,LONDON CARE LTD,481.9,PHY LTS 65+,HOMECARE - C&V,2103381740,1000003398
04.02.2022,ADULT SOCIAL CARE,LONDON CARE LTD,495.85,PHY LTS 65+,HOMECARE - C&V,2103381775,1000003398
04.02.2022,ADULT SOCIAL CARE,LONDON CARE LTD,502.49,PHY LTS 65+,HOMECARE - C&V,2103381666,1000003398
04.02.2022,ADULT SOCIAL CARE,LONDON CARE LTD,511.71,PHY LTS 65+,HOMECARE - C&V,2103381689,1000003398
04.02.2022,ADULT SOCIAL CARE,LONDON CARE LTD,516.29,PHY LTS 65+,HOMECARE - C&V,2103381851,1000003398
04.02.2022,ADULT SOCIAL CARE,LONDON CARE LTD,516.32,PHY LTS 65+,HOMECARE - C&V,2103381713,1000003398
04.02.2022,ADULT SOCIAL CARE,LONDON CARE LTD,534.76,PHY LTS 65+,HOMECARE - C&V,2103381723,1000003398
04.02.2022,ADULT SOCIAL CARE,LONDON CARE LTD,534.76,PHY LTS 65+,HOMECARE - C&V,2103381781,1000003398
04.02.2022,ADULT SOCIAL CARE,LONDON CARE LTD,548.25,PHY LTS 65+,HOMECARE - C&V,2103381507,1000003398
04.02.2022,ADULT SOCIAL CARE,LONDON CARE LTD,567.03,PHY LTS 65+,HOMECARE - C&V,2103381654,1000003398
04.02.2022,ADULT SOCIAL CARE,LONDON CARE LTD,573.75,PHY LTS 65+,HOMECARE - C&V,2103381779,1000003398
04.02.2022,ADULT SOCIAL CARE,LONDON CARE LTD,578,PHY LTS 65+,HOMECARE - C&V,2103381515,1000003398
04.02.2022,ADULT SOCIAL CARE,LONDON CARE LTD,580.86,PHY LTS 65+,HOMECARE - C&V,2103381715,1000003398
04.02.2022,ADULT SOCIAL CARE,LONDON CARE LTD,590.08,PHY LTS 65+,HOMECARE - C&V,2103381652,1000003398
04.02.2022,ADULT SOCIAL CARE,LONDON CARE LTD,590.75,PHY LTS 65+,HOMECARE - C&V,2103381497,1000003398
04.02.2022,ADULT SOCIAL CARE,LONDON CARE LTD,595.24,PHY LTS 65+,HOMECARE - C&V,2103381757,1000003398
04.02.2022,ADULT SOCIAL CARE,LONDON CARE LTD,596.23,PHY LTS 65+,HOMECARE - C&V,2103381714,1000003398
04.02.2022,ADULT SOCIAL CARE,LONDON CARE LTD,599.25,PHY LTS 65+,HOMECARE - C&V,2103381508,1000003398
04.02.2022,ADULT SOCIAL CARE,LONDON CARE LTD,603.91,PHY LTS 65+,HOMECARE - C&V,2103381637,1000003398
04.02.2022,ADULT SOCIAL CARE,LONDON CARE LTD,607.75,PHY LTS 65+,HOMECARE - C&V,2103381886,1000003398
04.02.2022,ADULT SOCIAL CARE,LONDON CARE LTD,608.52,PHY LTS 65+,HOMECARE - C&V,2103381616,1000003398
04.02.2022,ADULT SOCIAL CARE,LONDON CARE LTD,613.13,PHY LTS 65+,HOMECARE - C&V,2103381643,1000003398
04.02.2022,ADULT SOCIAL CARE,LONDON CARE LTD,613.13,PHY LTS 65+,HOMECARE - C&V,2103381727,1000003398
04.02.2022,ADULT SOCIAL CARE,LONDON CARE LTD,617.74,PHY LTS 65+,HOMECARE - C&V,2103381603,1000003398
04.02.2022,ADULT SOCIAL CARE,LONDON CARE LTD,629,PHY LTS 65+,HOMECARE - C&V,2103381761,1000003398
04.02.2022,ADULT SOCIAL CARE,LONDON CARE LTD,631.57,PHY LTS 65+,HOMECARE - C&V,2103381633,1000003398
04.02.2022,ADULT SOCIAL CARE,LONDON CARE LTD,635.26,PHY LTS 65+,HOMECARE - C&V,2103381706,1000003398
04.02.2022,ADULT SOCIAL CARE,LONDON CARE LTD,636.18,PHY LTS 65+,HOMECARE - C&V,2103381856,1000003398
04.02.2022,ADULT SOCIAL CARE,LONDON CARE LTD,645.4,PHY LTS 65+,HOMECARE - C&V,2103381681,1000003398
04.02.2022,ADULT SOCIAL CARE,LONDON CARE LTD,645.4,PHY LTS 65+,HOMECARE - C&V,2103381732,1000003398
04.02.2022,ADULT SOCIAL CARE,LONDON CARE LTD,650.01,PHY LTS 65+,HOMECARE - C&V,2103381607,1000003398
04.02.2022,ADULT SOCIAL CARE,LONDON CARE LTD,650.01,PHY LTS 65+,HOMECARE - C&V,2103381694,1000003398
04.02.2022,ADULT SOCIAL CARE,LONDON CARE LTD,654.5,PHY LTS 65+,HOMECARE - C&V,2103381499,1000003398
04.02.2022,ADULT SOCIAL CARE,LONDON CARE LTD,654.62,PHY LTS 65+,HOMECARE - C&V,2103381544,1000003398
04.02.2022,ADULT SOCIAL CARE,LONDON CARE LTD,656.16,PHY LTS 65+,HOMECARE - C&V,2103381559,1000003398
04.02.2022,ADULT SOCIAL CARE,LONDON CARE LTD,659.23,PHY LTS 65+,HOMECARE - C&V,2103381635,1000003398
04.02.2022,ADULT SOCIAL CARE,LONDON CARE LTD,676.95,PHY LTS 65+,HOMECARE - C&V,2103381720,1000003398
04.02.2022,ADULT SOCIAL CARE,LONDON CARE LTD,682.28,PHY LTS 65+,HOMECARE - C&V,2103381729,1000003398
04.02.2022,ADULT SOCIAL CARE,LONDON CARE LTD,705.5,PHY LTS 65+,HOMECARE - C&V,2103381864,1000003398
04.02.2022,ADULT SOCIAL CARE,LONDON CARE LTD,719.16,PHY LTS 65+,HOMECARE - C&V,2103381702,1000003398
04.02.2022,ADULT SOCIAL CARE,LONDON CARE LTD,723.77,PHY LTS 65+,HOMECARE - C&V,2103381612,1000003398
04.02.2022,ADULT SOCIAL CARE,LONDON CARE LTD,723.77,PHY LTS 65+,HOMECARE - C&V,2103381670,1000003398
04.02.2022,ADULT SOCIAL CARE,LONDON CARE LTD,728.38,PHY LTS 65+,HOMECARE - C&V,2103381708,1000003398
04.02.2022,ADULT SOCIAL CARE,LONDON CARE LTD,728.58,PHY LTS 65+,HOMECARE - C&V,2103381885,1000003398
04.02.2022,ADULT SOCIAL CARE,LONDON CARE LTD,737.6,PHY LTS 65+,HOMECARE - C&V,2103381690,1000003398
04.02.2022,ADULT SOCIAL CARE,LONDON CARE LTD,742.21,PHY LTS 65+,HOMECARE - C&V,2103381655,1000003398
04.02.2022,ADULT SOCIAL CARE,LONDON CARE LTD,742.21,PHY LTS 65+,HOMECARE - C&V,2103381873,1000003398
04.02.2022,ADULT SOCIAL CARE,LONDON CARE LTD,746.82,PHY LTS 65+,HOMECARE - C&V,2103381623,1000003398
04.02.2022,ADULT SOCIAL CARE,LONDON CARE LTD,765.26,PHY LTS 65+,HOMECARE - C&V,2103381522,1000003398
04.02.2022,ADULT SOCIAL CARE,LONDON CARE LTD,766.34,PHY LTS 65+,HOMECARE - C&V,2103381881,1000003398
04.02.2022,ADULT SOCIAL CARE,LONDON CARE LTD,769.87,PHY LTS 65+,HOMECARE - C&V,2103381651,1000003398
04.02.2022,ADULT SOCIAL CARE,LONDON CARE LTD,770.27,PHY LTS 65+,HOMECARE - C&V,2103381796,1000003398
04.02.2022,ADULT SOCIAL CARE,LONDON CARE LTD,786.81,PHY LTS 65+,HOMECARE - C&V,2103381844,1000003398
04.02.2022,ADULT SOCIAL CARE,LONDON CARE LTD,795.18,PHY LTS 65+,HOMECARE - C&V,2103381827,1000003398
04.02.2022,ADULT SOCIAL CARE,LONDON CARE LTD,797.53,PHY LTS 65+,HOMECARE - C&V,2103381552,1000003398
04.02.2022,ADULT SOCIAL CARE,LONDON CARE LTD,802.14,PHY LTS 65+,HOMECARE - C&V,2103381710,1000003398
04.02.2022,ADULT SOCIAL CARE,LONDON CARE LTD,806.75,PHY LTS 65+,HOMECARE - C&V,2103381631,1000003398
04.02.2022,ADULT SOCIAL CARE,LONDON CARE LTD,815.97,PHY LTS 65+,HOMECARE - C&V,2103381792,1000003398
04.02.2022,ADULT SOCIAL CARE,LONDON CARE LTD,820.42,PHY LTS 65+,HOMECARE - C&V,2103381880,1000003398
04.02.2022,ADULT SOCIAL CARE,LONDON CARE LTD,825.19,PHY LTS 65+,HOMECARE - C&V,2103381718,1000003398
04.02.2022,ADULT SOCIAL CARE,LONDON CARE LTD,829.8,PHY LTS 65+,HOMECARE - C&V,2103381696,1000003398
04.02.2022,ADULT SOCIAL CARE,LONDON CARE LTD,839.02,PHY LTS 65+,HOMECARE - C&V,2103381843,1000003398
04.02.2022,ADULT SOCIAL CARE,LONDON CARE LTD,843.63,PHY LTS 65+,HOMECARE - C&V,2103381638,1000003398
04.02.2022,ADULT SOCIAL CARE,LONDON CARE LTD,845.4,PHY LTS 65+,HOMECARE - C&V,2103381809,1000003398
04.02.2022,ADULT SOCIAL CARE,LONDON CARE LTD,848.24,PHY LTS 65+,HOMECARE - C&V,2103381849,1000003398
04.02.2022,ADULT SOCIAL CARE,LONDON CARE LTD,857.46,PHY LTS 65+,HOMECARE - C&V,2103381576,1000003398
04.02.2022,ADULT SOCIAL CARE,LONDON CARE LTD,858.5,PHY LTS 65+,HOMECARE - C&V,2103381491,1000003398
04.02.2022,ADULT SOCIAL CARE,LONDON CARE LTD,885.12,PHY LTS 65+,HOMECARE - C&V,2103381813,1000003398
04.02.2022,ADULT SOCIAL CARE,LONDON CARE LTD,889.73,PHY LTS 65+,HOMECARE - C&V,2103381698,1000003398
04.02.2022,ADULT SOCIAL CARE,LONDON CARE LTD,889.73,PHY LTS 65+,HOMECARE - C&V,2103381724,1000003398
04.02.2022,ADULT SOCIAL CARE,LONDON CARE LTD,891.16,PHY LTS 65+,HOMECARE - C&V,2103381834,1000003398
04.02.2022,ADULT SOCIAL CARE,LONDON CARE LTD,898.95,PHY LTS 65+,HOMECARE - C&V,2103381517,1000003398
04.02.2022,ADULT SOCIAL CARE,LONDON CARE LTD,898.95,PHY LTS 65+,HOMECARE - C&V,2103381644,1000003398
04.02.2022,ADULT SOCIAL CARE,LONDON CARE LTD,898.95,PHY LTS 65+,HOMECARE - C&V,2103381887,1000003398
04.02.2022,ADULT SOCIAL CARE,LONDON CARE LTD,903.56,PHY LTS 65+,HOMECARE - C&V,2103381671,1000003398
04.02.2022,ADULT SOCIAL CARE,LONDON CARE LTD,908.17,PHY LTS 65+,HOMECARE - C&V,2103381530,1000003398
04.02.2022,ADULT SOCIAL CARE,LONDON CARE LTD,908.17,PHY LTS 65+,HOMECARE - C&V,2103381831,1000003398
04.02.2022,ADULT SOCIAL CARE,LONDON CARE LTD,917.39,PHY LTS 65+,HOMECARE - C&V,2103381578,1000003398
04.02.2022,ADULT SOCIAL CARE,LONDON CARE LTD,917.39,PHY LTS 65+,HOMECARE - C&V,2103381786,1000003398
04.02.2022,ADULT SOCIAL CARE,LONDON CARE LTD,926.5,PHY LTS 65+,HOMECARE - C&V,2103381865,1000003398
04.02.2022,ADULT SOCIAL CARE,LONDON CARE LTD,932.76,PHY LTS 65+,HOMECARE - C&V,2103381592,1000003398
04.02.2022,ADULT SOCIAL CARE,LONDON CARE LTD,935.83,PHY LTS 65+,HOMECARE - C&V,2103381846,1000003398
04.02.2022,ADULT SOCIAL CARE,LONDON CARE LTD,947.75,PHY LTS 65+,HOMECARE - C&V,2103381794,1000003398
04.02.2022,ADULT SOCIAL CARE,LONDON CARE LTD,963.49,PHY LTS 65+,HOMECARE - C&V,2103381735,1000003398
04.02.2022,ADULT SOCIAL CARE,LONDON CARE LTD,969,PHY LTS 65+,HOMECARE - C&V,2103381882,1000003398
04.02.2022,ADULT SOCIAL CARE,LONDON CARE LTD,986.54,PHY LTS 65+,HOMECARE - C&V,2103381819,1000003398
04.02.2022,ADULT SOCIAL CARE,LONDON CARE LTD,991.15,PHY LTS 65+,HOMECARE - C&V,2103381674,1000003398
04.02.2022,ADULT SOCIAL CARE,LONDON CARE LTD,995.76,PHY LTS 65+,HOMECARE - C&V,2103381630,1000003398
04.02.2022,ADULT SOCIAL CARE,LONDON CARE LTD,"1,004.98",PHY LTS 65+,HOMECARE - C&V,2103381602,1000003398
04.02.2022,ADULT SOCIAL CARE,LONDON CARE LTD,"1,004.98",PHY LTS 65+,HOMECARE - C&V,2103381717,1000003398
04.02.2022,ADULT SOCIAL CARE,LONDON CARE LTD,"1,009.59",PHY LTS 65+,HOMECARE - C&V,2103381695,1000003398
04.02.2022,ADULT SOCIAL CARE,LONDON CARE LTD,"1,014.20",PHY LTS 65+,HOMECARE - C&V,2103381558,1000003398
04.02.2022,ADULT SOCIAL CARE,LONDON CARE LTD,"1,051.08",PHY LTS 65+,HOMECARE - C&V,2103381563,1000003398
04.02.2022,ADULT SOCIAL CARE,LONDON CARE LTD,"1,055.69",PHY LTS 65+,HOMECARE - C&V,2103381672,1000003398
04.02.2022,ADULT SOCIAL CARE,LONDON CARE LTD,"1,060.30",PHY LTS 65+,HOMECARE - C&V,2103381516,1000003398
04.02.2022,ADULT SOCIAL CARE,LONDON CARE LTD,"1,062.50",PHY LTS 65+,HOMECARE - C&V,2103381760,1000003398
04.02.2022,ADULT SOCIAL CARE,LONDON CARE LTD,"1,074.13",PHY LTS 65+,HOMECARE - C&V,2103381758,1000003398
04.02.2022,ADULT SOCIAL CARE,LONDON CARE LTD,"1,087.96",PHY LTS 65+,HOMECARE - C&V,2103381531,1000003398
04.02.2022,ADULT SOCIAL CARE,LONDON CARE LTD,"1,092.57",PHY LTS 65+,HOMECARE - C&V,2103381762,1000003398
04.02.2022,ADULT SOCIAL CARE,LONDON CARE LTD,"1,100.75",PHY LTS 65+,HOMECARE - C&V,2103381756,1000003398
04.02.2022,ADULT SOCIAL CARE,LONDON CARE LTD,"1,106.40",PHY LTS 65+,HOMECARE - C&V,2103381639,1000003398
04.02.2022,ADULT SOCIAL CARE,LONDON CARE LTD,"1,109.25",PHY LTS 65+,HOMECARE - C&V,2103381838,1000003398
04.02.2022,ADULT SOCIAL CARE,LONDON CARE LTD,"1,111.01",PHY LTS 65+,HOMECARE - C&V,2103381650,1000003398
04.02.2022,ADULT SOCIAL CARE,LONDON CARE LTD,"1,111.63",PHY LTS 65+,HOMECARE - C&V,2103381869,1000003398
04.02.2022,ADULT SOCIAL CARE,LONDON CARE LTD,"1,115.62",PHY LTS 65+,HOMECARE - C&V,2103381701,1000003398
04.02.2022,ADULT SOCIAL CARE,LONDON CARE LTD,"1,120.23",PHY LTS 65+,HOMECARE - C&V,2103381898,1000003398
04.02.2022,ADULT SOCIAL CARE,LONDON CARE LTD,"1,124.15",PHY LTS 65+,HOMECARE - C&V,2103381860,1000003398
04.02.2022,ADULT SOCIAL CARE,LONDON CARE LTD,"1,129.45",PHY LTS 65+,HOMECARE - C&V,2103381663,1000003398
04.02.2022,ADULT SOCIAL CARE,LONDON CARE LTD,"1,129.45",PHY LTS 65+,HOMECARE - C&V,2103381742,1000003398
04.02.2022,ADULT SOCIAL CARE,LONDON CARE LTD,"1,152.50",PHY LTS 65+,HOMECARE - C&V,2103381745,1000003398
04.02.2022,ADULT SOCIAL CARE,LONDON CARE LTD,"1,168.75",PHY LTS 65+,HOMECARE - C&V,2103381902,1000003398
04.02.2022,ADULT SOCIAL CARE,LONDON CARE LTD,"1,170.94",PHY LTS 65+,HOMECARE - C&V,2103381503,1000003398
04.02.2022,ADULT SOCIAL CARE,LONDON CARE LTD,"1,177.25",PHY LTS 65+,HOMECARE - C&V,2103381788,1000003398
04.02.2022,ADULT SOCIAL CARE,LONDON CARE LTD,"1,180.16",PHY LTS 65+,HOMECARE - C&V,2103381889,1000003398
04.02.2022,ADULT SOCIAL CARE,LONDON CARE LTD,"1,207.82",PHY LTS 65+,HOMECARE - C&V,2103381621,1000003398
04.02.2022,ADULT SOCIAL CARE,LONDON CARE LTD,"1,217.65",PHY LTS 65+,HOMECARE - C&V,2103381733,1000003398
04.02.2022,ADULT SOCIAL CARE,LONDON CARE LTD,"1,221.65",PHY LTS 65+,HOMECARE - C&V,2103381900,1000003398
04.02.2022,ADULT SOCIAL CARE,LONDON CARE LTD,"1,229.33",PHY LTS 65+,HOMECARE - C&V,2103381590,1000003398
04.02.2022,ADULT SOCIAL CARE,LONDON CARE LTD,"1,230.87",PHY LTS 65+,HOMECARE - C&V,2103381526,1000003398
04.02.2022,ADULT SOCIAL CARE,LONDON CARE LTD,"1,240.09",PHY LTS 65+,HOMECARE - C&V,2103381854,1000003398
04.02.2022,ADULT SOCIAL CARE,LONDON CARE LTD,"1,253.92",PHY LTS 65+,HOMECARE - C&V,2103381562,1000003398
04.02.2022,ADULT SOCIAL CARE,LONDON CARE LTD,"1,261.62",PHY LTS 65+,HOMECARE - C&V,2103381798,1000003398
04.02.2022,ADULT SOCIAL CARE,LONDON CARE LTD,"1,295.41",PHY LTS 65+,HOMECARE - C&V,2103381629,1000003398
04.02.2022,ADULT SOCIAL CARE,LONDON CARE LTD,"1,300.02",PHY LTS 65+,HOMECARE - C&V,2103381818,1000003398
04.02.2022,ADULT SOCIAL CARE,LONDON CARE LTD,"1,309.24",PHY LTS 65+,HOMECARE - C&V,2103381897,1000003398
04.02.2022,ADULT SOCIAL CARE,LONDON CARE LTD,"1,318.46",PHY LTS 65+,HOMECARE - C&V,2103381787,1000003398
04.02.2022,ADULT SOCIAL CARE,LONDON CARE LTD,"1,344.87",PHY LTS 65+,HOMECARE - C&V,2103381829,1000003398
04.02.2022,ADULT SOCIAL CARE,LONDON CARE LTD,"1,357.32",PHY LTS 65+,HOMECARE - C&V,2103381866,1000003398
04.02.2022,ADULT SOCIAL CARE,LONDON CARE LTD,"1,433.71",PHY LTS 65+,HOMECARE - C&V,2103381636,1000003398
04.02.2022,ADULT SOCIAL CARE,LONDON CARE LTD,"1,438.32",PHY LTS 65+,HOMECARE - C&V,2103381859,1000003398
04.02.2022,ADULT SOCIAL CARE,LONDON CARE LTD,"1,465.98",PHY LTS 65+,HOMECARE - C&V,2103381528,1000003398
04.02.2022,ADULT SOCIAL CARE,LONDON CARE LTD,"1,496.00",PHY LTS 65+,HOMECARE - C&V,2103381841,1000003398
04.02.2022,ADULT SOCIAL CARE,LONDON CARE LTD,"1,502.86",PHY LTS 65+,HOMECARE - C&V,2103381606,1000003398
04.02.2022,ADULT SOCIAL CARE,LONDON CARE LTD,"1,553.57",PHY LTS 65+,HOMECARE - C&V,2103381680,1000003398
04.02.2022,ADULT SOCIAL CARE,LONDON CARE LTD,"1,604.28",PHY LTS 65+,HOMECARE - C&V,2103381888,1000003398
04.02.2022,ADULT SOCIAL CARE,LONDON CARE LTD,"1,664.21",PHY LTS 65+,HOMECARE - C&V,2103381845,1000003398
04.02.2022,ADULT SOCIAL CARE,LONDON CARE LTD,"1,733.36",PHY LTS 65+,HOMECARE - C&V,2103381759,1000003398
04.02.2022,ADULT SOCIAL CARE,LONDON CARE LTD,"1,861.15",PHY LTS 65+,HOMECARE - C&V,2103381875,1000003398
04.02.2022,ADULT SOCIAL CARE,LONDON CARE LTD,"1,874.25",PHY LTS 65+,HOMECARE - C&V,2103381892,1000003398
04.02.2022,ADULT SOCIAL CARE,LONDON CARE LTD,"1,899.75",PHY LTS 65+,HOMECARE - C&V,2103381810,1000003398
04.02.2022,ADULT SOCIAL CARE,LONDON CARE LTD,"1,945.42",PHY LTS 65+,HOMECARE - C&V,2103381877,1000003398
04.02.2022,ADULT SOCIAL CARE,LONDON CARE LTD,"2,015.30",PHY LTS 65+,HOMECARE - C&V,2103381837,1000003398
04.02.2022,ADULT SOCIAL CARE,LONDON CARE LTD,"2,069.89",PHY LTS 65+,HOMECARE - C&V,2103381493,1000003398
04.02.2022,ADULT SOCIAL CARE,LONDON CARE LTD,"2,115.44",PHY LTS 65+,HOMECARE - C&V,2103381899,1000003398
04.02.2022,ADULT SOCIAL CARE,LONDON CARE LTD,"2,167.50",PHY LTS 65+,HOMECARE - C&V,2103381533,1000003398
04.02.2022,ADULT SOCIAL CARE,LONDON CARE LTD,"2,231.24",PHY LTS 65+,HOMECARE - C&V,2103381640,1000003398
04.02.2022,ADULT SOCIAL CARE,LONDON CARE LTD,"2,245.07",PHY LTS 65+,HOMECARE - C&V,2103381716,1000003398
04.02.2022,ADULT SOCIAL CARE,LONDON CARE LTD,"2,249.68",PHY LTS 65+,HOMECARE - C&V,2103381586,1000003398
04.02.2022,ADULT SOCIAL CARE,LONDON CARE LTD,"2,300.39",PHY LTS 65+,HOMECARE - C&V,2103381883,1000003398
04.02.2022,ADULT SOCIAL CARE,LONDON CARE LTD,"2,358.75",PHY LTS 65+,HOMECARE - C&V,2103381495,1000003398
04.02.2022,ADULT SOCIAL CARE,LONDON CARE LTD,"2,367.25",PHY LTS 65+,HOMECARE - C&V,2103381840,1000003398
04.02.2022,ADULT SOCIAL CARE,LONDON CARE LTD,"2,470.96",PHY LTS 65+,HOMECARE - C&V,2103381842,1000003398
04.02.2022,ADULT SOCIAL CARE,LONDON CARE LTD,"2,503.23",PHY LTS 65+,HOMECARE - C&V,2103381573,1000003398
04.02.2022,ADULT SOCIAL CARE,LONDON CARE LTD,"2,588.25",PHY LTS 65+,HOMECARE - C&V,2103381527,1000003398
04.02.2022,ADULT SOCIAL CARE,LONDON CARE LTD,"2,626.50",PHY LTS 65+,HOMECARE - C&V,2103381870,1000003398
04.02.2022,ADULT SOCIAL CARE,LONDON CARE LTD,"2,752.17",PHY LTS 65+,HOMECARE - C&V,2103381615,1000003398
04.02.2022,ADULT SOCIAL CARE,LONDON CARE LTD,"2,761.39",PHY LTS 65+,HOMECARE - C&V,2103381893,1000003398
04.02.2022,ADULT SOCIAL CARE,LONDON CARE LTD,"2,766.00",PHY LTS 65+,HOMECARE - C&V,2103381815,1000003398
04.02.2022,ADULT SOCIAL CARE,LONDON CARE LTD,"2,835.15",PHY LTS 65+,HOMECARE - C&V,2103381766,1000003398
04.02.2022,ADULT SOCIAL CARE,LONDON CARE LTD,"2,864.50",PHY LTS 65+,HOMECARE - C&V,2103381502,1000003398
04.02.2022,ADULT SOCIAL CARE,LONDON CARE LTD,"3,061.04",PHY LTS 65+,HOMECARE - C&V,2103381791,1000003398
04.02.2022,ADULT SOCIAL CARE,LONDON CARE LTD,"3,079.48",PHY LTS 65+,HOMECARE - C&V,2103381800,1000003398
04.02.2022,ADULT SOCIAL CARE,LONDON CARE LTD,"3,097.92",PHY LTS 65+,HOMECARE - C&V,2103381896,1000003398
04.02.2022,ADULT SOCIAL CARE,LONDON CARE LTD,"3,327.75",PHY LTS 65+,HOMECARE - C&V,2103381821,1000003398
04.02.2022,ADULT SOCIAL CARE,THAMES HOMECARE SERVICE LTD,332.28,PHY LTS 65+,HOMECARE - C&V,2103382077,1000079295
04.02.2022,ADULT SOCIAL CARE,THAMES HOMECARE SERVICE LTD,332.28,PHY LTS 65+,HOMECARE - C&V,2103382222,1000079295
04.02.2022,ADULT SOCIAL CARE,THAMES HOMECARE SERVICE LTD,393.12,PHY LTS 65+,HOMECARE - C&V,2103382132,1000079295
04.02.2022,ADULT SOCIAL CARE,METRO HOMECARE LTD,259.88,PHY LTS 65+,HOMECARE - SPOT,2103381913,1000070695
04.02.2022,ADULT SOCIAL CARE,METRO HOMECARE LTD,264,PHY LTS 65+,HOMECARE - SPOT,2103381938,1000070695
04.02.2022,ADULT SOCIAL CARE,METRO HOMECARE LTD,354.75,PHY LTS 65+,HOMECARE - SPOT,2103381944,1000070695
04.02.2022,ADULT SOCIAL CARE,METRO HOMECARE LTD,363,PHY LTS 65+,HOMECARE - SPOT,2103381955,1000070695
04.02.2022,ADULT SOCIAL CARE,METRO HOMECARE LTD,375.38,PHY LTS 65+,HOMECARE - SPOT,2103381959,1000070695
04.02.2022,ADULT SOCIAL CARE,METRO HOMECARE LTD,412.5,PHY LTS 65+,HOMECARE - SPOT,2103381931,1000070695
04.02.2022,ADULT SOCIAL CARE,METRO HOMECARE LTD,437.25,PHY LTS 65+,HOMECARE - SPOT,2103381922,1000070695
04.02.2022,ADULT SOCIAL CARE,METRO HOMECARE LTD,478.5,PHY LTS 65+,HOMECARE - SPOT,2103381950,1000070695
04.02.2022,ADULT SOCIAL CARE,METRO HOMECARE LTD,495,PHY LTS 65+,HOMECARE - SPOT,2103381918,1000070695
04.02.2022,ADULT SOCIAL CARE,METRO HOMECARE LTD,495,PHY LTS 65+,HOMECARE - SPOT,2103381927,1000070695
04.02.2022,ADULT SOCIAL CARE,METRO HOMECARE LTD,589.88,PHY LTS 65+,HOMECARE - SPOT,2103381945,1000070695
04.02.2022,ADULT SOCIAL CARE,METRO HOMECARE LTD,602.25,PHY LTS 65+,HOMECARE - SPOT,2103381948,1000070695
04.02.2022,ADULT SOCIAL CARE,METRO HOMECARE LTD,709.5,PHY LTS 65+,HOMECARE - SPOT,2103381936,1000070695
04.02.2022,ADULT SOCIAL CARE,METRO HOMECARE LTD,750.75,PHY LTS 65+,HOMECARE - SPOT,2103381937,1000070695
04.02.2022,ADULT SOCIAL CARE,METRO HOMECARE LTD,759,PHY LTS 65+,HOMECARE - SPOT,2103381943,1000070695
04.02.2022,ADULT SOCIAL CARE,METRO HOMECARE LTD,"1,039.50",PHY LTS 65+,HOMECARE - SPOT,2103381926,1000070695
04.02.2022,ADULT SOCIAL CARE,METRO HOMECARE LTD,"1,039.50",PHY LTS 65+,HOMECARE - SPOT,2103381933,1000070695
04.02.2022,ADULT SOCIAL CARE,WESTMINSTER HOMECARE LTD,491.05,PHY LTS 65+,HOMECARE - SPOT,2103381978,1000075287
04.02.2022,ADULT SOCIAL CARE,WESTMINSTER HOMECARE LTD,505.35,PHY LTS 65+,HOMECARE - SPOT,2103381979,1000075287
04.02.2022,ADULT SOCIAL CARE,WESTMINSTER HOMECARE LTD,705.58,PHY LTS 65+,HOMECARE - SPOT,2103381972,1000075287
04.02.2022,ADULT SOCIAL CARE,WESTMINSTER HOMECARE LTD,891.53,PHY LTS 65+,HOMECARE - SPOT,2103381973,1000075287
04.02.2022,ADULT SOCIAL CARE,WESTMINSTER HOMECARE LTD,953.52,PHY LTS 65+,HOMECARE - SPOT,2103381976,1000075287
04.02.2022,ADULT SOCIAL CARE,WESTMINSTER HOMECARE LTD,"1,144.20",PHY LTS 65+,HOMECARE - SPOT,2103381970,1000075287
04.02.2022,ADULT SOCIAL CARE,WESTMINSTER HOMECARE LTD,"1,210.94",PHY LTS 65+,HOMECARE - SPOT,2103381975,1000075287
04.02.2022,ADULT SOCIAL CARE,WESTMINSTER HOMECARE LTD,"1,258.61",PHY LTS 65+,HOMECARE - SPOT,2103381971,1000075287
04.02.2022,ADULT SOCIAL CARE,WESTMINSTER HOMECARE LTD,"1,644.80",PHY LTS 65+,HOMECARE - SPOT,2103381964,1000075287
04.02.2022,ADULT SOCIAL CARE,WESTMINSTER HOMECARE LTD,"1,678.16",PHY LTS 65+,HOMECARE - SPOT,2103381966,1000075287
04.02.2022,ADULT SOCIAL CARE,THAMES HOMECARE SERVICE LTD,262.08,PHY LTS 65+,HOMECARE - SPOT,2103382069,1000079295
04.02.2022,ADULT SOCIAL CARE,THAMES HOMECARE SERVICE LTD,262.08,PHY LTS 65+,HOMECARE - SPOT,2103382094,1000079295
04.02.2022,ADULT SOCIAL CARE,THAMES HOMECARE SERVICE LTD,271.44,PHY LTS 65+,HOMECARE - SPOT,2103382144,1000079295
04.02.2022,ADULT SOCIAL CARE,THAMES HOMECARE SERVICE LTD,276.12,PHY LTS 65+,HOMECARE - SPOT,2103382206,1000079295
04.02.2022,ADULT SOCIAL CARE,THAMES HOMECARE SERVICE LTD,280.8,PHY LTS 65+,HOMECARE - SPOT,2103382052,1000079295
04.02.2022,ADULT SOCIAL CARE,THAMES HOMECARE SERVICE LTD,280.8,PHY LTS 65+,HOMECARE - SPOT,2103382226,1000079295
04.02.2022,ADULT SOCIAL CARE,THAMES HOMECARE SERVICE LTD,285.48,PHY LTS 65+,HOMECARE - SPOT,2103382119,1000079295
04.02.2022,ADULT SOCIAL CARE,THAMES HOMECARE SERVICE LTD,294.84,PHY LTS 65+,HOMECARE - SPOT,2103382050,1000079295
04.02.2022,ADULT SOCIAL CARE,THAMES HOMECARE SERVICE LTD,294.84,PHY LTS 65+,HOMECARE - SPOT,2103382121,1000079295
04.02.2022,ADULT SOCIAL CARE,THAMES HOMECARE SERVICE LTD,294.84,PHY LTS 65+,HOMECARE - SPOT,2103382155,1000079295
04.02.2022,ADULT SOCIAL CARE,THAMES HOMECARE SERVICE LTD,294.84,PHY LTS 65+,HOMECARE - SPOT,2103382188,1000079295
04.02.2022,ADULT SOCIAL CARE,THAMES HOMECARE SERVICE LTD,294.84,PHY LTS 65+,HOMECARE - SPOT,2103382211,1000079295
04.02.2022,ADULT SOCIAL CARE,THAMES HOMECARE SERVICE LTD,313.56,PHY LTS 65+,HOMECARE - SPOT,2103382135,1000079295
04.02.2022,ADULT SOCIAL CARE,THAMES HOMECARE SERVICE LTD,313.56,PHY LTS 65+,HOMECARE - SPOT,2103382196,1000079295
04.02.2022,ADULT SOCIAL CARE,THAMES HOMECARE SERVICE LTD,332.28,PHY LTS 65+,HOMECARE - SPOT,2103382147,1000079295
04.02.2022,ADULT SOCIAL CARE,THAMES HOMECARE SERVICE LTD,355.68,PHY LTS 65+,HOMECARE - SPOT,2103382191,1000079295
04.02.2022,ADULT SOCIAL CARE,THAMES HOMECARE SERVICE LTD,360.36,PHY LTS 65+,HOMECARE - SPOT,2103382112,1000079295
04.02.2022,ADULT SOCIAL CARE,THAMES HOMECARE SERVICE LTD,360.36,PHY LTS 65+,HOMECARE - SPOT,2103382185,1000079295
04.02.2022,ADULT SOCIAL CARE,THAMES HOMECARE SERVICE LTD,383.76,PHY LTS 65+,HOMECARE - SPOT,2103382220,1000079295
04.02.2022,ADULT SOCIAL CARE,THAMES HOMECARE SERVICE LTD,393.12,PHY LTS 65+,HOMECARE - SPOT,2103382215,1000079295
04.02.2022,ADULT SOCIAL CARE,THAMES HOMECARE SERVICE LTD,402.48,PHY LTS 65+,HOMECARE - SPOT,2103382127,1000079295
04.02.2022,ADULT SOCIAL CARE,THAMES HOMECARE SERVICE LTD,416.52,PHY LTS 65+,HOMECARE - SPOT,2103382120,1000079295
04.02.2022,ADULT SOCIAL CARE,THAMES HOMECARE SERVICE LTD,458.64,PHY LTS 65+,HOMECARE - SPOT,2103382092,1000079295
04.02.2022,ADULT SOCIAL CARE,THAMES HOMECARE SERVICE LTD,477.36,PHY LTS 65+,HOMECARE - SPOT,2103382168,1000079295
04.02.2022,ADULT SOCIAL CARE,THAMES HOMECARE SERVICE LTD,491.4,PHY LTS 65+,HOMECARE - SPOT,2103382081,1000079295
04.02.2022,ADULT SOCIAL CARE,THAMES HOMECARE SERVICE LTD,491.4,PHY LTS 65+,HOMECARE - SPOT,2103382118,1000079295
04.02.2022,ADULT SOCIAL CARE,THAMES HOMECARE SERVICE LTD,496.08,PHY LTS 65+,HOMECARE - SPOT,2103382176,1000079295
04.02.2022,ADULT SOCIAL CARE,THAMES HOMECARE SERVICE LTD,505.44,PHY LTS 65+,HOMECARE - SPOT,2103382177,1000079295
04.02.2022,ADULT SOCIAL CARE,THAMES HOMECARE SERVICE LTD,524.16,PHY LTS 65+,HOMECARE - SPOT,2103382111,1000079295
04.02.2022,ADULT SOCIAL CARE,THAMES HOMECARE SERVICE LTD,524.16,PHY LTS 65+,HOMECARE - SPOT,2103382152,1000079295
04.02.2022,ADULT SOCIAL CARE,THAMES HOMECARE SERVICE LTD,589.68,PHY LTS 65+,HOMECARE - SPOT,2103382075,1000079295
04.02.2022,ADULT SOCIAL CARE,THAMES HOMECARE SERVICE LTD,589.68,PHY LTS 65+,HOMECARE - SPOT,2103382103,1000079295
04.02.2022,ADULT SOCIAL CARE,THAMES HOMECARE SERVICE LTD,589.68,PHY LTS 65+,HOMECARE - SPOT,2103382146,1000079295
04.02.2022,ADULT SOCIAL CARE,THAMES HOMECARE SERVICE LTD,617.76,PHY LTS 65+,HOMECARE - SPOT,2103382064,1000079295
04.02.2022,ADULT SOCIAL CARE,THAMES HOMECARE SERVICE LTD,617.76,PHY LTS 65+,HOMECARE - SPOT,2103382084,1000079295
04.02.2022,ADULT SOCIAL CARE,THAMES HOMECARE SERVICE LTD,627.12,PHY LTS 65+,HOMECARE - SPOT,2103382158,1000079295
04.02.2022,ADULT SOCIAL CARE,THAMES HOMECARE SERVICE LTD,655.2,PHY LTS 65+,HOMECARE - SPOT,2103382083,1000079295
04.02.2022,ADULT SOCIAL CARE,THAMES HOMECARE SERVICE LTD,655.2,PHY LTS 65+,HOMECARE - SPOT,2103382093,1000079295
04.02.2022,ADULT SOCIAL CARE,THAMES HOMECARE SERVICE LTD,655.2,PHY LTS 65+,HOMECARE - SPOT,2103382117,1000079295
04.02.2022,ADULT SOCIAL CARE,THAMES HOMECARE SERVICE LTD,655.2,PHY LTS 65+,HOMECARE - SPOT,2103382197,1000079295
04.02.2022,ADULT SOCIAL CARE,THAMES HOMECARE SERVICE LTD,659.88,PHY LTS 65+,HOMECARE - SPOT,2103382171,1000079295
04.02.2022,ADULT SOCIAL CARE,THAMES HOMECARE SERVICE LTD,664.56,PHY LTS 65+,HOMECARE - SPOT,2103382223,1000079295
04.02.2022,ADULT SOCIAL CARE,THAMES HOMECARE SERVICE LTD,683.28,PHY LTS 65+,HOMECARE - SPOT,2103382080,1000079295
04.02.2022,ADULT SOCIAL CARE,THAMES HOMECARE SERVICE LTD,692.64,PHY LTS 65+,HOMECARE - SPOT,2103382189,1000079295
04.02.2022,ADULT SOCIAL CARE,THAMES HOMECARE SERVICE LTD,692.64,PHY LTS 65+,HOMECARE - SPOT,2103382219,1000079295
04.02.2022,ADULT SOCIAL CARE,THAMES HOMECARE SERVICE LTD,702,PHY LTS 65+,HOMECARE - SPOT,2103382054,1000079295
04.02.2022,ADULT SOCIAL CARE,THAMES HOMECARE SERVICE LTD,706.68,PHY LTS 65+,HOMECARE - SPOT,2103382205,1000079295
04.02.2022,ADULT SOCIAL CARE,THAMES HOMECARE SERVICE LTD,720.72,PHY LTS 65+,HOMECARE - SPOT,2103382095,1000079295
04.02.2022,ADULT SOCIAL CARE,THAMES HOMECARE SERVICE LTD,720.72,PHY LTS 65+,HOMECARE - SPOT,2103382192,1000079295
04.02.2022,ADULT SOCIAL CARE,THAMES HOMECARE SERVICE LTD,758.16,PHY LTS 65+,HOMECARE - SPOT,2103382141,1000079295
04.02.2022,ADULT SOCIAL CARE,THAMES HOMECARE SERVICE LTD,786.24,PHY LTS 65+,HOMECARE - SPOT,2103382078,1000079295
04.02.2022,ADULT SOCIAL CARE,THAMES HOMECARE SERVICE LTD,786.24,PHY LTS 65+,HOMECARE - SPOT,2103382202,1000079295
04.02.2022,ADULT SOCIAL CARE,THAMES HOMECARE SERVICE LTD,786.24,PHY LTS 65+,HOMECARE - SPOT,2103382214,1000079295
04.02.2022,ADULT SOCIAL CARE,THAMES HOMECARE SERVICE LTD,804.96,PHY LTS 65+,HOMECARE - SPOT,2103382198,1000079295
04.02.2022,ADULT SOCIAL CARE,THAMES HOMECARE SERVICE LTD,804.96,PHY LTS 65+,HOMECARE - SPOT,2103382199,1000079295
04.02.2022,ADULT SOCIAL CARE,THAMES HOMECARE SERVICE LTD,851.76,PHY LTS 65+,HOMECARE - SPOT,2103382073,1000079295
04.02.2022,ADULT SOCIAL CARE,THAMES HOMECARE SERVICE LTD,851.76,PHY LTS 65+,HOMECARE - SPOT,2103382163,1000079295
04.02.2022,ADULT SOCIAL CARE,THAMES HOMECARE SERVICE LTD,851.76,PHY LTS 65+,HOMECARE - SPOT,2103382207,1000079295
04.02.2022,ADULT SOCIAL CARE,THAMES HOMECARE SERVICE LTD,936,PHY LTS 65+,HOMECARE - SPOT,2103382184,1000079295
04.02.2022,ADULT SOCIAL CARE,THAMES HOMECARE SERVICE LTD,"1,010.88",PHY LTS 65+,HOMECARE - SPOT,2103382102,1000079295
04.02.2022,ADULT SOCIAL CARE,THAMES HOMECARE SERVICE LTD,"1,076.40",PHY LTS 65+,HOMECARE - SPOT,2103382107,1000079295
04.02.2022,ADULT SOCIAL CARE,MEDACS HOMECARE,480.78,PHY STS 18-64,HOMECARE - IC,2103382247,11287415
04.02.2022,ADULT SOCIAL CARE,MEDACS HOMECARE,488.33,PHY STS 18-64,HOMECARE - IC,2103382243,11287415
04.02.2022,ADULT SOCIAL CARE,MEDACS HOMECARE,574.75,PHY STS 18-64,HOMECARE - IC,2103382256,11287415
04.02.2022,ADULT SOCIAL CARE,METRO HOMECARE LTD,"1,204.50",PHY STS 18-64,HOMECARE - IC,2103381919,1000070695
04.02.2022,ADULT SOCIAL CARE,METRO HOMECARE LTD,"1,443.75",PHY STS 18-64,HOMECARE - IC,2103381916,1000070695
04.02.2022,ADULT SOCIAL CARE,THAMES HOMECARE SERVICE LTD,524.16,PHY STS 18-64,HOMECARE - IC,2103382138,1000079295
04.02.2022,ADULT SOCIAL CARE,THAMES HOMECARE SERVICE LTD,589.68,PHY STS 18-64,HOMECARE - IC,2103382105,1000079295
04.02.2022,ADULT SOCIAL CARE,MEDACS HOMECARE,413.63,PHY STS 65+,HOMECARE - IC,2103382257,11287415
04.02.2022,ADULT SOCIAL CARE,MEDACS HOMECARE,445.53,PHY STS 65+,HOMECARE - IC,2103382237,11287415
04.02.2022,ADULT SOCIAL CARE,MEDACS HOMECARE,657.99,PHY STS 65+,HOMECARE - IC,2103382231,11287415
04.02.2022,ADULT SOCIAL CARE,MEDACS HOMECARE,"2,036.34",PHY STS 65+,HOMECARE - IC,2103382229,11287415
04.02.2022,ADULT SOCIAL CARE,LONDON CARE LTD,262.77,PHY STS 65+,HOMECARE - IC,2103381848,1000003398
04.02.2022,ADULT SOCIAL CARE,LONDON CARE LTD,411.01,PHY STS 65+,HOMECARE - IC,2103381719,1000003398
04.02.2022,ADULT SOCIAL CARE,METRO HOMECARE LTD,284.63,PHY STS 65+,HOMECARE - IC,2103381942,1000070695
04.02.2022,ADULT SOCIAL CARE,METRO HOMECARE LTD,519.75,PHY STS 65+,HOMECARE - IC,2103381953,1000070695
04.02.2022,ADULT SOCIAL CARE,METRO HOMECARE LTD,519.75,PHY STS 65+,HOMECARE - IC,2103381954,1000070695
04.02.2022,ADULT SOCIAL CARE,WESTMINSTER HOMECARE LTD,533.96,PHY STS 65+,HOMECARE - IC,2103381963,1000075287
04.02.2022,ADULT SOCIAL CARE,WESTMINSTER HOMECARE LTD,"1,191.89",PHY STS 65+,HOMECARE - IC,2103381968,1000075287
04.02.2022,ADULT SOCIAL CARE,THAMES HOMECARE SERVICE LTD,294.84,PHY STS 65+,HOMECARE - IC,2103382131,1000079295
04.02.2022,ADULT SOCIAL CARE,THAMES HOMECARE SERVICE LTD,327.6,PHY STS 65+,HOMECARE - IC,2103382170,1000079295
04.02.2022,ADULT SOCIAL CARE,THAMES HOMECARE SERVICE LTD,425.88,PHY STS 65+,HOMECARE - IC,2103382217,1000079295
04.02.2022,ADULT SOCIAL CARE,THAMES HOMECARE SERVICE LTD,524.16,PHY STS 65+,HOMECARE - IC,2103382193,1000079295
04.02.2022,ADULT SOCIAL CARE,THAMES HOMECARE SERVICE LTD,617.76,PHY STS 65+,HOMECARE - IC,2103382201,1000079295
04.02.2022,ADULT SOCIAL CARE,THAMES HOMECARE SERVICE LTD,655.2,PHY STS 65+,HOMECARE - IC,2103382122,1000079295
04.02.2022,ADULT SOCIAL CARE,LONDON CARE LTD,396.46,SEN LTS 18-64,HOMECARE - C&V,2103381726,1000003398
04.02.2022,ADULT SOCIAL CARE,LONDON CARE LTD,304.26,SEN LTS 65+,HOMECARE - C&V,2103381581,1000003398
04.02.2022,ADULT SOCIAL CARE,LONDON CARE LTD,"1,109.25",SEN LTS 65+,HOMECARE - C&V,2103381874,1000003398
04.02.2022,ADULT SOCIAL CARE,THAMES HOMECARE SERVICE LTD,313.56,SEN LTS 65+,HOMECARE - SPOT,2103382136,1000079295
04.02.2022,ADULT SOCIAL CARE,SURREY DOCKS FARM PROVIDENT SOCIETY,500,SOCIAL ISOLATION,DAYCARE,2103382300,1000000958
04.02.2022,ADULT SOCIAL CARE,MEDACS HOMECARE,808.5,SOCIAL ISOLATION,HOMECARE - C&V,2103382250,11287415
04.02.2022,ADULT SOCIAL CARE,MEDACS HOMECARE,808.5,SOCIAL ISOLATION,HOMECARE - C&V,2103382259,11287415
04.02.2022,ADULT SOCIAL CARE,MEDACS HOMECARE,"1,103.20",SOCIAL ISOLATION,HOMECARE - C&V,2103382274,11287415
04.02.2022,ADULT SOCIAL CARE,MEDACS HOMECARE,"1,205.18",SOCIAL ISOLATION,HOMECARE - C&V,2103382292,11287415
04.02.2022,ADULT SOCIAL CARE,LONDON CARE LTD,654.62,SOCIAL ISOLATION,HOMECARE - C&V,2103381549,1000003398
04.02.2022,ADULT SOCIAL CARE,LONDON CARE LTD,"1,415.27",SOCIAL ISOLATION,HOMECARE - C&V,2103381814,1000003398
04.02.2022,ADULT SOCIAL CARE,LONDON CARE LTD,"1,844.00",SOCIAL ISOLATION,HOMECARE - C&V,2103381884,1000003398
04.02.2022,ADULT SOCIAL CARE,METRO HOMECARE LTD,420.75,SOCIAL ISOLATION,HOMECARE - SPOT,2103381932,1000070695
04.02.2022,ADULT SOCIAL CARE,WESTMINSTER HOMECARE LTD,915.37,SOCIAL ISOLATION,HOMECARE - SPOT,2103381974,1000075287
04.02.2022,ADULT SOCIAL CARE,KEMKARE LTD,"1,868.75",SPECIALIST CARE,SECTION 17 PAYMENTS TO AGENCIES/CARERS,2103381980,1000084181
04.02.2022,ADULT SOCIAL CARE,LONDON CARE LTD,407.52,SUB LTS 18-64,HOMECARE - C&V,2103381580,1000003398
04.02.2022,ADULT SOCIAL CARE,LONDON CARE LTD,580.86,SUB LTS 18-64,HOMECARE - C&V,2103381693,1000003398
04.02.2022,ADULT SOCIAL CARE,LONDON CARE LTD,373.41,SUB LTS 65+,HOMECARE - C&V,2103381703,1000003398
04.02.2022,CHIEF EXECUTIVE,METIS CONSULTANTS LIMITED,357.5,CAPITAL PS (REGEN),CONSTR'N SUB CONTRACT - NON CERTIFICATED,5902508747,1000086330
04.02.2022,CHIEF EXECUTIVE,METIS CONSULTANTS LIMITED,"4,015.00",CAPITAL PS (REGEN),CONSTR'N SUB CONTRACT - NON CERTIFICATED,5902508747,1000086330
04.02.2022,CHIEF EXECUTIVE'S OFFICE,SOUTHWARK LAW CENTRE,"12,788.00",CHIEF EXECUTIVE'S OFFICE,EXTERNAL AGENCIES AND BODIES,5902507741,1981325
04.02.2022,CHIEF EXECUTIVE'S OFFICE,STEP AHEAD SOCIAL ENTERPRISE CIC,"32,338.74",CHIEF EXECUTIVE'S OFFICE,EXTERNAL AGENCIES AND BODIES,5902508639,1000076420
04.02.2022,CHILDREN AND FAMILIES,PARENTS AND CHILDREN TOGETHER,300,ADOPTION SUPP FUND,PROFESSIONAL FEES,5902508753,1000068128
04.02.2022,CHILDREN AND FAMILIES,PARENTS AND CHILDREN TOGETHER,300,ADOPTION SUPP FUND,PROFESSIONAL FEES,5902508757,1000068128
04.02.2022,CHILDREN AND FAMILIES,PARENTS AND CHILDREN TOGETHER,600,ADOPTION SUPP FUND,PROFESSIONAL FEES,5902508751,1000068128
04.02.2022,CHILDREN AND FAMILIES,CHROMA THERAPIES LTD,312,ADOPTION SUPP FUND,PROFESSIONAL FEES,5902508772,1000085537
04.02.2022,CHILDREN AND FAMILIES,PLAY TOGETHER LIMITED,840,ADOPTION SUPP FUND,PROFESSIONAL FEES,5902508775,1000085787
04.02.2022,CHILDREN AND FAMILIES,PLAY TOGETHER LIMITED,"1,050.00",ADOPTION SUPP FUND,PROFESSIONAL FEES,5902508776,1000085787
04.02.2022,CHILDREN AND FAMILIES,C E RICHARDSON CONSULTANTS LTD,286,ADOPTION SUPP FUND,PROFESSIONAL FEES,5902508770,1000085808
04.02.2022,CHILDREN AND FAMILIES,PURPLE THERAPY LTD,360,ADOPTION SUPP FUND,PROFESSIONAL FEES,5902508739,1000087557
04.02.2022,CHILDREN AND FAMILIES,REDACTED PERSONAL DATA,805,ADOPTION SUPP FUND,PROFESSIONAL FEES,REDACTED,REDACTED
04.02.2022,CHILDREN AND FAMILIES,REDACTED PERSONAL DATA,"1,080.00",ADOPTION SUPP FUND,PROFESSIONAL FEES,REDACTED,REDACTED
04.02.2022,CHILDREN AND FAMILIES,ST FRANCIS' CHILDREN SOCIETY,"32,320.00",ALS INTER AGENCY,EXTERNAL AGENCIES AND BODIES,5902508778,1000041815
04.02.2022,CHILDREN AND FAMILIES,CREATING CARE CHOICES LTD,"21,921.42",CHILDREN�S RESID,RESIDENTIAL CARE,2103382046,1000076738
04.02.2022,CHILDREN AND FAMILIES,PARKVIEW CARE (BROADSTAIRS) LTD,"17,933.05",CHILDREN�S RESID,RESIDENTIAL CARE,2103382044,1000083678
04.02.2022,CHILDREN AND FAMILIES,247 BLUEBELL CARE LIMITED,"36,081.43",CHILDREN�S RESID,RESIDENTIAL CARE,2103382048,1000087186
04.02.2022,CHILDREN AND FAMILIES,NETWORK RECRUITMENT SOLUTIONS,357.2,CONTACT SERVICE,OTHER PAYMENTS FOR CLIENTS,5902507465,1000071241
04.02.2022,CHILDREN AND FAMILIES,NETWORK RECRUITMENT SOLUTIONS,"1,050.00",CONTACT SERVICE,OTHER PAYMENTS FOR CLIENTS,5902507466,1000071241
04.02.2022,CHILDREN AND FAMILIES,NEGOTIATORS FAMILY CENTRE LIMITED,400,CONTACT SERVICE,OTHER PAYMENTS FOR CLIENTS,5902508657,1000075672
04.02.2022,CHILDREN AND FAMILIES,POTTON KARE SERVICES LTD,271.8,CONTACT SERVICE,OTHER PAYMENTS FOR CLIENTS,2103382042,1000080630
04.02.2022,CHILDREN AND FAMILIES,PETALOUNDA CONSULTANCY LTD,901.7,FAMILY GROUP CONF�S,PROFESSIONAL FEES,5902508769,1000081394
04.02.2022,CHILDREN AND FAMILIES,HERA SOCIAL CARE LTD,303.33,FAMILY GROUP CONF�S,PROFESSIONAL FEES,5902508790,1000084935
04.02.2022,CHILDREN AND FAMILIES,REDACTED PERSONAL DATA,365.9,FAMILY GROUP CONF�S,PROFESSIONAL FEES,REDACTED,REDACTED
04.02.2022,CHILDREN AND FAMILIES,REDACTED PERSONAL DATA,300,FOSTERING ALLOWANCES,OTHER PAYMENTS FOR CLIENTS,REDACTED,REDACTED
04.02.2022,CHILDREN AND FAMILIES,TACT,396.42,FRIENDS & FAMILY FOSTERING,EXTERNAL AGENCIES AND BODIES,2103382041,1000012941
04.02.2022,CHILDREN AND FAMILIES,CHRYSALIS CARE,"6,191.32",FRIENDS & FAMILY FOSTERING,EXTERNAL AGENCIES AND BODIES,2103382036,1000028987
04.02.2022,CHILDREN AND FAMILIES,KASPER FOSTERING,"3,513.23",FRIENDS & FAMILY FOSTERING,EXTERNAL AGENCIES AND BODIES,2103382040,1000036628
04.02.2022,CHILDREN AND FAMILIES,KASPER FOSTERING,"4,640.39",FRIENDS & FAMILY FOSTERING,EXTERNAL AGENCIES AND BODIES,2103382035,1000036628
04.02.2022,CHILDREN AND FAMILIES,SUNBEAM FOSTERING AGENCY LTD,"3,432.14",FRIENDS & FAMILY FOSTERING,EXTERNAL AGENCIES AND BODIES,2103382038,1000041457
04.02.2022,CHILDREN AND FAMILIES,SUNBEAM FOSTERING AGENCY LTD,"5,646.43",FRIENDS & FAMILY FOSTERING,EXTERNAL AGENCIES AND BODIES,2103382039,1000041457
04.02.2022,CHILDREN AND FAMILIES,FAMILY FOSTERING LTD,"4,424.63",FRIENDS & FAMILY FOSTERING,EXTERNAL AGENCIES AND BODIES,2103382017,1000075179
04.02.2022,CHILDREN AND FAMILIES,DIVERSITY FOSTER CARE LTD,"4,108.69",FRIENDS & FAMILY FOSTERING,EXTERNAL AGENCIES AND BODIES,2103382033,1000081399
04.02.2022,CHILDREN AND FAMILIES,DIVERSITY FOSTER CARE LTD,"4,108.69",FRIENDS & FAMILY FOSTERING,EXTERNAL AGENCIES AND BODIES,2103382034,1000081399
04.02.2022,CHILDREN AND FAMILIES,SILVER LINING FOSTERING LTD,"3,432.14",FRIENDS & FAMILY FOSTERING,EXTERNAL AGENCIES AND BODIES,2103382037,1000087318
04.02.2022,CHILDREN AND FAMILIES,ELLIOT LEIGH TLC LTD,-899.99,SEMI-IND CARELEAVERS,COSTS RECOVERED,2103382307,1000079022
04.02.2022,CHILDREN AND FAMILIES,ELLIOT LEIGH TLC LTD,-491.47,SEMI-IND CARELEAVERS,COSTS RECOVERED,2103382306,1000079022
04.02.2022,CHILDREN AND FAMILIES,ELLIOT LEIGH TLC LTD,-450,SEMI-IND CARELEAVERS,COSTS RECOVERED,2103382305,1000079022
04.02.2022,CHILDREN AND FAMILIES,OASIS AQUILA HOUSING,310.14,SEMI-IND CARELEAVERS,EXTERNAL AGENCIES AND BODIES,2103382016,1000002184
04.02.2022,CHILDREN AND FAMILIES,OASIS AQUILA HOUSING,877.58,SEMI-IND CARELEAVERS,EXTERNAL AGENCIES AND BODIES,2103381989,1000002184
04.02.2022,CHILDREN AND FAMILIES,OASIS AQUILA HOUSING,"1,169.84",SEMI-IND CARELEAVERS,EXTERNAL AGENCIES AND BODIES,2103381994,1000002184
04.02.2022,CHILDREN AND FAMILIES,OASIS AQUILA HOUSING,"1,307.10",SEMI-IND CARELEAVERS,EXTERNAL AGENCIES AND BODIES,2103381987,1000002184
04.02.2022,CHILDREN AND FAMILIES,OASIS AQUILA HOUSING,"1,350.67",SEMI-IND CARELEAVERS,EXTERNAL AGENCIES AND BODIES,2103382014,1000002184
04.02.2022,CHILDREN AND FAMILIES,OASIS AQUILA HOUSING,"1,485.92",SEMI-IND CARELEAVERS,EXTERNAL AGENCIES AND BODIES,2103381992,1000002184
04.02.2022,CHILDREN AND FAMILIES,OWNLIFE LTD,"-1,600.00",SEMI-IND CARELEAVERS,EXTERNAL AGENCIES AND BODIES,2103381981,1000056219
04.02.2022,CHILDREN AND FAMILIES,OWNLIFE LTD,"3,542.87",SEMI-IND CARELEAVERS,EXTERNAL AGENCIES AND BODIES,2103381984,1000056219
04.02.2022,CHILDREN AND FAMILIES,OWNLIFE LTD,"4,960.00",SEMI-IND CARELEAVERS,EXTERNAL AGENCIES AND BODIES,2103381998,1000056219
04.02.2022,CHILDREN AND FAMILIES,OWNLIFE LTD,"4,960.00",SEMI-IND CARELEAVERS,EXTERNAL AGENCIES AND BODIES,2103382011,1000056219
04.02.2022,CHILDREN AND FAMILIES,ELLIOT LEIGH TLC LTD,"1,988.34",SEMI-IND CARELEAVERS,EXTERNAL AGENCIES AND BODIES,2103382005,1000079022
04.02.2022,CHILDREN AND FAMILIES,ELLIOT LEIGH TLC LTD,"2,015.00",SEMI-IND CARELEAVERS,EXTERNAL AGENCIES AND BODIES,2103382019,1000079022
04.02.2022,CHILDREN AND FAMILIES,ELLIOT LEIGH TLC LTD,"2,316.01",SEMI-IND CARELEAVERS,EXTERNAL AGENCIES AND BODIES,2103382002,1000079022
04.02.2022,CHILDREN AND FAMILIES,ELLIOT LEIGH TLC LTD,"2,502.01",SEMI-IND CARELEAVERS,EXTERNAL AGENCIES AND BODIES,2103382007,1000079022
04.02.2022,CHILDREN AND FAMILIES,ELLIOT LEIGH TLC LTD,"2,901.91",SEMI-IND CARELEAVERS,EXTERNAL AGENCIES AND BODIES,2103382003,1000079022
04.02.2022,CHILDREN AND FAMILIES,ELLIOT LEIGH TLC LTD,"3,367.53",SEMI-IND CARELEAVERS,EXTERNAL AGENCIES AND BODIES,2103382008,1000079022
04.02.2022,CHILDREN AND FAMILIES,DALEY BREAD LTD,"9,291.43",SEMI-IND CARELEAVERS,EXTERNAL AGENCIES AND BODIES,2103382013,1000080141
04.02.2022,CHILDREN AND FAMILIES,TRANSFORMING LIVES COMPANY LTD,"3,739.84",SEMI-IND CARELEAVERS,EXTERNAL AGENCIES AND BODIES,2103382018,1000083352
04.02.2022,CHILDREN AND FAMILIES,TRANSFORMING LIVES COMPANY LTD,"4,149.35",SEMI-IND CARELEAVERS,EXTERNAL AGENCIES AND BODIES,2103381999,1000083352
04.02.2022,CHILDREN AND FAMILIES,ASPECTS CARE LTD,"4,156.80",SEMI-IND CARELEAVERS,EXTERNAL AGENCIES AND BODIES,2103381996,1000087615
04.02.2022,CHILDREN AND FAMILIES,OWNLIFE LTD,265.7,SEMI-IND CARELEAVERS,OTHER PAYMENTS FOR CLIENTS,2103381983,1000056219
04.02.2022,CHILDREN AND FAMILIES,OWNLIFE LTD,265.7,SEMI-IND CARELEAVERS,OTHER PAYMENTS FOR CLIENTS,2103381985,1000056219
04.02.2022,CHILDREN AND FAMILIES,TRANSFORMING LIVES COMPANY LTD,310,SEMI-IND CARELEAVERS,OTHER PAYMENTS FOR CLIENTS,2103382000,1000083352
04.02.2022,CHILDREN AND FAMILIES,SYDNEY CARE LTD,"7,612.71",SEMI-IND LAC 16-17,EXTERNAL AGENCIES AND BODIES,2103382023,1000081598
04.02.2022,CHILDREN AND FAMILIES,DREAMFO HOUSING LTD,"5,720.96",SEMI-IND LAC 16-17,EXTERNAL AGENCIES AND BODIES,2103382030,1000087273
04.02.2022,CHILDREN AND FAMILIES,SYDNEY CARE LTD,310,SEMI-IND LAC 16-17,OTHER PAYMENTS FOR CLIENTS,2103382024,1000081598
04.02.2022,CHILDREN AND FAMILIES,BASILDON TAXIS LTD,420,SEMI-IND LAC 16-17,OTHER PAYMENTS FOR CLIENTS,2103382025,1000085466
04.02.2022,CHILDREN AND FAMILIES,REDACTED PERSONAL DATA,"1,042.86",SEMI-IND LAC 16-17,OTHER PAYMENTS FOR CLIENTS,REDACTED,REDACTED
04.02.2022,CHILDREN AND FAMILIES,REDACTED PERSONAL DATA,300,SEMI-IND LAC 16-17,OTHER PAYMENTS FOR CLIENTS,REDACTED,REDACTED
04.02.2022,CHILDREN AND FAMILIES,REDACTED PERSONAL DATA,300,SEMI-IND LAC 16-17,OTHER PAYMENTS FOR CLIENTS,REDACTED,REDACTED
04.02.2022,CHILDREN AND FAMILIES,REDACTED PERSONAL DATA,300,SEMI-IND LAC 16-17,OTHER PAYMENTS FOR CLIENTS,REDACTED,REDACTED
04.02.2022,CHILDREN AND FAMILIES,REDACTED PERSONAL DATA,300,SEMI-IND LAC 16-17,OTHER PAYMENTS FOR CLIENTS,REDACTED,REDACTED
04.02.2022,CHILDREN AND FAMILIES,OASIS AQUILA HOUSING,500.4,UASC CARELEAVERS,EXTERNAL AGENCIES AND BODIES,2103381982,1000002184
04.02.2022,CHILDREN AND FAMILIES,OASIS AQUILA HOUSING,"1,000.79",UASC CARELEAVERS,EXTERNAL AGENCIES AND BODIES,2103382020,1000002184
04.02.2022,CHILDREN AND FAMILIES,OASIS AQUILA HOUSING,"1,068.26",UASC CARELEAVERS,EXTERNAL AGENCIES AND BODIES,2103381995,1000002184
04.02.2022,CHILDREN AND FAMILIES,OASIS AQUILA HOUSING,"1,068.26",UASC CARELEAVERS,EXTERNAL AGENCIES AND BODIES,2103382022,1000002184
04.02.2022,CHILDREN AND FAMILIES,OASIS AQUILA HOUSING,"1,113.12",UASC CARELEAVERS,EXTERNAL AGENCIES AND BODIES,2103382015,1000002184
04.02.2022,CHILDREN AND FAMILIES,OASIS AQUILA HOUSING,"1,153.47",UASC CARELEAVERS,EXTERNAL AGENCIES AND BODIES,2103381988,1000002184
04.02.2022,CHILDREN AND FAMILIES,OASIS AQUILA HOUSING,"1,153.47",UASC CARELEAVERS,EXTERNAL AGENCIES AND BODIES,2103382010,1000002184
04.02.2022,CHILDREN AND FAMILIES,METROPOLITAN HOUSING TRUST LTD,666,UASC CARELEAVERS,EXTERNAL AGENCIES AND BODIES,2103382021,1000047547
04.02.2022,CHILDREN AND FAMILIES,OWNLIFE LTD,"2,790.00",UASC CARELEAVERS,EXTERNAL AGENCIES AND BODIES,2103381997,1000056219
04.02.2022,CHILDREN AND FAMILIES,ELLIOT LEIGH TLC LTD,771.4,UASC CARELEAVERS,EXTERNAL AGENCIES AND BODIES,2103382001,1000079022
04.02.2022,CHILDREN AND FAMILIES,ELLIOT LEIGH TLC LTD,"1,713.68",UASC CARELEAVERS,EXTERNAL AGENCIES AND BODIES,2103381986,1000079022
04.02.2022,CHILDREN AND FAMILIES,ELLIOT LEIGH TLC LTD,"1,727.01",UASC CARELEAVERS,EXTERNAL AGENCIES AND BODIES,2103382004,1000079022
04.02.2022,CHILDREN AND FAMILIES,ELLIOT LEIGH TLC LTD,"2,426.06",UASC CARELEAVERS,EXTERNAL AGENCIES AND BODIES,2103382006,1000079022
04.02.2022,CHILDREN AND FAMILIES,OASIS AQUILA HOUSING,721.36,UASC LAC 16-17,EXTERNAL AGENCIES AND BODIES,2103382028,1000002184
04.02.2022,CHILDREN AND FAMILIES,OASIS AQUILA HOUSING,"1,545.78",UASC LAC 16-17,EXTERNAL AGENCIES AND BODIES,2103382029,1000002184
04.02.2022,CHILDREN AND FAMILIES,OASIS AQUILA HOUSING,"1,597.30",UASC LAC 16-17,EXTERNAL AGENCIES AND BODIES,2103382032,1000002184
04.02.2022,CHILDREN AND FAMILIES,DREAMFO HOUSING LTD,"3,321.43",UASC LAC 16-17,EXTERNAL AGENCIES AND BODIES,2103382026,1000087273
04.02.2022,CHILDREN AND FAMILIES,DREAMFO HOUSING LTD,609.91,UASC LAC 16-17,OTHER PAYMENTS FOR CLIENTS,2103382027,1000087273
04.02.2022,COMMUNITIES,MEDACS HOMECARE,296.64,NO RECOURSE TO PUBLIC FUNDS,HOMECARE - C&V,2103382230,11287415
04.02.2022,COMMUNITIES,MEDACS HOMECARE,296.64,NO RECOURSE TO PUBLIC FUNDS,HOMECARE - C&V,2103382233,11287415
04.02.2022,COMMUNITIES,METRO HOMECARE LTD,412.5,NO RECOURSE TO PUBLIC FUNDS,HOMECARE - C&V,2103381941,1000070695
04.02.2022,COMMUNITIES,WESTMINSTER HOMECARE LTD,553.04,NO RECOURSE TO PUBLIC FUNDS,HOMECARE - C&V,2103381977,1000075287
04.02.2022,COMMUNITIES,THAMES HOMECARE SERVICE LTD,421.2,NO RECOURSE TO PUBLIC FUNDS,HOMECARE - C&V,2103382167,1000079295
04.02.2022,CUSTOMER EXPERIENCE HGF,SG PATH LTD,415.8,CORONER'S,PROFESSIONAL FEES,5902508700,1000077883
04.02.2022,CUSTOMER EXPERIENCE HGF,IMPERIAL COLLEGE PROJECTS LTD,336,CORONER'S,PROFESSIONAL FEES,5902508656,1000080106
04.02.2022,CUSTOMER EXPERIENCE HGF,IMPERIAL COLLEGE PROJECTS LTD,356,CORONER'S,PROFESSIONAL FEES,5902508661,1000080106
04.02.2022,CUSTOMER EXPERIENCE HGF,IMPERIAL COLLEGE PROJECTS LTD,364,CORONER'S,PROFESSIONAL FEES,5902508658,1000080106
04.02.2022,CUSTOMER EXPERIENCE HGF,IMPERIAL COLLEGE PROJECTS LTD,504,CORONER'S,PROFESSIONAL FEES,5902508655,1000080106
04.02.2022,CUSTOMER EXPERIENCE HGF,IMPERIAL COLLEGE PROJECTS LTD,544,CORONER'S,PROFESSIONAL FEES,5902508662,1000080106
04.02.2022,CUSTOMER EXPERIENCE HGF,NRC PATHOLOGY SERVICES LIMITED,360,CORONER'S,PROFESSIONAL FEES,5902508634,1000085798
04.02.2022,CUSTOMER EXPERIENCE HGF,PUMP COURT CHAMBERS LTD,400,CORONER'S,PROFESSIONAL FEES,5902508603,1000087635
04.02.2022,CUSTOMER EXPERIENCE HGF,W&J BROWN LTD,750,CORONER'S,PROFESSIONAL FEES,5902508602,1000087879
04.02.2022,CUSTOMER EXPERIENCE HGF,W&J BROWN LTD,"1,760.00",CORONER'S,PROFESSIONAL FEES,5902508601,1000087879
04.02.2022,EDUCATION,PULSE HEALTHCARE LTD,308,SCH TRANS � TRAVEL,AGENCY STAFF,5902507940,1000035063
04.02.2022,ENVIRONMENT AND LEISURE,AGENTIS WORKWEAR LTD,960,MANAGEMENT TEAM,"CLOTHING, UNIFORMS & LAUNDRY",5902508625,1000065561
04.02.2022,ENVIRONMENT DIRECTORATE,ACCESS HIRE NATIONWIDE LTD,"1,514.57",COMMERCIAL VEH CTRL A/C,HIRED VEHICLES,5902508789,1000048527
04.02.2022,ENVIRONMENT DIRECTORATE,ACCESS HIRE NATIONWIDE LTD,"1,598.71",COMMERCIAL VEH CTRL A/C,HIRED VEHICLES,5902508783,1000048527
04.02.2022,ENVIRONMENT DIRECTORATE,ACCESS HIRE NATIONWIDE LTD,"1,598.71",COMMERCIAL VEH CTRL A/C,HIRED VEHICLES,5902508785,1000048527
04.02.2022,ENVIRONMENT DIRECTORATE,ACCESS HIRE NATIONWIDE LTD,"1,598.71",COMMERCIAL VEH CTRL A/C,HIRED VEHICLES,5902508786,1000048527
04.02.2022,ENVIRONMENT DIRECTORATE,PACE ACCIDENT REPAIRS CENTRE LTD,380,COMMERCIAL VEH CTRL A/C,HIRED VEHICLES,5902508160,1000069899
04.02.2022,ENVIRONMENT DIRECTORATE,PACE ACCIDENT REPAIRS CENTRE LTD,380,COMMERCIAL VEH CTRL A/C,HIRED VEHICLES,5902508163,1000069899
04.02.2022,ENVIRONMENT DIRECTORATE,PACE ACCIDENT REPAIRS CENTRE LTD,380,COMMERCIAL VEH CTRL A/C,HIRED VEHICLES,5902508166,1000069899
04.02.2022,ENVIRONMENT DIRECTORATE,MARSTON GROUP LTD,279,COMMERCIAL VEH CTRL A/C,PARKING CHARGES,5902508750,1000011313
04.02.2022,ENVIRONMENT DIRECTORATE,MARSTON GROUP LTD,279,COMMERCIAL VEH CTRL A/C,PARKING CHARGES,5902508756,1000011313
04.02.2022,ENVIRONMENT DIRECTORATE,MARSTON GROUP LTD,279,COMMERCIAL VEH CTRL A/C,PARKING CHARGES,5902508760,1000011313
04.02.2022,ENVIRONMENT DIRECTORATE,MARSTON GROUP LTD,279,COMMERCIAL VEH CTRL A/C,PARKING CHARGES,5902508762,1000011313
04.02.2022,ENVIRONMENT DIRECTORATE,JBW ENFORCEMENT AGENTS,278,COMMERCIAL VEH CTRL A/C,PARKING CHARGES,5902508734,1000080454
04.02.2022,ENVIRONMENT DIRECTORATE,LONDON LORRY CONTROL,550,COMMERCIAL VEH CTRL A/C,PARKING CHARGES,5902508735,1000082689
04.02.2022,ENVIRONMENT DIRECTORATE,METIS CONSULTANTS LIMITED,"13,750.00",FLOOD RISK MANAGEMENT,HIGHWAYS TERM CONTRACT,5902508618,1000086330
04.02.2022,ENVIRONMENT DIRECTORATE,METIS CONSULTANTS LIMITED,"18,125.00",FLOOD RISK MANAGEMENT,HIGHWAYS TERM CONTRACT,5902508698,1000086330
04.02.2022,ENVIRONMENT DIRECTORATE,AUTO SISTANCE LTD,330,HIGHWAY LICENSING INCOME,REMOVAL EXPENSES,5902507729,1000070536
04.02.2022,ENVIRONMENT DIRECTORATE,F M CONWAY LTD,"230,026.31",HIGHWAY MAINTENANCE OVERHEADS,HIGHWAYS TERM CONTRACT,2103379468,4001384
04.02.2022,ENVIRONMENT DIRECTORATE,SOUTHWARK NEWSPAPER LTD,672,HIGHWAYS DEVELOPMENT,MARKETING & PUBLICITY SERVICES,5902508755,1556957
04.02.2022,ENVIRONMENT DIRECTORATE,BRITISH STANDARDS INSTITUTION,"1,055.00",PEST CONTROL,SUBSCRIPTIONS,5902508708,1000041736
04.02.2022,ENVIRONMENT DIRECTORATE,UK POWER NETWORKS (OPERATIONS) LTD,361,PUBLIC LIGHTING,OTHER CONTRACTORS,5902508712,1000016085
04.02.2022,ENVIRONMENT DIRECTORATE,UK POWER NETWORKS (OPERATIONS) LTD,361,PUBLIC LIGHTING,OTHER CONTRACTORS,5902508714,1000016085
04.02.2022,ENVIRONMENT DIRECTORATE,UK POWER NETWORKS (OPERATIONS) LTD,361,PUBLIC LIGHTING,OTHER CONTRACTORS,5902508716,1000016085
04.02.2022,ENVIRONMENT DIRECTORATE,UK POWER NETWORKS (OPERATIONS) LTD,361,PUBLIC LIGHTING,OTHER CONTRACTORS,5902508717,1000016085
04.02.2022,ENVIRONMENT DIRECTORATE,LONDON TRADING STANDARDS,"7,000.00",TRADING STANDARDS,TRAINING,5902508128,1000012501
04.02.2022,F & C S EXCLUDING CORPORATE BUDGETS,NEC SOFTWARE SOLUTIONS UK LTD,"1,500.00",ADMINISTRATIVE SUPPORT,SOFTWARE,5902507711,1000087043
04.02.2022,F & C S EXCLUDING CORPORATE BUDGETS,WINSHUTTLE UK LTD,"9,575.52",INCOME MANAGEMENT,SOFTWARE,5902508697,1000059368
04.02.2022,F & C S EXCLUDING CORPORATE BUDGETS,LEXISNEXIS UK,"33,663.22",LEGAL SVCES MANAGEMENT,SOFTWARE,5902508688,11328752
04.02.2022,F & C S EXCLUDING CORPORATE BUDGETS,REDACTED PERSONAL DATA,500,SESS,OTHER PAYMENTS FOR CLIENTS,REDACTED,REDACTED
04.02.2022,F & C S EXCLUDING CORPORATE BUDGETS,REDACTED PERSONAL DATA,500,SESS,OTHER PAYMENTS FOR CLIENTS,REDACTED,REDACTED
04.02.2022,F & C S EXCLUDING CORPORATE BUDGETS,REDACTED PERSONAL DATA,500,SESS,OTHER PAYMENTS FOR CLIENTS,REDACTED,REDACTED
04.02.2022,F & C S EXCLUDING CORPORATE BUDGETS,REDACTED PERSONAL DATA,500,SESS,OTHER PAYMENTS FOR CLIENTS,REDACTED,REDACTED
04.02.2022,F & C S EXCLUDING CORPORATE BUDGETS,REDACTED PERSONAL DATA,500,SESS,OTHER PAYMENTS FOR CLIENTS,REDACTED,REDACTED
04.02.2022,F & C S EXCLUDING CORPORATE BUDGETS,REDACTED PERSONAL DATA,500,SESS,OTHER PAYMENTS FOR CLIENTS,REDACTED,REDACTED
04.02.2022,F & C S EXCLUDING CORPORATE BUDGETS,REDACTED PERSONAL DATA,500,SESS,OTHER PAYMENTS FOR CLIENTS,REDACTED,REDACTED
04.02.2022,F & C S EXCLUDING CORPORATE BUDGETS,REDACTED PERSONAL DATA,500,SESS,OTHER PAYMENTS FOR CLIENTS,REDACTED,REDACTED
04.02.2022,F & C S EXCLUDING CORPORATE BUDGETS,REDACTED PERSONAL DATA,500,SESS,OTHER PAYMENTS FOR CLIENTS,REDACTED,REDACTED
04.02.2022,F & C S EXCLUDING CORPORATE BUDGETS,REDACTED PERSONAL DATA,500,SESS,OTHER PAYMENTS FOR CLIENTS,REDACTED,REDACTED
04.02.2022,F & C S EXCLUDING CORPORATE BUDGETS,REDACTED PERSONAL DATA,500,SESS,OTHER PAYMENTS FOR CLIENTS,REDACTED,REDACTED
04.02.2022,F & C S EXCLUDING CORPORATE BUDGETS,REDACTED PERSONAL DATA,500,SESS,OTHER PAYMENTS FOR CLIENTS,REDACTED,REDACTED
04.02.2022,F & C S EXCLUDING CORPORATE BUDGETS,REDACTED PERSONAL DATA,500,SESS,OTHER PAYMENTS FOR CLIENTS,REDACTED,REDACTED
04.02.2022,F & C S EXCLUDING CORPORATE BUDGETS,REDACTED PERSONAL DATA,500,SESS,OTHER PAYMENTS FOR CLIENTS,REDACTED,REDACTED
04.02.2022,F & C S EXCLUDING CORPORATE BUDGETS,REDACTED PERSONAL DATA,500,SESS,OTHER PAYMENTS FOR CLIENTS,REDACTED,REDACTED
04.02.2022,HOUSING HRA,DUCTCLEAN (UK) LTD,"16,500.00",CAPITAL PS (HRA),CONSTRUCTION,2103381475,3000001635
04.02.2022,HOUSING HRA,CALFORD SEADEN LLP,"6,210.00",CAPITAL PS (HRA),CONSTRUCTION FEES  - EXTERNAL,5902508703,1061592
04.02.2022,HOUSING HRA,RIGHT OF LIGHT CONSULTING LTD,"6,400.00",CAPITAL PS (HRA),CONSTRUCTION FEES  - EXTERNAL,5902508793,1000065676
04.02.2022,HOUSING HRA,PJC CONSULTANCY LTD,795,CAPITAL PS (HRA),CONSTRUCTION FEES  - EXTERNAL,5902508701,1000077403
04.02.2022,HOUSING HRA,SHARON HOSEGOOD ASSOCIATES LTD,450,CAPITAL PS (HRA),CONSTRUCTION FEES  - EXTERNAL,5902508709,1000086568
04.02.2022,HOUSING HRA,SILVER DCC LTD,"2,445.94",CAPITAL PS (HRA),CONSTRUCTION FEES  - EXTERNAL,5902507574,1000087546
04.02.2022,HOUSING HRA,ALFOR FIRE SAFETY SERVICES LTD,"1,575.00",CAPITAL PS (HRA),CONSTRUCTION FEES  - EXTERNAL,5902508794,1000087888
04.02.2022,HOUSING HRA,ALFOR FIRE SAFETY SERVICES LTD,"1,575.00",CAPITAL PS (HRA),CONSTRUCTION FEES  - EXTERNAL,5902508794,1000087888
04.02.2022,HOUSING HRA,ALFOR FIRE SAFETY SERVICES LTD,"3,150.00",CAPITAL PS (HRA),CONSTRUCTION FEES  - EXTERNAL,5902508794,1000087888
04.02.2022,HOUSING HRA,MACCREANOR LAVINGTON LTD,"80,925.00",CAPITAL PS (HRA),CONSTRUCTION FEES - ARCHITECT,5902508009,1000075874
04.02.2022,HOUSING HRA,AFFINITY FIRE ENGINEERING (UK) LTD,"1,900.00",CAPITAL PS (HRA),CONSTRUCTION FEES - ENGINEER,5902508706,1000086780
04.02.2022,HOUSING HRA,SHARPE PRITCHARD LLP,308,CAPITAL PS (HRA),CONSTRUCTION FEES - LEGAL,5902508707,1790085
04.02.2022,HOUSING HRA,SHARPE PRITCHARD LLP,312,CAPITAL PS (HRA),CONSTRUCTION FEES - LEGAL,5902508788,1790085
04.02.2022,HOUSING HRA,SHARPE PRITCHARD LLP,900,CAPITAL PS (HRA),CONSTRUCTION FEES - LEGAL,5902508768,1790085
04.02.2022,HOUSING HRA,SHARPE PRITCHARD LLP,"1,044.00",CAPITAL PS (HRA),CONSTRUCTION FEES - LEGAL,5902508732,1790085
04.02.2022,HOUSING HRA,SHARPE PRITCHARD LLP,"1,148.00",CAPITAL PS (HRA),CONSTRUCTION FEES - LEGAL,5902508704,1790085
04.02.2022,HOUSING HRA,SHARPE PRITCHARD LLP,"1,224.00",CAPITAL PS (HRA),CONSTRUCTION FEES - LEGAL,5902508788,1790085
04.02.2022,HOUSING HRA,SHARPE PRITCHARD LLP,"1,366.00",CAPITAL PS (HRA),CONSTRUCTION FEES - LEGAL,5902508731,1790085
04.02.2022,HOUSING HRA,SHARPE PRITCHARD LLP,"2,776.00",CAPITAL PS (HRA),CONSTRUCTION FEES - LEGAL,5902508724,1790085
04.02.2022,LEISURE DIRECTORATE,FIELD FISHER WATERHOUSE,"2,808.00",CAMBERWELL LIBRARY,PROFESSIONAL FEES,5902508627,1000047449
04.02.2022,LEISURE DIRECTORATE,SPORTS AND LEISURE MANAGEMENT LTD,"139,000.00",FACILITIES MANAGEMENT,OTHER CONTRACTORS,5902508605,1000077862
04.02.2022,LEISURE DIRECTORATE,SPORTS AND LEISURE MANAGEMENT LTD,"139,000.00",FACILITIES MANAGEMENT,OTHER CONTRACTORS,5902508606,1000077862
04.02.2022,LEISURE DIRECTORATE,OSBORNE THOMAS LTD,"2,666.67",FACILITIES MANAGEMENT,OTHER CONTRACTORS,5902507907,1000079094
04.02.2022,LEISURE DIRECTORATE,GROUNDWORK LONDON,"26,578.00",GRANTS COMMISSIONING,GRANTS,5902508557,1897585
04.02.2022,LEISURE DIRECTORATE,POETS CORNER T&RA,"6,400.00",GRANTS COMMISSIONING,GRANTS,5902508631,1000022360
04.02.2022,LEISURE DIRECTORATE,POETS CORNER T&RA,"6,400.00",GRANTS COMMISSIONING,GRANTS,5902508632,1000022360
04.02.2022,LEISURE DIRECTORATE,ACTIVE COMMUNITIES NETWORK LTD,"7,200.75",GRANTS COMMISSIONING,GRANTS,5902508690,1000057408
04.02.2022,LEISURE DIRECTORATE,FOUNTAINS & FEATURES LTD,460,PARKS SERVICES DEVELOPMENT,PROFESSIONAL FEES,5902508628,1000082729
04.02.2022,LEISURE DIRECTORATE,FOUNTAINS & FEATURES LTD,460,PARKS SERVICES DEVELOPMENT,PROFESSIONAL FEES,5902508629,1000082729
04.02.2022,LEISURE DIRECTORATE,ADVANCED TREE SERVICES LTD,"1,760.00",TREES O'HEADS,OTHER CONTRACTORS,5902507539,1000079711
04.02.2022,LEISURE DIRECTORATE,GRISTWOOD & TOMS LTD,"4,205.00",TREES PRINCIPAL ROADS,TREE MAINTENANCE,5902507854,1000028580
04.02.2022,PUBLIC HEALTH,REDACTED PERSONAL DATA,500,COVID-19 CONTROL OUTBREAK MGMNT.FUND,OTHER PAYMENTS FOR CLIENTS,REDACTED,REDACTED
04.02.2022,PUBLIC HEALTH,REDACTED PERSONAL DATA,500,COVID-19 CONTROL OUTBREAK MGMNT.FUND,OTHER PAYMENTS FOR CLIENTS,REDACTED,REDACTED
04.02.2022,PUBLIC HEALTH,REDACTED PERSONAL DATA,500,COVID-19 CONTROL OUTBREAK MGMNT.FUND,OTHER PAYMENTS FOR CLIENTS,REDACTED,REDACTED
04.02.2022,PUBLIC HEALTH,REDACTED PERSONAL DATA,500,COVID-19 CONTROL OUTBREAK MGMNT.FUND,OTHER PAYMENTS FOR CLIENTS,REDACTED,REDACTED
04.02.2022,PUBLIC HEALTH,TMS DEVELOPMENT INTERNATIONAL LTD,622.5,PH DIRECTOR'S TEAM,OTHER EMPLOYEE EXPENSES,5902508311,1000080859
04.02.2022,PUBLIC HEALTH,CELESTIAL CHURCH OF CHRIST AMAZING GRACE PARISH,518.4,PLACE & HEALTH IMPROVEMENT,EXTERNAL AGENCIES AND BODIES,5902508600,1000084302
04.02.2022,PUBLIC HEALTH,ANGELS BREAKFAST AND AFTERSCHOOL CLUB,714,PLACE & HEALTH IMPROVEMENT,EXTERNAL AGENCIES AND BODIES,5902508636,1000087659
04.02.2022,PUBLIC HEALTH,ANGELS BREAKFAST AND AFTERSCHOOL CLUB,"1,260.00",PLACE & HEALTH IMPROVEMENT,EXTERNAL AGENCIES AND BODIES,5902508636,1000087659
04.02.2022,PUBLIC HEALTH,CAMELOT PRIMARY SCHOOL,"13,830.00",PLACE & HEALTH IMPROVEMENT,EXTERNAL AGENCIES AND BODIES,5902508728,5001000014
04.02.2022,REGENERATION,BRESLIN CONSTRUCTION LTD,"11,780.00",CPHA  MANAGED PROPERTIES,BUILDING R&M,2103379470,3000001948
04.02.2022,RESIDENT SERVICES,HOMELY HOUSING LETS LTD,"3,985.00",TA PLACEMENTS,EXTERNAL AGENCIES AND BODIES,5902508764,1000050013
04.02.2022,RESIDENT SERVICES HGF,J & M OASIS LTD,"8,437.50",NIGHTLY TA (NSC),EXTERNAL AGENCIES AND BODIES,5902508695,1000072169
04.02.2022,RESIDENT SERVICES HGF,MAIER LANG LIMITED,513,NIGHTLY TA (NSC),EXTERNAL AGENCIES AND BODIES,5902508694,1000084930
04.02.2022,RESIDENT SERVICES HGF,MAIER LANG LIMITED,"31,132.80",NIGHTLY TA (NSC),EXTERNAL AGENCIES AND BODIES,5902508693,1000084930
04.02.2022,RESIDENT SERVICES HGF,TFL TELESALES / OYSTER FULFILMENT,355,RAPID REHOUSING,PUBLIC TRANSPORT,5902508687,1000059727
04.02.2022,SBS OPERATIONS,TRAVIS PERKINS TRADING COMPANY LTD,490.35,PECKHAM DD,MATERIALS,5902508611,1514319
04.02.2022,STRATEGIC FINANCING BUDGETS,COMENSURA LTD,"792,661.74",AGENCY RECOVERY,AGENCY STAFF,5902508663,1000051261
04.02.2022,STRATEGIC FINANCING BUDGETS,POST OFFICE LTD,"1,293.23",CORPORATE BUDGETS,MISCELLANEOUS EXPENSES,5902508638,1000069858
05.02.2022,ASSET MANAGEMENT,ASHFORDS LLP OFFICE ACCOUNT,425,DISREPAIR,PAYMENTS FOR LEGAL SERVICES,5902507976,1000082695
05.02.2022,ASSET MANAGEMENT,ASHFORDS LLP OFFICE ACCOUNT,425,DISREPAIR,PAYMENTS FOR LEGAL SERVICES,5902507984,1000082695
05.02.2022,ASSET MANAGEMENT,ASHFORDS LLP OFFICE ACCOUNT,425,DISREPAIR,PAYMENTS FOR LEGAL SERVICES,5902507995,1000082695
05.02.2022,ASSET MANAGEMENT,ASHFORDS LLP OFFICE ACCOUNT,"1,325.00",DISREPAIR,PAYMENTS FOR LEGAL SERVICES,5902508006,1000082695
05.02.2022,ASSET MANAGEMENT,ASHFORDS LLP OFFICE ACCOUNT,"1,750.00",DISREPAIR,PAYMENTS FOR LEGAL SERVICES,5902508003,1000082695
05.02.2022,ASSET MANAGEMENT,ARMINA LTD,"1,288.88",DISREPAIR,PAYMENTS FOR LEGAL SERVICES,2103379557,3000002121
05.02.2022,CHIEF EXECUTIVE,CBS MAINTENANCE SERVICES LTD,"7,496.00",CAPITAL PS (REGEN),CONSTRUCTION FEES  - EXTERNAL,2103379860,3000001518
05.02.2022,CHIEF EXECUTIVE,CBS MAINTENANCE SERVICES LTD,"7,496.00",CAPITAL PS (REGEN),CONSTRUCTION FEES  - EXTERNAL,2103379861,3000001518
05.02.2022,CHIEF EXECUTIVE,CBS MAINTENANCE SERVICES LTD,"7,796.00",CAPITAL PS (REGEN),CONSTRUCTION FEES  - EXTERNAL,2103379862,3000001518
05.02.2022,COMMUNITIES HRA,TPAS LTD,"4,000.00",RESIDENTS PARTICIPATION FUND,TRAINING,5902507774,1000037079
05.02.2022,CUSTOMER EXPERIENCE HGF,TUNSTALL HEALTHCARE (UK) LTD,"1,470.00",SMART MOBILE RESPONSE TEAM,EQUIPMENT PURCHASE & REPAIR,5902507910,1012297
05.02.2022,ENVIRONMENT AND LEISURE,GO PRO CHEMICALS LTD,"1,035.39",MANAGEMENT TEAM,MATERIALS,5902508630,1000079528
05.02.2022,ENVIRONMENT AND LEISURE,GO PRO CHEMICALS LTD,"2,098.99",MANAGEMENT TEAM,MATERIALS,5902507892,1000079528
05.02.2022,HOUSING HRA,SILK & MACKMAN SERVICES LTD,"1,186.00",CAPITAL PS (HRA),UTILITIES INSTALLATION,5902507731,1000035282
05.02.2022,HOUSING HRA,GLOBAL GUARDIANS FACILITIES MANAGEMENT LTD,"2,400.00",CAPITAL PS (REGEN),CONSTRUCTION SITE COSTS,5902507931,1000071841
05.02.2022,LEISURE DIRECTORATE,NEWLINE (ESSEX) LTD,"1,003.41",CREMATORIUM,OTHER CLEANING,5902507881,1000047169
05.02.2022,LEISURE DIRECTORATE,YOUTH FUTURES,"5,400.50",GRANTS COMMISSIONING,GRANTS,5902508543,1000068524
05.02.2022,LEISURE DIRECTORATE,THE STOCKROOM ARCHIVE MANAGEMENT LTD,"7,657.52",HERITAGE,OTHER CONTRACTORS,5902507918,1000079579
05.02.2022,LEISURE DIRECTORATE,KENT COUNTY COUNCIL - LASER,"1,429.65",HERITAGE CENTRE & WALWORTH LIBRARY,ELECTRICITY,5902508596,1000012926
05.02.2022,LEISURE DIRECTORATE,KENT COUNTY COUNCIL - LASER,"2,141.04",HERITAGE CENTRE & WALWORTH LIBRARY,ELECTRICITY,5902508597,1000012926
05.02.2022,LEISURE DIRECTORATE,FPS ARBORIST LTD,"5,760.00",TREES O'HEADS,OTHER CONTRACTORS,5902508057,1000082343
05.02.2022,LEISURE DIRECTORATE,GRISTWOOD & TOMS LTD,"14,660.00",TREES PRINCIPAL ROADS,TREE MAINTENANCE,5902507861,1000028580
05.02.2022,LEISURE DIRECTORATE,GRISTWOOD & TOMS LTD,"15,760.00",TREES PRINCIPAL ROADS,TREE MAINTENANCE,5902507856,1000028580
05.02.2022,LEISURE DIRECTORATE,GRISTWOOD & TOMS LTD,"44,340.00",TREES PRINCIPAL ROADS,TREE MAINTENANCE,5902507864,1000028580
06.02.2022,ASSET MANAGEMENT,ARMINA LTD,"2,690.45",DISREPAIR,PAYMENTS FOR LEGAL SERVICES,2103381337,3000002121
06.02.2022,ASSET MANAGEMENT HGF,DISPOSABLES AND CATERING SUPPLIES LTD,782.88,160 TOOLEY ST.,BUILDING R&M,5902508124,1000082869
06.02.2022,ASSET MANAGEMENT HGF,MITIE FM LIMITED,"537,671.98",FM SERVICES BY INTERSERVE,INTEGRATED FACILITIES MANAGEMENT CONTRACT,5902508326,1000070792
06.02.2022,CENTRAL FUNCTIONS,BRESLIN CONSTRUCTION LTD,"5,440.00",COMMERCIAL PROPERTIES,BUILDING R&M,2103381162,3000001948
06.02.2022,CHIEF EXECUTIVE'S OFFICE,LATIN AMERICAN DISABLED PEOPLE PROJECT,"5,426.00",CHIEF EXECUTIVE'S OFFICE,EXTERNAL AGENCIES AND BODIES,5902508131,1000058588
06.02.2022,COMMUNITIES,SOUTHWARK NEWSPAPER LTD,"1,250.00",MAYORAL SUPPORT,MARKETING & PUBLICITY SERVICES,5902508416,1556957
06.02.2022,ENVIRONMENT DIRECTORATE,SOUTHWARK NEWSPAPER LTD,552,HIGHWAYS DEVELOPMENT,MARKETING & PUBLICITY SERVICES,5902508758,1556957
06.02.2022,F & C S EXCLUDING CORPORATE BUDGETS,BDO LLP,"22,005.00",INTERNAL AUDIT CONTRACTS,PAYMENTS FOR FINANCIAL SERVICES,5902507956,1000057898
06.02.2022,F & C S EXCLUDING CORPORATE BUDGETS,BDO LLP,"2,083.33",RISK ADMIN,PROFESSIONAL FEES,5902507970,1000057898
06.02.2022,HOUSING HRA,FAITHFUL & GOULD,"15,500.00",CAPITAL PS (HRA),CONSTRUCTION FEES,5902508722,1000061390
06.02.2022,HOUSING HRA,ENGIE REGENERATION  LTD,"67,000.00",CAPITAL PS (HRA),CONSTRUCTION FEES  - EXTERNAL,5902508752,1000013358
06.02.2022,HOUSING HRA,MARTIN ARNOLD LTD,"9,870.11",CAPITAL PS (HRA),CONSTRUCTION FEES  - EXTERNAL,5902508169,1000076993
06.02.2022,HOUSING HRA,DJJH CONSULTING LTD,483.18,CAPITAL PS (HRA),CONSTRUCTION FEES - EMPLOYERS AGENT,5902508004,1000085261
06.02.2022,PLANNING AND TRANSPORT,BDO LLP,"2,760.00",TRANSPORT POLICY AND PROGRAMS,CONSULTANTS SERVICES,5902507917,1000057898
06.02.2022,RESIDENT SERVICES,CYCLEHOOP LTD,"3,175.00",PARKING CONTROL,BUILDING R&M,5902508358,1000057894
06.02.2022,RESIDENT SERVICES,CYCLEHOOP LTD,"3,175.00",PARKING CONTROL,BUILDING R&M,5902508358,1000057894
07.02.2022,ADULT SOCIAL CARE,DERWENT RESIDENTIAL CARE LTD,459,APPOINTEESHIPS,OTHER PAYMENTS FOR CLIENTS,5902508930,1000069967
07.02.2022,ADULT SOCIAL CARE,DERWENT RESIDENTIAL CARE LTD,459,APPOINTEESHIPS,OTHER PAYMENTS FOR CLIENTS,5902508931,1000069967
